Body Name,Body,Service Division Label,Service Division Code,Organisational Unit,Expenditure Category,Expenditure Code,CIPFA detailed expediture type,CIPFA detailed expediture code,Narrative,Date,Transaction number,Net Amount,Capital and Revenue,Supplier Name,Supplier ID
Chorley Borough Council,http://statistics.data.gov.uk/id/local-authority/30UE,Democratic Represent and  Mgnt,1007,Policy & Governance,Grants To Other Organisations,40127,Grants and Subscriptions,5031,grant,29/03/2017,119839,250.00,Revenue,17th Chorley St Georges Red Bank Guides,76621
Chorley Borough Council,http://statistics.data.gov.uk/id/local-authority/30UE,Community Development,1097,Policy & Governance,Core Funding Grants,40133,Grants and Subscriptions,5031,small comm funding,01/03/2017,119049,500.00,Revenue,1st Brindle Girl Guides,76563
Chorley Borough Council,http://statistics.data.gov.uk/id/local-authority/30UE,Homelessness,1075,Early Intervention,Fixtures & Fittings - Purchase,20027,Fixtures and Fittings,5010,regards to estimate quotation dated 13/02/2017 for the provision of various repair works and fitting of new blinds in multiple flats ,31/03/2017,119808,811.75,Revenue,A B Blinds,17475
Chorley Borough Council,http://statistics.data.gov.uk/id/local-authority/30UE,Parking Services,1066,Business Development & Growth,External Contractor,40198,Miscellaneous Expenses,5034,To carry out works to Fleet Street Short Stay Car Park to split into Short Stay and Long Stay as per quote no EN2030,22/03/2017,119730,495.00,Revenue,A1 Streamline Road Markings LTD,21544
Chorley Borough Council,http://statistics.data.gov.uk/id/local-authority/30UE,Democratic Represent and  Mgnt,1007,Early Intervention,External Contractor - Trust or Charity,50008,Private Contractors,5042,Active Nation Management Fee 2016/17 For the Period May 2016 - March 2017 invoiced monthly at the start of each Month,08/03/2017,119314,"31,722.41",Revenue,Active Nation UK Ltd,17144
Chorley Borough Council,http://statistics.data.gov.uk/id/local-authority/30UE,Central Support Services,1009,Early Intervention,Children's Activities,40188,Miscellaneous Expenses,5034,Hire of half a sports hall and outdoor pitch for Doorstep Sports club in February,29/03/2017,120087,280.00,Revenue,Active Nation UK Ltd,17144
Chorley Borough Council,http://statistics.data.gov.uk/id/local-authority/30UE,Central Support Services,1009,Early Intervention,Children's Activities,40188,Miscellaneous Expenses,5034,Hire of half a sports hall and outdoor pitch for Doorstep Sports club in March,29/03/2017,120088,350.00,Revenue,Active Nation UK Ltd,17144
Chorley Borough Council,http://statistics.data.gov.uk/id/local-authority/30UE,Community Development,1097,Policy & Governance,Core Funding Grants,40133,Grants and Subscriptions,5031,small comm funding,01/03/2017,119045,450.00,Revenue,Adlington Luncheon Club,59141
Chorley Borough Council,http://statistics.data.gov.uk/id/local-authority/30UE,Democratic Represent and  Mgnt,1007,Policy & Governance,Grants To Other Organisations,40127,Grants and Subscriptions,5031,grant,01/03/2017,119202,250.00,Revenue,Adlington Luncheon Club,59141
Chorley Borough Council,http://statistics.data.gov.uk/id/local-authority/30UE,Recognised Cap Grants & Conts,,Business Development & Growth,Contributions Parish Councils,40144,Grants and Subscriptions,5031,cil,31/03/2017,120117,943.66,Revenue,Adlington Town Council,17626
Chorley Borough Council,http://statistics.data.gov.uk/id/local-authority/30UE,Democratic Represent and  Mgnt,1007,Policy & Governance,Miscellaneous Expenses,40200,Miscellaneous Expenses,5034,Civil war training at Astley Hall,24/03/2017,119914,250.00,Revenue,Adrian Warrell,76628
Chorley Borough Council,http://statistics.data.gov.uk/id/local-authority/30UE,Unapportionable Central OHeads,1009,Policy & Governance,Burglar Alarms & Security Systems,20075,Fixtures and Fittings,5010,Maint. of Access Control system 28/02/16 to 27/05/16,29/03/2017,114339,680.09,Revenue,ADT Fire & Security,16645
Chorley Borough Council,http://statistics.data.gov.uk/id/local-authority/30UE,Unapportionable Central OHeads,1009,Policy & Governance,Burglar Alarms & Security Systems,20075,Fixtures and Fittings,5010,Work on card access system 23/06/16,29/03/2017,114349,441.00,Revenue,ADT Fire & Security,16645
Chorley Borough Council,http://statistics.data.gov.uk/id/local-authority/30UE,Unapportionable Central OHeads,1009,Policy & Governance,Burglar Alarms & Security Systems,20075,Fixtures and Fittings,5010,Access Control system 28/08/16 to 27/11/16,29/03/2017,114580,680.09,Revenue,ADT Fire & Security,16645
Chorley Borough Council,http://statistics.data.gov.uk/id/local-authority/30UE,Unapportionable Central OHeads,1009,Policy & Governance,Burglar Alarms & Security Systems,20075,Fixtures and Fittings,5010,NAME REDACTED at premises Intruder System 11/08/16,29/03/2017,116421,343.00,Revenue,ADT Fire & Security,16645
Chorley Borough Council,http://statistics.data.gov.uk/id/local-authority/30UE,Unapportionable Central OHeads,1009,Business Development & Growth,Planned Maintenance,20006,Repairs Maintenance & Alts,5005,Blanket order for PPM works for 2017.,15/03/2017,118998,"1,257.52",Revenue,ADT Fire & Security,16645
Chorley Borough Council,http://statistics.data.gov.uk/id/local-authority/30UE,Unapportionable Central OHeads,1009,Business Development & Growth,Planned Maintenance,20006,Repairs Maintenance & Alts,5005,Blanket order for PPM works for 2017.,15/03/2017,119031,514.80,Revenue,ADT Fire & Security,16645
Chorley Borough Council,http://statistics.data.gov.uk/id/local-authority/30UE,Unapportionable Central OHeads,1009,Business Development & Growth,Planned Maintenance,20006,Repairs Maintenance & Alts,5005,Blanket order for PPM works for 2017.,15/03/2017,119034,530.25,Revenue,ADT Fire & Security,16645
Chorley Borough Council,http://statistics.data.gov.uk/id/local-authority/30UE,Unapportionable Central OHeads,1009,Business Development & Growth,Planned Maintenance,20006,Repairs Maintenance & Alts,5005,Blanket order for PPM works for 2017.,15/03/2017,119035,512.32,Revenue,ADT Fire & Security,16645
Chorley Borough Council,http://statistics.data.gov.uk/id/local-authority/30UE,Unapportionable Central OHeads,1009,Business Development & Growth,Planned Maintenance,20006,Repairs Maintenance & Alts,5005,Blanket order for PPM works for 2017.,15/03/2017,119041,506.90,Revenue,ADT Fire & Security,16645
Chorley Borough Council,http://statistics.data.gov.uk/id/local-authority/30UE,Unapportionable Central OHeads,1009,Policy & Governance,Burglar Alarms & Security Systems,20075,Fixtures and Fittings,5010,Invoice number 34791746-10 Installation of PIR sensor in the main entrance on 21-02-17,17/03/2017,119708,393.60,Revenue,ADT Fire & Security,16645
Chorley Borough Council,http://statistics.data.gov.uk/id/local-authority/30UE,Service Management & Support,1009,Customer & Digital,Vehicle Maintenance,30045,Direct Transport Costs,5016,Supply items as on quotation number 20132991/20.02.2017 to be delivered to Bengal St depot PR7 1SA for 8am delivery,01/03/2017,119182,503.02,Revenue,Aebi Schmidt UK Ltd,17287
Chorley Borough Council,http://statistics.data.gov.uk/id/local-authority/30UE,Service Management & Support,1009,Customer & Digital,Vehicle Maintenance,30045,Direct Transport Costs,5016,Supply items as on quotation number 20133135 to be delivered to Bengal St depot PR7 1SA to include postage,03/03/2017,119305,778.06,Revenue,Aebi Schmidt UK Ltd,17287
Chorley Borough Council,http://statistics.data.gov.uk/id/local-authority/30UE,Service Management & Support,1009,Customer & Digital,Vehicle Maintenance,30045,Direct Transport Costs,5016,Supply items as on quote number 20134163 to be delivered to Bengal St PR7 1SA,22/03/2017,119793,855.00,Revenue,Aebi Schmidt UK Ltd,17287
Chorley Borough Council,http://statistics.data.gov.uk/id/local-authority/30UE,Central Support Services,1009,Early Intervention,Children's Activities,40188,Miscellaneous Expenses,5034,Hire of Facilities for February Half Term booked by NAME REDACTED,22/03/2017,119733,354.00,Revenue,Albany Science College,20693
Chorley Borough Council,http://statistics.data.gov.uk/id/local-authority/30UE,Unapportionable Central OHeads,1009,Policy & Governance,Refreshments,40036,Catering,5024,Stock code: DRKPC008 Ripple Kraft Hot Cup 8oz 26.99 each QTY 3 boxes,29/03/2017,119986,85.83,Revenue,allianceonline,59490
Chorley Borough Council,http://statistics.data.gov.uk/id/local-authority/30UE,Unapportionable Central OHeads,1009,Policy & Governance,Refreshments,40036,Catering,5024,"Stock code: BCFT0026 Hot Chocolate sachet	16.36 each QTY 1 box",29/03/2017,119986,17.34,Revenue,allianceonline,59490
Chorley Borough Council,http://statistics.data.gov.uk/id/local-authority/30UE,Unapportionable Central OHeads,1009,Policy & Governance,Refreshments,40036,Catering,5024,Stock code: BCFT0027 Fairtrade Tagged Teabags 22.26 each QTY 3 boxes,29/03/2017,119986,67.20,Revenue,allianceonline,59490
Chorley Borough Council,http://statistics.data.gov.uk/id/local-authority/30UE,Unapportionable Central OHeads,1009,Policy & Governance,Refreshments,40036,Catering,5024,"Stock code: BCFT0024 Fairtrade Colombian	32.82 each QTY 1 box",29/03/2017,119986,34.79,Revenue,allianceonline,59490
Chorley Borough Council,http://statistics.data.gov.uk/id/local-authority/30UE,Unapportionable Central OHeads,1009,Policy & Governance,Refreshments,40036,Catering,5024,Stock code: BCFT0025 Fairtrade Colombian decaf 33.85 QTY 1 box,29/03/2017,119986,35.88,Revenue,allianceonline,59490
Chorley Borough Council,http://statistics.data.gov.uk/id/local-authority/30UE,Unapportionable Central OHeads,1009,Policy & Governance,Refreshments,40036,Catering,5024,"Stock code: BLTA0019 Size: 1.9L Lever Airpot	23.99 each QTY 2",29/03/2017,119986,50.86,Revenue,allianceonline,59490
Chorley Borough Council,http://statistics.data.gov.uk/id/local-authority/30UE,Unapportionable Central OHeads,1009,Customer & Digital,Bank Charges,40151,Miscellaneous Expenses,5034,charges,15/03/2017,119569,781.59,Revenue,Allpay Net Ltd,17242
Chorley Borough Council,http://statistics.data.gov.uk/id/local-authority/30UE,Corporate Management,1008,Policy & Governance,Car Leasing Payment,14100,Direct Employee Expenses,5001,"rental vehicle, till contract hire  is ready BMW 320ed Sport Automatic  Rental Group EA+  Driver - NAME REDACTED",08/03/2017,119389,545.72,Revenue,Alphabet (Uk) Fleet Management Ltd,16651
Chorley Borough Council,http://statistics.data.gov.uk/id/local-authority/30UE,Unapportionable Central OHeads,1009,Policy & Governance,Car Leasing Payment,14100,Direct Employee Expenses,5001,NAME REDACTED,08/03/2017,119431,"2,181.33",Revenue,Alphabet (Uk) Fleet Management Ltd,16651
Chorley Borough Council,http://statistics.data.gov.uk/id/local-authority/30UE,Unapportionable Central OHeads,1009,Policy & Governance,Car Leasing Payment,14100,Direct Employee Expenses,5001,Employee expenses,08/03/2017,119431,184.08,Revenue,Alphabet (Uk) Fleet Management Ltd,16651
Chorley Borough Council,http://statistics.data.gov.uk/id/local-authority/30UE,Control Accounts,Control,Policy & Governance,Manual Control Account,1,Balance Sheet,Balance,Balance Sheet,08/03/2017,119431,-184.08,Revenue,Alphabet (Uk) Fleet Management Ltd,16651
Chorley Borough Council,http://statistics.data.gov.uk/id/local-authority/30UE,Corporate Management,1008,Policy & Governance,Car Leasing Payment,14100,Direct Employee Expenses,5001,Quote: 8951022 BMW 3 Series 330e M Sport 4dr Step Auto Saloon Metallic- Glacier silver Petrol/plugin elec hybrid Upholstery,17/03/2017,119743,"4,328.80",Revenue,Alphabet (Uk) Fleet Management Ltd,16651
Chorley Borough Council,http://statistics.data.gov.uk/id/local-authority/30UE,Corporate Management,1008,Policy & Governance,Car Leasing Payment,14100,Direct Employee Expenses,5001,Employee expenses,17/03/2017,119743,383.69,Revenue,Alphabet (Uk) Fleet Management Ltd,16651
Chorley Borough Council,http://statistics.data.gov.uk/id/local-authority/30UE,Control Accounts,Control,Policy & Governance,Manual Control Account,1,Balance Sheet,Balance,Balance Sheet,17/03/2017,119743,-383.69,Revenue,Alphabet (Uk) Fleet Management Ltd,16651
Chorley Borough Council,http://statistics.data.gov.uk/id/local-authority/30UE,Unapportionable Central OHeads,1009,Customer & Digital,Fixtures & Fittings - Purchase,20027,Fixtures and Fittings,5010,10 x 1270mm length self watering window boxes complete  brackets 20 x liners for 1270mm length self watering window boxes,31/03/2017,120102,"1,989.00",Revenue,Amberol,64554
Chorley Borough Council,http://statistics.data.gov.uk/id/local-authority/30UE,Central Support Services,1009,Early Intervention,Miscellaneous Expenses,40200,Miscellaneous Expenses,5034,Half a days activities on 3rd March booked by NAME REDACTED for Albany High School pupils,15/03/2017,118382,255.00,Revenue,Anderton Centre - LOAI,56108
Chorley Borough Council,http://statistics.data.gov.uk/id/local-authority/30UE,Recognised Cap Grants & Conts,,Business Development & Growth,Contributions Parish Councils,40144,Grants and Subscriptions,5031,cil,31/03/2017,120118,789.75,Revenue,Anderton Parish Council,18125
Chorley Borough Council,http://statistics.data.gov.uk/id/local-authority/30UE,Corporate Management,1008,Customer & Digital,Other Contributions,40145,Grants and Subscriptions,5031,NAME REDACTED,03/03/2017,119283,"4,706.00",Revenue,NAME REDACTED,76547
Chorley Borough Council,http://statistics.data.gov.uk/id/local-authority/30UE,Business Support,1095,Business Development & Growth,Grants To Other Organisations,40127,Grants and Subscriptions,5031,grant,17/03/2017,119564,623.00,Revenue,NAME REDACTED,76176
Chorley Borough Council,http://statistics.data.gov.uk/id/local-authority/30UE,Central Support Services,1009,Customer & Digital,Consultants` Fees,40077,Services,5027,2 hours OOH support to carry out SAN filer reboots,29/03/2017,118500,900.00,Revenue,ANS Group,22502
Chorley Borough Council,http://statistics.data.gov.uk/id/local-authority/30UE,Central Support Services,1009,Customer & Digital,Computer Equipment-Maintenance,40105,Communication and Computing,5028,Managed infrastructure contract - November 2016,01/03/2017,118671,"2,000.00",Revenue,ANS Group,22502
Chorley Borough Council,http://statistics.data.gov.uk/id/local-authority/30UE,Central Support Services,1009,Customer & Digital,Computer Equipment-Maintenance,40105,Communication and Computing,5028,Managed infrastructure contract - February 2017,01/03/2017,119288,"2,000.00",Revenue,ANS Group,22502
Chorley Borough Council,http://statistics.data.gov.uk/id/local-authority/30UE,Central Support Services,1009,Customer & Digital,Computer Equipment-Maintenance,40105,Communication and Computing,5028,Managed infrastructure contract - January 2017,01/03/2017,119289,"2,000.00",Revenue,ANS Group,22502
Chorley Borough Council,http://statistics.data.gov.uk/id/local-authority/30UE,Corporate Management,1008,Chief Executive,Employee Related Insurance,18003,Indirect Employee Expenses,5002,2017 Terrorism insurance,15/03/2017,119317,"6,092.71",Revenue,Aon UK Limited Accounts Division,76559
Chorley Borough Council,http://statistics.data.gov.uk/id/local-authority/30UE,Unapportionable Central OHeads,1009,Customer & Digital,Planned Maintenance,20006,Repairs Maintenance & Alts,5005,Carryout removal and installation of  steps and hand rail at Harpers Lane recreation ground as per your quotation number Q806836,15/03/2017,119367,"4,225.00",Revenue,AP Broom Landscapes,67257
Chorley Borough Council,http://statistics.data.gov.uk/id/local-authority/30UE,Unapportionable Central OHeads,1009,Policy & Governance,IT Software - Annual Licences,40101,Communication and Computing,5028,IConnect Hosted site licence and DataSafe annual charge for software maintenance from April 2016,29/03/2017,120014,"1,074.00",Revenue,APT,17305
Chorley Borough Council,http://statistics.data.gov.uk/id/local-authority/30UE,Homelessness,1075,Early Intervention,Furniture - Purchase,40012,"Equipment, Furniture & Materia",5023,625/4520 - Hitachi 50 inch Freeview Play Smart TV,22/03/2017,119380,291.66,Revenue,Argos Business Solutions,16213
Chorley Borough Council,http://statistics.data.gov.uk/id/local-authority/30UE,Homelessness,1075,Early Intervention,Furniture - Purchase,40012,"Equipment, Furniture & Materia",5023,483/6744 - Superior Multi Position 23-50 inch TV wall bracket,22/03/2017,119380,45.83,Revenue,Argos Business Solutions,16213
Chorley Borough Council,http://statistics.data.gov.uk/id/local-authority/30UE,Homelessness,1075,Early Intervention,Furniture - Purchase,40012,"Equipment, Furniture & Materia",5023,278/0720 - Heart of House Kent Oak 3dr Sideboard,22/03/2017,119380,227.90,Revenue,Argos Business Solutions,16213
Chorley Borough Council,http://statistics.data.gov.uk/id/local-authority/30UE,Homelessness,1075,Early Intervention,Furniture - Purchase,40012,"Equipment, Furniture & Materia",5023,823/1730 - Charcoal HOME Floral Fabric Tub Chair,22/03/2017,119380,216.66,Revenue,Argos Business Solutions,16213
Chorley Borough Council,http://statistics.data.gov.uk/id/local-authority/30UE,Homelessness,1075,Early Intervention,Furniture - Purchase,40012,"Equipment, Furniture & Materia",5023,255/7025 - Colour Match Leather Effect Tub Chair - Apple Green,22/03/2017,119380,249.96,Revenue,Argos Business Solutions,16213
Chorley Borough Council,http://statistics.data.gov.uk/id/local-authority/30UE,Homelessness,1075,Early Intervention,Furniture - Purchase,40012,"Equipment, Furniture & Materia",5023,Delivery Charge,22/03/2017,119380,5.79,Revenue,Argos Business Solutions,16213
Chorley Borough Council,http://statistics.data.gov.uk/id/local-authority/30UE,Service Management & Support,1009,Customer & Digital,Supplies-Grounds Maintenance,40025,"Equipment, Furniture & Materia",5023,Supply railway sleepers as on invoice number 017103,08/03/2017,119411,300.00,Revenue,Ark Welding Ltd,18154
Chorley Borough Council,http://statistics.data.gov.uk/id/local-authority/30UE,Service Management & Support,1009,Customer & Digital,Supplies-Grounds Maintenance,40025,"Equipment, Furniture & Materia",5023,Carryout repairs to fencing and stile at Ellerbeck site Wigan Lane as on invoice number 017106,08/03/2017,119414,400.00,Revenue,Ark Welding Ltd,18154
Chorley Borough Council,http://statistics.data.gov.uk/id/local-authority/30UE,Unapportionable Central OHeads,1009,Policy & Governance,Car Leasing Payment,14100,Direct Employee Expenses,5001, Land Rover Discovery Sport 2.0 TD4 180 HSE 5dr auto Station Wagon Estate Metallic paint- santorini black Upholstry,03/03/2017,119335,"4,654.80",Revenue,Arnold Clark Finance Ltd,20685
Chorley Borough Council,http://statistics.data.gov.uk/id/local-authority/30UE,Unapportionable Central OHeads,1009,Policy & Governance,Car Leasing Payment,14100,Direct Employee Expenses,5001,NAME REDACTED,03/03/2017,119335,425.32,Revenue,Arnold Clark Finance Ltd,20685
Chorley Borough Council,http://statistics.data.gov.uk/id/local-authority/30UE,Unapportionable Central OHeads,1009,Policy & Governance,Car Leasing Payment,14100,Direct Employee Expenses,5001,NAME REDACTED,22/03/2017,119787,"2,142.12",Revenue,Arnold Clark Finance Ltd,20685
Chorley Borough Council,http://statistics.data.gov.uk/id/local-authority/30UE,Unapportionable Central OHeads,1009,Policy & Governance,Car Leasing Payment,14100,Direct Employee Expenses,5001,Employee expenses,22/03/2017,119787,167.50,Revenue,Arnold Clark Finance Ltd,20685
Chorley Borough Council,http://statistics.data.gov.uk/id/local-authority/30UE,Unapportionable Central OHeads,1009,Policy & Governance,Car Leasing Payment,14100,Direct Employee Expenses,5001,NAME REDACTED,22/03/2017,119788,"2,750.88",Revenue,Arnold Clark Finance Ltd,20685
Chorley Borough Council,http://statistics.data.gov.uk/id/local-authority/30UE,Unapportionable Central OHeads,1009,Policy & Governance,Car Leasing Payment,14100,Direct Employee Expenses,5001,Employee expenses,22/03/2017,119788,218.69,Revenue,Arnold Clark Finance Ltd,20685
Chorley Borough Council,http://statistics.data.gov.uk/id/local-authority/30UE,Building Control,1090,Policy & Governance,Car Leasing Payment,14100,Direct Employee Expenses,5001,NAME REDACTED,29/03/2017,119979,"4,752.48",Revenue,Arnold Clark Finance Ltd,20685
Chorley Borough Council,http://statistics.data.gov.uk/id/local-authority/30UE,Building Control,1090,Policy & Governance,Car Leasing Payment,14100,Direct Employee Expenses,5001,Employee expenses,29/03/2017,119979,447.22,Revenue,Arnold Clark Finance Ltd,20685
Chorley Borough Council,http://statistics.data.gov.uk/id/local-authority/30UE,Housing Strategy,1069,Policy & Governance,Car Leasing Payment,14100,Direct Employee Expenses,5001,NAME REDACTED,29/03/2017,120030,411.42,Revenue,Arnold Clark Finance Ltd,20685
Chorley Borough Council,http://statistics.data.gov.uk/id/local-authority/30UE,Housing Strategy,1069,Policy & Governance,Car Leasing Payment,14100,Direct Employee Expenses,5001,Employee expenses,29/03/2017,120030,37.62,Revenue,Arnold Clark Finance Ltd,20685
Chorley Borough Council,http://statistics.data.gov.uk/id/local-authority/30UE,Democratic Represent and  Mgnt,1007,Policy & Governance,Grants To Other Organisations,40127,Grants and Subscriptions,5031,grant,15/03/2017,119508,250.00,Revenue,Astley & Buckshaw Junior FC,59140
Chorley Borough Council,http://statistics.data.gov.uk/id/local-authority/30UE,Corporate Management,1008,Customer & Digital,Burial Exps - P H Act 1984,40209,Miscellaneous Expenses,5034,"Burial 17.03.17 Grave No 628 Section D, Religion EC, Chorley Cemetery",29/03/2017,120045,850.00,Revenue,B Livesey Limited,17943
Chorley Borough Council,http://statistics.data.gov.uk/id/local-authority/30UE,Central Support Services,1009,Policy & Governance,Computer Equipment-Purchase,40098,Communication and Computing,5028,NAME REDACTED - 03/01/17 - Amazon UK Marketplace - 5 x Techgear Apple Ipad Air 2,21/03/2017,119570,19.40,Revenue,Barclaycard Commercial,59848
Chorley Borough Council,http://statistics.data.gov.uk/id/local-authority/30UE,Corporate Management,1008,Policy & Governance,Training Course Fees,17010,Indirect Employee Expenses,5002,NAME REDACTED - 23/01/17 - Columbus Trainline - Travel insurance on train tickets,21/03/2017,119570,1.00,Revenue,Barclaycard Commercial,59848
Chorley Borough Council,http://statistics.data.gov.uk/id/local-authority/30UE,Corporate Management,1008,Policy & Governance,Training Course Fees,17010,Indirect Employee Expenses,5002,NAME REDACTED - 23/01/17 - Columbus Trainline - Travel insurance on train tickets,21/03/2017,119570,1.00,Revenue,Barclaycard Commercial,59848
Chorley Borough Council,http://statistics.data.gov.uk/id/local-authority/30UE,Corporate Management,1008,Policy & Governance,Training Course Fees,17010,Indirect Employee Expenses,5002,NAME REDACTED - 23/01/17 - Trainline - Train ticket to London,21/03/2017,119570,278.92,Revenue,Barclaycard Commercial,59848
Chorley Borough Council,http://statistics.data.gov.uk/id/local-authority/30UE,Democratic Represent and  Mgnt,1007,Policy & Governance,Members Rail Fares,30033,Public Transport,5019,NAME REDACTED - 26/01/17 - Trainline - Train ticket Wigan to Euston 28/02/17,21/03/2017,119570,182.33,Revenue,Barclaycard Commercial,59848
Chorley Borough Council,http://statistics.data.gov.uk/id/local-authority/30UE,Service Management & Support,1009,Policy & Governance,Vehicle Maintenance,30045,Direct Transport Costs,5016,NAME REDACTED - 16/01/17 - DVLA Vehicle Tax - NU08 KOJ,21/03/2017,119570,232.50,Revenue,Barclaycard Commercial,59848
Chorley Borough Council,http://statistics.data.gov.uk/id/local-authority/30UE,Elections,1012,Policy & Governance,Statutory Notices,40160,Miscellaneous Expenses,5034,NAME REDACTED - 12/01/17 - Facebook - Winter Wonderland,21/03/2017,119570,64.79,Revenue,Barclaycard Commercial,59848
Chorley Borough Council,http://statistics.data.gov.uk/id/local-authority/30UE,Corporate Management,1008,Policy & Governance,Publicity - Advertising,40157,Miscellaneous Expenses,5034,NAME REDACTED - 12/01/17 - Facebook - Market Walk Ad,21/03/2017,119570,223.25,Revenue,Barclaycard Commercial,59848
Chorley Borough Council,http://statistics.data.gov.uk/id/local-authority/30UE,Elections,1012,Policy & Governance,Statutory Notices,40160,Miscellaneous Expenses,5034,NAME REDACTED - 12/01/17 - Facebook - Winter Wonderland,21/03/2017,119570,131.73,Revenue,Barclaycard Commercial,59848
Chorley Borough Council,http://statistics.data.gov.uk/id/local-authority/30UE,Unapportionable Central OHeads,1009,Policy & Governance,Legal Fees,40171,Miscellaneous Expenses,5034,NAME REDACTED - 30/01/17 - HM Courts - 26 Liability Order - NNDR,30/03/2017,120137,78.00,Revenue,Barclaycard Commercial,59848
Chorley Borough Council,http://statistics.data.gov.uk/id/local-authority/30UE,Housing Strategy,1069,Policy & Governance,General Subscriptions,40146,Grants and Subscriptions,5031,NAME REDACTED - 30/01/17 - www.insidehousing.co.uk - renewal of subscription NAME REDACTED,30/03/2017,120137,189.00,Revenue,Barclaycard Commercial,59848
Chorley Borough Council,http://statistics.data.gov.uk/id/local-authority/30UE,Central Support Services,1009,Policy & Governance,Computer Equipment-Purchase,40098,Communication and Computing,5028,NAME REDACTED - 01/02/17 - Amazon UK Marketplace - ict equipment,30/03/2017,120137,23.80,Revenue,Barclaycard Commercial,59848
Chorley Borough Council,http://statistics.data.gov.uk/id/local-authority/30UE,Corporate Management,1008,Policy & Governance,Training Course Fees,17010,Indirect Employee Expenses,5002,NAME REDACTED - 06/02/17 - Columbus Trainline - insurance,30/03/2017,120137,1.00,Revenue,Barclaycard Commercial,59848
Chorley Borough Council,http://statistics.data.gov.uk/id/local-authority/30UE,Corporate Management,1008,Policy & Governance,Training Course Fees,17010,Indirect Employee Expenses,5002,NAME REDACTED - 06/02/17 - Columbus Trainline - insurance,30/03/2017,120137,1.00,Revenue,Barclaycard Commercial,59848
Chorley Borough Council,http://statistics.data.gov.uk/id/local-authority/30UE,Corporate Management,1008,Policy & Governance,Training Course Fees,17010,Indirect Employee Expenses,5002,NAME REDACTED - 06/02/17 - Columbus Trainline - train tickets to Hertford,30/03/2017,120137,256.99,Revenue,Barclaycard Commercial,59848
Chorley Borough Council,http://statistics.data.gov.uk/id/local-authority/30UE,Business Support,1095,Policy & Governance,Promotional Expenses,40159,Miscellaneous Expenses,5034,NAME REDACTED - 13/02/17 - 1&1 Internet Ltd - Internet domain/line for NAME REDACTED,30/03/2017,120137,20.18,Revenue,Barclaycard Commercial,59848
Chorley Borough Council,http://statistics.data.gov.uk/id/local-authority/30UE,Central Support Services,1009,Policy & Governance,Computer Equipment-Purchase,40098,Communication and Computing,5028,NAME REDACTED - 15/02/17 - Paypal Benchmark - ipad case,30/03/2017,120137,25.99,Revenue,Barclaycard Commercial,59848
Chorley Borough Council,http://statistics.data.gov.uk/id/local-authority/30UE,Central Support Services,1009,Policy & Governance,Staff Rail Fares,30032,Public Transport,5019,NAME REDACTED - 17/02/17 - Trainline - tickets to Nottingham for NAME REDACTED,30/03/2017,120137,77.88,Revenue,Barclaycard Commercial,59848
Chorley Borough Council,http://statistics.data.gov.uk/id/local-authority/30UE,Democratic Represent and  Mgnt,1007,Policy & Governance,Miscellaneous Expenses,40200,Miscellaneous Expenses,5034,NAME REDACETD - 21/02/17 - Eden Florists - for constituent after heart attack,30/03/2017,120137,34.50,Revenue,Barclaycard Commercial,59848
Chorley Borough Council,http://statistics.data.gov.uk/id/local-authority/30UE,Corporate Management,1008,Policy & Governance,Training Course Fees,17010,Indirect Employee Expenses,5002,NAME REDACTED - 22/02/17 - Hertford House Hotel - Hotel booking,30/03/2017,120137,88.50,Revenue,Barclaycard Commercial,59848
Chorley Borough Council,http://statistics.data.gov.uk/id/local-authority/30UE,Housing Strategy,1069,Policy & Governance,Travel & Subsistence - Staff,40115,Expenses,5030,NAME REDACTED - 24/02/17 - Trainline - ticket to Leeds for NAME REDACTED,30/03/2017,120137,24.17,Revenue,Barclaycard Commercial,59848
Chorley Borough Council,http://statistics.data.gov.uk/id/local-authority/30UE,Unapportionable Central OHeads,1009,Policy & Governance,Legal Fees,40171,Miscellaneous Expenses,5034,NAME REDACTED - 30/01/17 - HM Courts - 263 liability orders - CT,30/03/2017,120137,789.00,Revenue,Barclaycard Commercial,59848
Chorley Borough Council,http://statistics.data.gov.uk/id/local-authority/30UE,Unapportionable Central OHeads,1009,Policy & Governance,Legal Fees,40171,Miscellaneous Expenses,5034,NAME REDACTED - 20/01/17 - HM Courts - 5 liability orders - CT,30/03/2017,120137,15.00,Revenue,Barclaycard Commercial,59848
Chorley Borough Council,http://statistics.data.gov.uk/id/local-authority/30UE,Unapportionable Central OHeads,1009,Policy & Governance,Legal Fees,40171,Miscellaneous Expenses,5034,NAME REDACTED - 20/01/17 - HM Courts - 222 liability order - CT,30/03/2017,120137,666.00,Revenue,Barclaycard Commercial,59848
Chorley Borough Council,http://statistics.data.gov.uk/id/local-authority/30UE,Central Support Services,1009,Policy & Governance,Training Allowance,14005,Direct Employee Expenses,5001,NAME REDACTED - 09/02/17 - Tune Hotels - Accommodation in London for a course,30/03/2017,120137,99.00,Revenue,Barclaycard Commercial,59848
Chorley Borough Council,http://statistics.data.gov.uk/id/local-authority/30UE,Central Support Services,1009,Policy & Governance,Training Allowance,14005,Direct Employee Expenses,5001,NAME REDACTED - 09/02/17 - Trainline - rail travel member of staff attending course in London,30/03/2017,120137,95.78,Revenue,Barclaycard Commercial,59848
Chorley Borough Council,http://statistics.data.gov.uk/id/local-authority/30UE,Central Support Services,1009,Policy & Governance,Training Allowance,14005,Direct Employee Expenses,5001,NAME REDACTED - 13/02/17 - Trainline - rail travel member of staff attending course in London,30/03/2017,120137,100.37,Revenue,Barclaycard Commercial,59848
Chorley Borough Council,http://statistics.data.gov.uk/id/local-authority/30UE,Service Management & Support,1009,Policy & Governance,Tools & Equipment - Purchase,40003,"Equipment, Furniture & Materia",5023,NAME REDACTED - 30/01/17 - www.lockdoctor.biz - new keys cut,30/03/2017,120137,109.95,Revenue,Barclaycard Commercial,59848
Chorley Borough Council,http://statistics.data.gov.uk/id/local-authority/30UE,Service Management & Support,1009,Policy & Governance,Vehicle Maintenance,30045,Direct Transport Costs,5016,NAME REDACTED - 07/02/17 - DVLA Vehicle Tax - PO15 VHE,30/03/2017,120137,232.50,Revenue,Barclaycard Commercial,59848
Chorley Borough Council,http://statistics.data.gov.uk/id/local-authority/30UE,Service Management & Support,1009,Policy & Governance,Vehicle Maintenance,30045,Direct Transport Costs,5016,NAME REDACTED - 07/02/17 - DVLA Vehicle Tax - PO15 VHD,30/03/2017,120137,232.50,Revenue,Barclaycard Commercial,59848
Chorley Borough Council,http://statistics.data.gov.uk/id/local-authority/30UE,Service Management & Support,1009,Policy & Governance,Vehicle Maintenance,30045,Direct Transport Costs,5016,NAME REDACETD - 07/02/17 - DVLA Vehicle Tax - PO15 VFZ,30/03/2017,120137,232.50,Revenue,Barclaycard Commercial,59848
Chorley Borough Council,http://statistics.data.gov.uk/id/local-authority/30UE,Service Management & Support,1009,Policy & Governance,Vehicle Maintenance,30045,Direct Transport Costs,5016,NAME REDACTED - 07/02/17 - DVLA Vehicle Tax - PO15 YWB,30/03/2017,120137,232.50,Revenue,Barclaycard Commercial,59848
Chorley Borough Council,http://statistics.data.gov.uk/id/local-authority/30UE,Service Management & Support,1009,Policy & Governance,Vehicle Maintenance,30045,Direct Transport Costs,5016,NAME REDACTED - 07/02/17 - DVLA Vehicle Tax - PO15 VHF,30/03/2017,120137,232.50,Revenue,Barclaycard Commercial,59848
Chorley Borough Council,http://statistics.data.gov.uk/id/local-authority/30UE,Democratic Represent and  Mgnt,1007,Policy & Governance,Miscellaneous Expenses,40200,Miscellaneous Expenses,5034,NAME REDACTED - 01/02/17 - www.ukwristbands.com - gold wristbands for Civic,30/03/2017,120137,20.00,Revenue,Barclaycard Commercial,59848
Chorley Borough Council,http://statistics.data.gov.uk/id/local-authority/30UE,Unapportionable Central OHeads,1009,Policy & Governance,Publicity - Advertising,40157,Miscellaneous Expenses,5034,"NAME REDACTED - 02/02/17 - Facebook - adverts for promoting Yarrow Valley CP , New Year and good places to walk",30/03/2017,120137,163.99,Revenue,Barclaycard Commercial,59848
Chorley Borough Council,http://statistics.data.gov.uk/id/local-authority/30UE,Unapportionable Central OHeads,1009,Policy & Governance,Exhibitions & Special Events,40158,Miscellaneous Expenses,5034,NAME REDACTED - 09/02/17 - Urban Hygiene Ltd - Anti graffiti coating clear glaze,30/03/2017,120137,159.95,Revenue,Barclaycard Commercial,59848
Chorley Borough Council,http://statistics.data.gov.uk/id/local-authority/30UE,Corporate Management,1008,Policy & Governance,Bank Charges,40151,Miscellaneous Expenses,5034,Bank Charges,21/03/2017,119513,343.40,Revenue,Barclaycard Merchant Services,61601
Chorley Borough Council,http://statistics.data.gov.uk/id/local-authority/30UE,Unapportionable Central OHeads,1009,Customer & Digital,Consultants` Fees,40077,Services,5027,"Support as agreed with Customer, Transactional and ICT services.",15/03/2017,119551,"1,800.00",Revenue,REDACTED PERSONAL DATA,22238
Chorley Borough Council,http://statistics.data.gov.uk/id/local-authority/30UE,Unapportionable Central OHeads,1009,Customer & Digital,Consultants` Fees,40077,Services,5027,"Support as agreed with Customer, Transactional and ICT services.",29/03/2017,119978,75.00,Revenue,REDACTED PERSONAL DATA,22238
Chorley Borough Council,http://statistics.data.gov.uk/id/local-authority/30UE,Unapportionable Central OHeads,1009,Customer & Digital,Consultants` Fees,40077,Services,5027,Support as agreed with transactional and ICT services 12.5 days at 150.00 per day,29/03/2017,119978,"1,875.00",Revenue,REDACTED PERSONAL DATA,22238
Chorley Borough Council,http://statistics.data.gov.uk/id/local-authority/30UE,Business Support,1095,Business Development & Growth,Grants To Other Organisations,40127,Grants and Subscriptions,5031,subsidy 1,31/03/2017,120055,"3,026.93",Revenue,NAME REDACTED,76500
Chorley Borough Council,http://statistics.data.gov.uk/id/local-authority/30UE,Planning Policy,1092,Business Development & Growth,Furniture - Purchase,40012,"Equipment, Furniture & Materia",5023,New Embrace Posture Chair.  Code 10851. Standard Delivery & Set up.  Code 10010 As per Quote No: 121294,22/03/2017,119754,366.67,Revenue,Bennett Workplace Solutions Limited,62734
Chorley Borough Council,http://statistics.data.gov.uk/id/local-authority/30UE,Unapportionable Central OHeads,1009,Business Development & Growth,General Repairs - Reactive,20004,Repairs Maintenance & Alts,5005,Cost to replace control equipment at Chorley Surgery as per ORDER7977.,15/03/2017,119040,"2,384.00",Revenue,Black Box Security Alarm Systems Ltd,76404
Chorley Borough Council,http://statistics.data.gov.uk/id/local-authority/30UE,Democratic Represent and  Mgnt,1007,Policy & Governance,Grants To Other Organisations,40127,Grants and Subscriptions,5031,grant,29/03/2017,119838,320.00,Revenue,Blackburn Road & Great Knowley Residents,76613
Chorley Borough Council,http://statistics.data.gov.uk/id/local-authority/30UE,Democratic Represent and  Mgnt,1007,Chief Executive,Other Fees,40212,Miscellaneous Expenses,5034,Growth Lancs 16/17 -  Part Year Contribution to Growth  - Lancashire 2016-17 - Agreed at Board Meeting on 24 October 2017,01/03/2017,119192,"15,800.00",Revenue,Blackburn with Darwen Borough Council,21000
Chorley Borough Council,http://statistics.data.gov.uk/id/local-authority/30UE,Central Support Services,1009,Policy & Governance,External Contractor,40198,Miscellaneous Expenses,5034,Provide payroll service for the period July 17 - MAR 18,03/03/2017,119345,"7,034.18",Revenue,Blackpool Borough Council,16518
Chorley Borough Council,http://statistics.data.gov.uk/id/local-authority/30UE,Central Support Services,1009,Policy & Governance,External Contractor,40198,Miscellaneous Expenses,5034,as hoc,03/03/2017,119345,30.00,Revenue,Blackpool Borough Council,16518
Chorley Borough Council,http://statistics.data.gov.uk/id/local-authority/30UE,Central Support Services,1009,Policy & Governance,External Contractor,40198,Miscellaneous Expenses,5034,Provide payroll service for the period July 17 - MAR 18,03/03/2017,119346,"7,207.46",Revenue,Blackpool Borough Council,16518
Chorley Borough Council,http://statistics.data.gov.uk/id/local-authority/30UE,Capital,Capital,Customer & Digital,Surveyors Fees,3021,Capital Expenditure,Capital,"Consultancy fees for finalising design, costs and LCC approval for proposed Duke Street 1-way traffic scheme",15/03/2017,119552,"1,285.00",Capital,Borough of Pendle (Engineering and Design ,54929
Chorley Borough Council,http://statistics.data.gov.uk/id/local-authority/30UE,Central Support Services,1009,Early Intervention,Miscellaneous Expenses,40200,Miscellaneous Expenses,5034,restoration of memorial,01/03/2017,119206,"2,000.00",Revenue,Bretherton Parish Council,17108
Chorley Borough Council,http://statistics.data.gov.uk/id/local-authority/30UE,Homelessness,1075,Business Development & Growth,Gas,20014,Energy Costs,5006,cotswold house,01/03/2017,119086,519.61,Revenue,British Gas Business,22242
Chorley Borough Council,http://statistics.data.gov.uk/id/local-authority/30UE,Democratic Represent and  Mgnt,1007,Business Development & Growth,Gas,20014,Energy Costs,5006,coach house,01/03/2017,119086,415.54,Revenue,British Gas Business,22242
Chorley Borough Council,http://statistics.data.gov.uk/id/local-authority/30UE,Community Development,1097,Business Development & Growth,Gas,20014,Energy Costs,5006,accounting,01/03/2017,119086,72.71,Revenue,British Gas Business,22242
Chorley Borough Council,http://statistics.data.gov.uk/id/local-authority/30UE,Unapportionable Central OHeads,1009,Business Development & Growth,Gas,20014,Energy Costs,5006,bengal street,01/03/2017,119086,323.65,Revenue,British Gas Business,22242
Chorley Borough Council,http://statistics.data.gov.uk/id/local-authority/30UE,Democratic Represent and  Mgnt,1007,Business Development & Growth,Gas,20014,Energy Costs,5006,astley cottage,01/03/2017,119086,199.29,Revenue,British Gas Business,22242
Chorley Borough Council,http://statistics.data.gov.uk/id/local-authority/30UE,Democratic Represent and  Mgnt,1007,Business Development & Growth,Gas,20014,Energy Costs,5006,clayton brook cc,01/03/2017,119086,153.09,Revenue,British Gas Business,22242
Chorley Borough Council,http://statistics.data.gov.uk/id/local-authority/30UE,Democratic Represent and  Mgnt,1007,Business Development & Growth,Gas,20014,Energy Costs,5006,astley cc,01/03/2017,119086,214.77,Revenue,British Gas Business,22242
Chorley Borough Council,http://statistics.data.gov.uk/id/local-authority/30UE,Democratic Represent and  Mgnt,1007,Business Development & Growth,Gas,20014,Energy Costs,5006,asltey farm house,01/03/2017,119086,97.84,Revenue,British Gas Business,22242
Chorley Borough Council,http://statistics.data.gov.uk/id/local-authority/30UE,Democratic Represent and  Mgnt,1007,Business Development & Growth,Gas,20014,Energy Costs,5006,eaves green cc,01/03/2017,119086,187.88,Revenue,British Gas Business,22242
Chorley Borough Council,http://statistics.data.gov.uk/id/local-authority/30UE,Unapportionable Central OHeads,1009,Business Development & Growth,Gas,20014,Energy Costs,5006,union street,01/03/2017,119086,"1,107.28",Revenue,British Gas Business,22242
Chorley Borough Council,http://statistics.data.gov.uk/id/local-authority/30UE,Democratic Represent and  Mgnt,1007,Business Development & Growth,Gas,20014,Energy Costs,5006,astley hall,01/03/2017,119086,"1,542.69",Revenue,British Gas Business,22242
Chorley Borough Council,http://statistics.data.gov.uk/id/local-authority/30UE,Unapportionable Central OHeads,1009,Business Development & Growth,Gas,20014,Energy Costs,5006,town hall,01/03/2017,119086,"1,107.95",Revenue,British Gas Business,22242
Chorley Borough Council,http://statistics.data.gov.uk/id/local-authority/30UE,Homelessness,1075,Business Development & Growth,Gas,20014,Energy Costs,5006,cotsowld,22/03/2017,119847,473.75,Revenue,British Gas Business,22242
Chorley Borough Council,http://statistics.data.gov.uk/id/local-authority/30UE,Democratic Represent and  Mgnt,1007,Business Development & Growth,Gas,20014,Energy Costs,5006,coach house,22/03/2017,119847,378.93,Revenue,British Gas Business,22242
Chorley Borough Council,http://statistics.data.gov.uk/id/local-authority/30UE,Community Development,1097,Business Development & Growth,Gas,20014,Energy Costs,5006,accounting,22/03/2017,119847,80.77,Revenue,British Gas Business,22242
Chorley Borough Council,http://statistics.data.gov.uk/id/local-authority/30UE,Unapportionable Central OHeads,1009,Business Development & Growth,Gas,20014,Energy Costs,5006,bengal,22/03/2017,119847,208.47,Revenue,British Gas Business,22242
Chorley Borough Council,http://statistics.data.gov.uk/id/local-authority/30UE,Democratic Represent and  Mgnt,1007,Business Development & Growth,Gas,20014,Energy Costs,5006,astley cottage,22/03/2017,119847,105.98,Revenue,British Gas Business,22242
Chorley Borough Council,http://statistics.data.gov.uk/id/local-authority/30UE,Democratic Represent and  Mgnt,1007,Business Development & Growth,Gas,20014,Energy Costs,5006,clayton brook c,22/03/2017,119847,142.01,Revenue,British Gas Business,22242
Chorley Borough Council,http://statistics.data.gov.uk/id/local-authority/30UE,Democratic Represent and  Mgnt,1007,Business Development & Growth,Gas,20014,Energy Costs,5006,astley vill cc,22/03/2017,119847,193.68,Revenue,British Gas Business,22242
Chorley Borough Council,http://statistics.data.gov.uk/id/local-authority/30UE,Democratic Represent and  Mgnt,1007,Business Development & Growth,Gas,20014,Energy Costs,5006,astley hall farm,22/03/2017,119847,123.43,Revenue,British Gas Business,22242
Chorley Borough Council,http://statistics.data.gov.uk/id/local-authority/30UE,Democratic Represent and  Mgnt,1007,Business Development & Growth,Gas,20014,Energy Costs,5006,eaves green,22/03/2017,119847,166.89,Revenue,British Gas Business,22242
Chorley Borough Council,http://statistics.data.gov.uk/id/local-authority/30UE,Unapportionable Central OHeads,1009,Business Development & Growth,Gas,20014,Energy Costs,5006,union street,22/03/2017,119847,945.80,Revenue,British Gas Business,22242
Chorley Borough Council,http://statistics.data.gov.uk/id/local-authority/30UE,Democratic Represent and  Mgnt,1007,Business Development & Growth,Gas,20014,Energy Costs,5006,astley hall,22/03/2017,119847,"1,286.96",Revenue,British Gas Business,22242
Chorley Borough Council,http://statistics.data.gov.uk/id/local-authority/30UE,Unapportionable Central OHeads,1009,Business Development & Growth,Gas,20014,Energy Costs,5006,town hall,22/03/2017,119847,833.99,Revenue,British Gas Business,22242
Chorley Borough Council,http://statistics.data.gov.uk/id/local-authority/30UE,Homelessness,1075,Business Development & Growth,Gas,20014,Energy Costs,5006,cotswold house,29/03/2017,120033,473.75,Revenue,British Gas Business,22242
Chorley Borough Council,http://statistics.data.gov.uk/id/local-authority/30UE,Democratic Represent and  Mgnt,1007,Business Development & Growth,Gas,20014,Energy Costs,5006,coach house,29/03/2017,120033,378.93,Revenue,British Gas Business,22242
Chorley Borough Council,http://statistics.data.gov.uk/id/local-authority/30UE,Community Development,1097,Business Development & Growth,Gas,20014,Energy Costs,5006,accounting,29/03/2017,120033,80.77,Revenue,British Gas Business,22242
Chorley Borough Council,http://statistics.data.gov.uk/id/local-authority/30UE,Unapportionable Central OHeads,1009,Business Development & Growth,Gas,20014,Energy Costs,5006,bengal street,29/03/2017,120033,208.47,Revenue,British Gas Business,22242
Chorley Borough Council,http://statistics.data.gov.uk/id/local-authority/30UE,Democratic Represent and  Mgnt,1007,Business Development & Growth,Gas,20014,Energy Costs,5006,astley cottage,29/03/2017,120033,105.98,Revenue,British Gas Business,22242
Chorley Borough Council,http://statistics.data.gov.uk/id/local-authority/30UE,Democratic Represent and  Mgnt,1007,Business Development & Growth,Gas,20014,Energy Costs,5006,clayton brook cc,29/03/2017,120033,142.01,Revenue,British Gas Business,22242
Chorley Borough Council,http://statistics.data.gov.uk/id/local-authority/30UE,Democratic Represent and  Mgnt,1007,Business Development & Growth,Gas,20014,Energy Costs,5006,astley vill cc,29/03/2017,120033,193.68,Revenue,British Gas Business,22242
Chorley Borough Council,http://statistics.data.gov.uk/id/local-authority/30UE,Democratic Represent and  Mgnt,1007,Business Development & Growth,Gas,20014,Energy Costs,5006,astley hall farm house,29/03/2017,120033,123.43,Revenue,British Gas Business,22242
Chorley Borough Council,http://statistics.data.gov.uk/id/local-authority/30UE,Democratic Represent and  Mgnt,1007,Business Development & Growth,Gas,20014,Energy Costs,5006,eaves green,29/03/2017,120033,166.89,Revenue,British Gas Business,22242
Chorley Borough Council,http://statistics.data.gov.uk/id/local-authority/30UE,Unapportionable Central OHeads,1009,Business Development & Growth,Gas,20014,Energy Costs,5006,union street,29/03/2017,120033,945.80,Revenue,British Gas Business,22242
Chorley Borough Council,http://statistics.data.gov.uk/id/local-authority/30UE,Democratic Represent and  Mgnt,1007,Business Development & Growth,Gas,20014,Energy Costs,5006,astley hall,29/03/2017,120033,"1,286.96",Revenue,British Gas Business,22242
Chorley Borough Council,http://statistics.data.gov.uk/id/local-authority/30UE,Unapportionable Central OHeads,1009,Business Development & Growth,Gas,20014,Energy Costs,5006,town hall,29/03/2017,120033,"1,010.41",Revenue,British Gas Business,22242
Chorley Borough Council,http://statistics.data.gov.uk/id/local-authority/30UE,Central Support Services,1009,Early Intervention,Telephones - Rentals,40083,Communication and Computing,5028,cctv,22/03/2017,119430,"1,768.36",Revenue,BT Redcare,21115
Chorley Borough Council,http://statistics.data.gov.uk/id/local-authority/30UE,Business Support,1095,Business Development & Growth,Grants To Other Organisations,40127,Grants and Subscriptions,5031,grant,24/03/2017,119987,"3,000.00",Revenue,Buckshaw Bunnies Childcare Gelston Manor Day,66660
Chorley Borough Council,http://statistics.data.gov.uk/id/local-authority/30UE,Capital,Capital,Business Development & Growth,Main Contractor,3007,Capital Expenditure,Capital,Retention costs for Astley Hall works.,15/03/2017,118067,"1,786.29",Capital,Bullen Conservation Ltd,68424
Chorley Borough Council,http://statistics.data.gov.uk/id/local-authority/30UE,Democratic Represent and  Mgnt,1007,Policy & Governance,Building Services Maintenance Other,20076,Fixtures and Fittings,5010,Carry out works as per quotation no Q4989. Improvement works to landing timber floor.,17/03/2017,119712,"12,429.85",Revenue,Bullen Conservation Ltd,68424
Chorley Borough Council,http://statistics.data.gov.uk/id/local-authority/30UE,Service Management & Support,1009,Customer & Digital,Supplies-Grounds Maintenance,40025,"Equipment, Furniture & Materia",5023,"25Kg bags C2 highways fast setting  mortar, product code= 02110551",15/03/2017,119571,876.00,Revenue,C & W BERRY LIMITED,18180
Chorley Borough Council,http://statistics.data.gov.uk/id/local-authority/30UE,Service Management & Support,1009,Customer & Digital,External Contractor,40198,Miscellaneous Expenses,5034,Carryout emptying of interceptor tank and clearing of gullies on a monthly basis at Bengal St Depot as requested,15/03/2017,119241,325.00,Revenue,C J Lyon,16579
Chorley Borough Council,http://statistics.data.gov.uk/id/local-authority/30UE,Service Management & Support,1009,Customer & Digital,External Contractor,40198,Miscellaneous Expenses,5034,Clear gullies at Chorley cemetery as required before repairs to road are carried out,15/03/2017,119547,195.00,Revenue,C J Lyon,16579
Chorley Borough Council,http://statistics.data.gov.uk/id/local-authority/30UE,Service Management & Support,1009,Customer & Digital,External Contractor,40198,Miscellaneous Expenses,5034,Carryout clearing and jetting of culvert at Gough Lane Clayton Brook as required.,15/03/2017,119547,130.00,Revenue,C J Lyon,16579
Chorley Borough Council,http://statistics.data.gov.uk/id/local-authority/30UE,Service Management & Support,1009,Customer & Digital,External Contractor,40198,Miscellaneous Expenses,5034,Carryout jetting works and root removal from drains at Rowan Croft ponds as required,15/03/2017,119547,260.00,Revenue,C J Lyon,16579
Chorley Borough Council,http://statistics.data.gov.uk/id/local-authority/30UE,Service Management & Support,1009,Customer & Digital,Vehicle Maintenance,30045,Direct Transport Costs,5016,Remove seized up roller wheels supply and fit new roller wheels to Chorley Council skip as required,22/03/2017,119791,789.73,Revenue,C P Davidson & Sons Ltd,21093
Chorley Borough Council,http://statistics.data.gov.uk/id/local-authority/30UE,Service Management & Support,1009,Customer & Digital,Vehicle Maintenance,30045,Direct Transport Costs,5016,Supply 16 x seat covers for drivers seats on Vauxhall Movano 3.5 tonne tippers as requested,22/03/2017,119794,280.16,Revenue,C P Davidson & Sons Ltd,21093
Chorley Borough Council,http://statistics.data.gov.uk/id/local-authority/30UE,Central Support Services,1009,Early Intervention,Miscellaneous Expenses,40200,Miscellaneous Expenses,5034,"4 x 020198 - Battery Pack Assembly, SID Replaceable Battery 1 x 010256 - Carriage",22/03/2017,119577,736.00,Revenue,CA Traffic Ltd,62043
Chorley Borough Council,http://statistics.data.gov.uk/id/local-authority/30UE,Service Management & Support,1009,Customer & Digital,Tools & Equipment - Maintenance,40005,"Equipment, Furniture & Materia",5023,Carryout repairs to 4 poster ramp at Bengal St depot as per your quotation. For the attention of NAME REDACTED,15/03/2017,119336,271.75,Revenue,Calibration & Consultancy Services UK,18882
Chorley Borough Council,http://statistics.data.gov.uk/id/local-authority/30UE,Homelessness,1075,Early Intervention,Grants To Other Organisations,40127,Grants and Subscriptions,5031,Provision of Accommodation Finding Service 1st July 2016 - 30th September 2016 (Q4),22/03/2017,119486,"6,000.00",Revenue,Calico Enterprise,73338
Chorley Borough Council,http://statistics.data.gov.uk/id/local-authority/30UE,Homelessness,1075,Early Intervention,Grants To Other Organisations,40127,Grants and Subscriptions,5031,Provision of Accommodation Finding Service 1st October 2016 - 31st December 2016 (Q1 Extension),22/03/2017,119486,"6,000.00",Revenue,Calico Enterprise,73338
Chorley Borough Council,http://statistics.data.gov.uk/id/local-authority/30UE,Homelessness,1075,Early Intervention,Grants To Other Organisations,40127,Grants and Subscriptions,5031,Provision of Accommodation Finding Service 1st January 2017 - 31st March 2017 (Q2 Extension),22/03/2017,119486,"6,000.00",Revenue,Calico Enterprise,73338
Chorley Borough Council,http://statistics.data.gov.uk/id/local-authority/30UE,Unapportionable Central OHeads,1009,Customer & Digital,Emergency Call Out System,40096,Communication and Computing,5028,out of hours,24/03/2017,119530,482.08,Revenue,CallCare Ltd,20257
Chorley Borough Council,http://statistics.data.gov.uk/id/local-authority/30UE,Service Management & Support,1009,Customer & Digital,Tools & Equipment - Maintenance,40005,"Equipment, Furniture & Materia",5023,Supply and install fuel gauges at Bengal St depot fuel station PR7 1SA as per your Quote BAR 55852 from NAME REDACTED,01/03/2017,119003,"2,230.00",Revenue,Cameron Forecourt Ltd,19884
Chorley Borough Council,http://statistics.data.gov.uk/id/local-authority/30UE,Central Support Services,1009,Customer & Digital,Computer Equipment-Purchase,40098,Communication and Computing,5028,1 x NETWORK SCANNER SCANFRONT300EP (part number 6587B002AA),10/03/2017,118936,800.00,Revenue,Canon (UK) Ltd,17492
Chorley Borough Council,http://statistics.data.gov.uk/id/local-authority/30UE,Central Support Services,1009,Customer & Digital,Computer Software-Purchase,40100,Communication and Computing,5028,1 x EC OFFICE V5 3Y GOV@E (part number 2216V276),10/03/2017,118936,600.00,Revenue,Canon (UK) Ltd,17492
Chorley Borough Council,http://statistics.data.gov.uk/id/local-authority/30UE,Corporate Management,1008,Policy & Governance,Treasury Management Service,40065,Services,5027,Treasury Services for the financial year 2016-17,03/03/2017,119369,"7,275.00",Revenue,Capita Treasury Solutions Ltd,16428
Chorley Borough Council,http://statistics.data.gov.uk/id/local-authority/30UE,Corporate Management,1008,Customer & Digital,Other Contributions,40145,Grants and Subscriptions,5031,ADDRESS REDACTED,22/03/2017,119844,"4,706.00",Revenue,NAME REDACTED,73895
Chorley Borough Council,http://statistics.data.gov.uk/id/local-authority/30UE,Unapportionable Central OHeads,1009,Policy & Governance,Miscellaneous Expenses,40200,Miscellaneous Expenses,5034,Prize money for the Chorley Grand Prix 2017,15/03/2017,119485,"2,800.00",Revenue,NAME REDACTED,69859
Chorley Borough Council,http://statistics.data.gov.uk/id/local-authority/30UE,Parking Services,1066,Business Development & Growth,Tools & Equipment - Purchase,40003,"Equipment, Furniture & Materia",5023,Please supply: x2 Honeywell 99EX Handheld @ 1120.59 each,29/03/2017,118166,"2,241.18",Revenue,Chipside Ltd,22063
Chorley Borough Council,http://statistics.data.gov.uk/id/local-authority/30UE,Parking Services,1066,Business Development & Growth,Tools & Equipment - Purchase,40003,"Equipment, Furniture & Materia",5023,x2 Honeywell 99EX Leather Case @ 33.35 each,29/03/2017,118166,66.70,Revenue,Chipside Ltd,22063
Chorley Borough Council,http://statistics.data.gov.uk/id/local-authority/30UE,Parking Services,1066,Business Development & Growth,Tools & Equipment - Purchase,40003,"Equipment, Furniture & Materia",5023,x2 QRC3 Honeywell 99EX Leather Case - Belt Loop @ 7.43 each,29/03/2017,118166,14.86,Revenue,Chipside Ltd,22063
Chorley Borough Council,http://statistics.data.gov.uk/id/local-authority/30UE,Parking Services,1066,Business Development & Growth,Tools & Equipment - Purchase,40003,"Equipment, Furniture & Materia",5023,x1 Honeywell 99EX Single Docking Station,29/03/2017,118166,342.55,Revenue,Chipside Ltd,22063
Chorley Borough Council,http://statistics.data.gov.uk/id/local-authority/30UE,Parking Services,1066,Business Development & Growth,Tools & Equipment - Purchase,40003,"Equipment, Furniture & Materia",5023,x2 Seiko - DPU- S445 - Printer Kit (UK) @ 283.16 each,29/03/2017,118166,566.32,Revenue,Chipside Ltd,22063
Chorley Borough Council,http://statistics.data.gov.uk/id/local-authority/30UE,Parking Services,1066,Business Development & Growth,Tools & Equipment - Purchase,40003,"Equipment, Furniture & Materia",5023,x2 Seiko - DPU- S445 - Leather case @ 26.98 each,29/03/2017,118166,53.96,Revenue,Chipside Ltd,22063
Chorley Borough Council,http://statistics.data.gov.uk/id/local-authority/30UE,Parking Services,1066,Business Development & Growth,External Contractors,50008,Private Contractors,5042,Processing 027 - Apportionment of ongoing technical costs as agreed between Chipside  and Lancashire district Councils ,24/03/2017,119592,"1,306.16",Revenue,Chipside Ltd,22063
Chorley Borough Council,http://statistics.data.gov.uk/id/local-authority/30UE,Parking Services,1066,Business Development & Growth,External Contractors,50008,Private Contractors,5042,Processing001 - Notice Processing Services April 16 - September 16 @ 2.91 per pcn,22/03/2017,119593,686.76,Revenue,Chipside Ltd,22063
Chorley Borough Council,http://statistics.data.gov.uk/id/local-authority/30UE,Parking Services,1066,Business Development & Growth,External Contractors,50008,Private Contractors,5042,Processing001 - Notice Processing Services April 16 - September 16 @ 2.91 per pcn,22/03/2017,119594,718.57,Revenue,Chipside Ltd,22063
Chorley Borough Council,http://statistics.data.gov.uk/id/local-authority/30UE,Parking Services,1066,Business Development & Growth,External Contractors,50008,Private Contractors,5042,PROCESSING010 Provision of the agreed back office permit processing service including agreed ICT  systems. Reminder Letters,22/03/2017,119594,338.16,Revenue,Chipside Ltd,22063
Chorley Borough Council,http://statistics.data.gov.uk/id/local-authority/30UE,Parking Services,1066,Business Development & Growth,External Contractors,50008,Private Contractors,5042,PROCESSING010 Provision of the agreed back office permit processing Reminder Letters,22/03/2017,119594,488.42,Revenue,Chipside Ltd,22063
Chorley Borough Council,http://statistics.data.gov.uk/id/local-authority/30UE,Parking Services,1066,Business Development & Growth,External Contractors,50008,Private Contractors,5042,Processing001 - Notice Processing Services April 16 - September 16  @ 2.91 per pcn,17/03/2017,119597,846.81,Revenue,Chipside Ltd,22063
Chorley Borough Council,http://statistics.data.gov.uk/id/local-authority/30UE,Corporate Management,1008,Early Intervention,Taxi Testing & Vehicle Safety Report,40234,Services,5027,mot,10/03/2017,119429,822.75,Revenue,Chorley Autocare Ltd,17110
Chorley Borough Council,http://statistics.data.gov.uk/id/local-authority/30UE,Corporate Management,1008,Early Intervention,Taxi Testing & Vehicle Safety Report,40234,Services,5027,taxi test,10/03/2017,119429,128.25,Revenue,Chorley Autocare Ltd,17110
Chorley Borough Council,http://statistics.data.gov.uk/id/local-authority/30UE,Community Development,1097,Policy & Governance,Core Funding Grants,40133,Grants and Subscriptions,5031,small comm funding,01/03/2017,119046,320.00,Revenue,Chorley Pensioners Association,21454
Chorley Borough Council,http://statistics.data.gov.uk/id/local-authority/30UE,Unapportionable Central OHeads,1009,Business Development & Growth,General Repairs - Reactive,20004,Repairs Maintenance & Alts,5005,Reactive Blanket Order to End of March 2017,24/03/2017,119327,288.00,Revenue,Chubb Electronic Sec Sys Ltd,16228
Chorley Borough Council,http://statistics.data.gov.uk/id/local-authority/30UE,Unapportionable Central OHeads,1009,Policy & Governance,General Subscriptions,40146,Grants and Subscriptions,5031,Finance Advisory Network for 1st April 2017 to 31st March 2018,22/03/2017,119578,"1,522.50",Revenue,CIPFA Business Ltd,16247
Chorley Borough Council,http://statistics.data.gov.uk/id/local-authority/30UE,Unapportionable Central OHeads,1009,Policy & Governance,General Subscriptions,40146,Grants and Subscriptions,5031,Finance Advisory Network for the period 1 April 2017 to 31 March 2018,22/03/2017,119579,"4,270.00",Revenue,CIPFA Business Ltd,16247
Chorley Borough Council,http://statistics.data.gov.uk/id/local-authority/30UE,Unapportionable Central OHeads,1009,Policy & Governance,Publications,40054,"Printing, Stationery & General",5026,Cash Flow Toolkit update 3 year option for Chorley Council 2016/17 - 2018/19,29/03/2017,120012,"1,500.00",Revenue,CIPFA Business Ltd,16247
Chorley Borough Council,http://statistics.data.gov.uk/id/local-authority/30UE,Unapportionable Central OHeads,1009,Policy & Governance,Publications,40054,"Printing, Stationery & General",5026,Cash Flow Toolkit update 3 year option for South Ribble Borough Council 2016/17 - 2018/19,29/03/2017,120016,"1,500.00",Revenue,CIPFA Business Ltd,16247
Chorley Borough Council,http://statistics.data.gov.uk/id/local-authority/30UE,Economic Development,1096,Policy & Governance,Tools & Equipment - Purchase,40003,"Equipment, Furniture & Materia",5023,12 x corner legs @ 25 each 6 centre legs @ 25 each 50 Nuts and bolts free of charge,29/03/2017,120023,450.00,Revenue,City B Group Ltd,47300
Chorley Borough Council,http://statistics.data.gov.uk/id/local-authority/30UE,Unapportionable Central OHeads,1009,Policy & Governance,Computer Software-Additional,40102,Communication and Computing,5028,software and services as per quotation DEC0816 from NAME REDACTED to include: Purchase card module Implementation,03/03/2017,118888,"21,495.00",Revenue,Civica UK Limited,17463
Chorley Borough Council,http://statistics.data.gov.uk/id/local-authority/30UE,Unapportionable Central OHeads,1009,Policy & Governance,IT Software - Annual Licences,40101,Communication and Computing,5028,Year 2 of 3 of Hosted Civica ICON Contract ICO2193CHO-A,29/03/2017,119760,"15,220.83",Revenue,Civica UK Limited,17463
Chorley Borough Council,http://statistics.data.gov.uk/id/local-authority/30UE,Unapportionable Central OHeads,1009,Business Development & Growth,Planned Maintenance,20006,Repairs Maintenance & Alts,5005,2nd Blanket PPM works for 2016.,29/03/2017,119951,368.00,Revenue,Classic Lifts Limited,20897
Chorley Borough Council,http://statistics.data.gov.uk/id/local-authority/30UE,Recognised Cap Grants & Conts,,Business Development & Growth,Contributions Parish Councils,40144,Grants and Subscriptions,5031,cil,31/03/2017,120119,"19,076.70",Revenue,Clayton-Le-Woods Parish Coun.,17024
Chorley Borough Council,http://statistics.data.gov.uk/id/local-authority/30UE,Democratic Represent and  Mgnt,1007,Business Development & Growth,Maintenance/Nature Reserves,20045,Grounds Maintenance Costs,5013,Planting of a hedgerow on Osborne Drive Amenity Open Space.  Double staggered hedge of hawthorn and blackthorn mixed,29/03/2017,120038,551.80,Revenue,Conservation Contracts North West,20520
Chorley Borough Council,http://statistics.data.gov.uk/id/local-authority/30UE,Unapportionable Central OHeads,1009,Business Development & Growth,General Repairs - Reactive,20004,Repairs Maintenance & Alts,5005,Blanket reactive repairs from October 2016.,15/03/2017,119405,256.00,Revenue,Corlett Electrical Eng Co Ltd,16271
Chorley Borough Council,http://statistics.data.gov.uk/id/local-authority/30UE,Unapportionable Central OHeads,1009,Business Development & Growth,General Repairs - Reactive,20004,Repairs Maintenance & Alts,5005,Reactive blanket order to end of March 2017,29/03/2017,119695,875.50,Revenue,Corlett Electrical Eng Co Ltd,16271
Chorley Borough Council,http://statistics.data.gov.uk/id/local-authority/30UE,Economic Development,1096,Business Development & Growth,General Repairs - Reactive,20004,Repairs Maintenance & Alts,5005,Chorley Market Hall Office  - electrical supply for Christmas Lights 2016 Job ID 14651,29/03/2017,119965,468.73,Revenue,Corlett Electrical Eng Co Ltd,16271
Chorley Borough Council,http://statistics.data.gov.uk/id/local-authority/30UE,Capital,Capital,Business Development & Growth,Main Contractor,3007,Capital Expenditure,Capital,Bengal Street - General Building Work,29/03/2017,119997,320.50,Capital,Corlett Electrical Eng Co Ltd,16271
Chorley Borough Council,http://statistics.data.gov.uk/id/local-authority/30UE,Unapportionable Central OHeads,1009,Business Development & Growth,General Repairs - Reactive,20004,Repairs Maintenance & Alts,5005,Reactive blanket order to end of March 2017,29/03/2017,119999,568.00,Revenue,Corlett Electrical Eng Co Ltd,16271
Chorley Borough Council,http://statistics.data.gov.uk/id/local-authority/30UE,Economic Development,1096,Business Development & Growth,Christmas Lights,40179,Miscellaneous Expenses,5034,Job ID 14312 Service yard 2 Supply  Job ID 14699,29/03/2017,120000,"8,837.69",Revenue,Corlett Electrical Eng Co Ltd,16271
Chorley Borough Council,http://statistics.data.gov.uk/id/local-authority/30UE,Business Support,1095,Business Development & Growth,General Repairs - Reactive,20004,Repairs Maintenance & Alts,5005,Job ID 14312 Service yard 2 Supply  Job ID 14699,29/03/2017,120000,789.50,Revenue,Corlett Electrical Eng Co Ltd,16271
Chorley Borough Council,http://statistics.data.gov.uk/id/local-authority/30UE,Unapportionable Central OHeads,1009,Business Development & Growth,General Repairs - Reactive,20004,Repairs Maintenance & Alts,5005,ADDRESS REDACTED,01/03/2017,119209,297.91,Revenue,Corona Energy Retail 2 Ltd,67249
Chorley Borough Council,http://statistics.data.gov.uk/id/local-authority/30UE,Unapportionable Central OHeads,1009,Business Development & Growth,General Repairs - Reactive,20004,Repairs Maintenance & Alts,5005,ADDRESS REDACTED,15/03/2017,119663,250.32,Revenue,Corona Energy Retail 2 Ltd,67249
Chorley Borough Council,http://statistics.data.gov.uk/id/local-authority/30UE,Recognised Cap Grants & Conts,,Business Development & Growth,Contributions Parish Councils,40144,Grants and Subscriptions,5031,cil,31/03/2017,120120,"11,342.22",Revenue,Croston Parish Council,17026
Chorley Borough Council,http://statistics.data.gov.uk/id/local-authority/30UE,Business Support,1095,Business Development & Growth,Other Capital Related Fees,3024,Capital Expenditure,Capital,Provision of structural and civil engineering services in accordance with tender dated 22/11/2016.,17/03/2017,119191,"12,000.00",Revenue,Curtins Consulting Engineers,20049
Chorley Borough Council,http://statistics.data.gov.uk/id/local-authority/30UE,Business Support,1095,Business Development & Growth,Other Capital Related Fees,3024,Capital Expenditure,Capital,Provision of structural and civil engineering services in accordance with tender dated 22/11/2016.,24/03/2017,119258,"6,450.00",Revenue,Curtins Consulting Engineers,20049
Chorley Borough Council,http://statistics.data.gov.uk/id/local-authority/30UE,Other Short Term Debtors,,Policy & Governance,Other Debtors,98,Balance Sheet,Balance,Cycle Scheme for NAME REDACTED,24/03/2017,119895,473.33,Revenue,Cyclescheme Ltd,22390
Chorley Borough Council,http://statistics.data.gov.uk/id/local-authority/30UE,Other Short Term Debtors,,Policy & Governance,Other Debtors,98,Balance Sheet,Balance,"hel,et",24/03/2017,119895,35.00,Revenue,Cyclescheme Ltd,22390
Chorley Borough Council,http://statistics.data.gov.uk/id/local-authority/30UE,Central Support Services,1009,Customer & Digital,Computer Equipment-Purchase,40098,Communication and Computing,5028,1M Purple Snagless Booted CAT5e RH45 Patch Cable,22/03/2017,119546,22.50,Revenue,DAC Technology Ltd,76398
Chorley Borough Council,http://statistics.data.gov.uk/id/local-authority/30UE,Central Support Services,1009,Customer & Digital,Computer Equipment-Purchase,40098,Communication and Computing,5028,2M Purple Snagless Booted CAT5e RH45 Patch Cable,22/03/2017,119546,27.50,Revenue,DAC Technology Ltd,76398
Chorley Borough Council,http://statistics.data.gov.uk/id/local-authority/30UE,Central Support Services,1009,Customer & Digital,Computer Equipment-Purchase,40098,Communication and Computing,5028,3M Purple Snagless Booted CAT5e RH45 Patch Cable,22/03/2017,119546,33.50,Revenue,DAC Technology Ltd,76398
Chorley Borough Council,http://statistics.data.gov.uk/id/local-authority/30UE,Central Support Services,1009,Customer & Digital,Computer Equipment-Purchase,40098,Communication and Computing,5028,5M Purple Snagless Booted CAT5e RH45 Patch Cable,22/03/2017,119546,17.00,Revenue,DAC Technology Ltd,76398
Chorley Borough Council,http://statistics.data.gov.uk/id/local-authority/30UE,Central Support Services,1009,Customer & Digital,Computer Equipment-Purchase,40098,Communication and Computing,5028,10M Purple Snagless Booted CAT5e RH45 Patch Cable,22/03/2017,119546,14.90,Revenue,DAC Technology Ltd,76398
Chorley Borough Council,http://statistics.data.gov.uk/id/local-authority/30UE,Central Support Services,1009,Customer & Digital,Computer Equipment-Purchase,40098,Communication and Computing,5028,1M Yellow Snagless Booted CAT5e RH45 Patch Cable,22/03/2017,119546,22.50,Revenue,DAC Technology Ltd,76398
Chorley Borough Council,http://statistics.data.gov.uk/id/local-authority/30UE,Central Support Services,1009,Customer & Digital,Computer Equipment-Purchase,40098,Communication and Computing,5028,2M Yellow Snagless Booted CAT5e RH45 Patch Cable,22/03/2017,119546,27.50,Revenue,DAC Technology Ltd,76398
Chorley Borough Council,http://statistics.data.gov.uk/id/local-authority/30UE,Central Support Services,1009,Customer & Digital,Computer Equipment-Purchase,40098,Communication and Computing,5028,3M Yellow Snagless Booted CAT5e RH45 Patch Cable,22/03/2017,119546,33.50,Revenue,DAC Technology Ltd,76398
Chorley Borough Council,http://statistics.data.gov.uk/id/local-authority/30UE,Central Support Services,1009,Customer & Digital,Computer Equipment-Purchase,40098,Communication and Computing,5028,5M Yellow Snagless Booted CAT5e RH45 Patch Cable,22/03/2017,119546,17.00,Revenue,DAC Technology Ltd,76398
Chorley Borough Council,http://statistics.data.gov.uk/id/local-authority/30UE,Central Support Services,1009,Customer & Digital,Computer Equipment-Purchase,40098,Communication and Computing,5028,10M Yellow Snagless Booted CAT5e RH45 Patch Cable,22/03/2017,119546,14.90,Revenue,DAC Technology Ltd,76398
Chorley Borough Council,http://statistics.data.gov.uk/id/local-authority/30UE,Central Support Services,1009,Customer & Digital,Computer Equipment-Purchase,40098,Communication and Computing,5028,1M White Snagless Booted CAT5e RH45 Patch Cable,22/03/2017,119546,22.50,Revenue,DAC Technology Ltd,76398
Chorley Borough Council,http://statistics.data.gov.uk/id/local-authority/30UE,Central Support Services,1009,Customer & Digital,Computer Equipment-Purchase,40098,Communication and Computing,5028,2M White Snagless Booted CAT5e RH45 Patch Cable,22/03/2017,119546,27.50,Revenue,DAC Technology Ltd,76398
Chorley Borough Council,http://statistics.data.gov.uk/id/local-authority/30UE,Central Support Services,1009,Customer & Digital,Computer Equipment-Purchase,40098,Communication and Computing,5028,3M White Snagless Booted CAT5e RH45 Patch Cable,22/03/2017,119546,33.50,Revenue,DAC Technology Ltd,76398
Chorley Borough Council,http://statistics.data.gov.uk/id/local-authority/30UE,Central Support Services,1009,Customer & Digital,Computer Equipment-Purchase,40098,Communication and Computing,5028,5M White Snagless Booted CAT5E RH45 Patch Cable,22/03/2017,119546,17.00,Revenue,DAC Technology Ltd,76398
Chorley Borough Council,http://statistics.data.gov.uk/id/local-authority/30UE,Central Support Services,1009,Customer & Digital,Computer Equipment-Purchase,40098,Communication and Computing,5028,10M White Snagless Booted CAT5e RH45 Patch Cable,22/03/2017,119546,14.90,Revenue,DAC Technology Ltd,76398
Chorley Borough Council,http://statistics.data.gov.uk/id/local-authority/30UE,Central Support Services,1009,Customer & Digital,Computer Equipment-Purchase,40098,Communication and Computing,5028,Freight,22/03/2017,119546,9.95,Revenue,DAC Technology Ltd,76398
Chorley Borough Council,http://statistics.data.gov.uk/id/local-authority/30UE,Economic Development,1096,Business Development & Growth,Miscellaneous Expenses,40200,Miscellaneous Expenses,5034,For facilitation services at the Choose Chorley Annual Business Evening,29/03/2017,120048,500.00,Revenue,Dave Guest,19221
Chorley Borough Council,http://statistics.data.gov.uk/id/local-authority/30UE,Collection Fund Revenue Accoun,,Policy & Governance,NNDR Central Share,2034,Precepts & Collection Fund,Precept,central sahre,30/03/2017,119624,"1,163,991.00",Revenue,Department of Communities and Local Gov,16280
Chorley Borough Council,http://statistics.data.gov.uk/id/local-authority/30UE,Collection Fund Revenue Accoun,,Policy & Governance,NNDR Central Share,2034,Precepts & Collection Fund,Precept,supruls,30/03/2017,119624,"4,866.00",Revenue,Department of Communities and Local Gov,16280
Chorley Borough Council,http://statistics.data.gov.uk/id/local-authority/30UE,Collection Fund Revenue Accoun,,Policy & Governance,NNDR Central Share,2034,Precepts & Collection Fund,Precept,sahre,21/03/2017,119625,"1,163,992.00",Revenue,Department of Communities and Local Gov,16280
Chorley Borough Council,http://statistics.data.gov.uk/id/local-authority/30UE,Collection Fund Revenue Accoun,,Policy & Governance,NNDR Central Share,2034,Precepts & Collection Fund,Precept,surplus,21/03/2017,119625,"4,865.00",Revenue,Department of Communities and Local Gov,16280
Chorley Borough Council,http://statistics.data.gov.uk/id/local-authority/30UE,General Government Grants,,Policy & Governance,Miscellaneous Government Grants,60241,Government Grants,5062,multiplier,31/03/2017,120128,"12,319.00",Revenue,Department of Communities and Local Gov,19439
Chorley Borough Council,http://statistics.data.gov.uk/id/local-authority/30UE,General Government Grants,,Policy & Governance,Miscellaneous Government Grants,60241,Government Grants,5062,2nd property,31/03/2017,120128,906.00,Revenue,Department of Communities and Local Gov,19439
Chorley Borough Council,http://statistics.data.gov.uk/id/local-authority/30UE,General Government Grants,,Policy & Governance,Miscellaneous Government Grants,60241,Government Grants,5062,new empty,31/03/2017,120128,"3,303.00",Revenue,Department of Communities and Local Gov,19439
Chorley Borough Council,http://statistics.data.gov.uk/id/local-authority/30UE,General Government Grants,,Policy & Governance,Miscellaneous Government Grants,60241,Government Grants,5062,long term,31/03/2017,120128,"5,082.00",Revenue,Department of Communities and Local Gov,19439
Chorley Borough Council,http://statistics.data.gov.uk/id/local-authority/30UE,General Government Grants,,Policy & Governance,Miscellaneous Government Grants,60241,Government Grants,5062,retail,31/03/2017,120128,"30,213.00",Revenue,Department of Communities and Local Gov,19439
Chorley Borough Council,http://statistics.data.gov.uk/id/local-authority/30UE,Business Support,1095,Business Development & Growth,Grants To Other Organisations,40127,Grants and Subscriptions,5031,sib grant,31/03/2017,120054,250.00,Revenue,NAME REDACTED,76640
Chorley Borough Council,http://statistics.data.gov.uk/id/local-authority/30UE,Capital,Capital,Customer & Digital,Other Contractor,3012,Capital Expenditure,Capital,Provision of Project Officer services associated with Ranglett`s Rec. Ground Veterans Allotment Plot.,31/03/2017,120075,520.00,Capital,Dig In North West CIC,74336
Chorley Borough Council,http://statistics.data.gov.uk/id/local-authority/30UE,Unapportionable Central OHeads,1009,Policy & Governance,HR Recruitment Expenses,15200,Indirect Employee Expenses,5002,Fees for Basic PAD for staff,15/03/2017,119598,250.00,Revenue,Disclosure Scotland,65366
Chorley Borough Council,http://statistics.data.gov.uk/id/local-authority/30UE,Building Control,1090,Customer & Digital,General Subscriptions,40146,Grants and Subscriptions,5031,LABC Service fee for 2017-18,10/03/2017,119475,"1,918.68",Revenue,District Surveyors Association Limited,17538
Chorley Borough Council,http://statistics.data.gov.uk/id/local-authority/30UE,Corporate Management,1008,Customer & Digital,Other Contributions,40145,Grants and Subscriptions,5031,ADDRESS REDACTED,22/03/2017,119889,"4,706.00",Revenue,NAME REDACTED,76632
Chorley Borough Council,http://statistics.data.gov.uk/id/local-authority/30UE,Economic Development,1096,Business Development & Growth,Fixtures & Fittings - Repair/Mtnce,20028,Fixtures and Fittings,5010,1486 CCTV Survey on drains at Covered Market Provision of two man qualified camera crew to survey the existing drainage as,01/03/2017,119066,796.00,Revenue,Drain Alert Ltd,16961
Chorley Borough Council,http://statistics.data.gov.uk/id/local-authority/30UE,Economic Development,1096,Business Development & Growth,Fixtures & Fittings - Repair/Mtnce,20028,Fixtures and Fittings,5010,"Manhole Record Cards with channel layout, sizes, depths, and photographs",01/03/2017,119066,675.00,Revenue,Drain Alert Ltd,16961
Chorley Borough Council,http://statistics.data.gov.uk/id/local-authority/30UE,Economic Development,1096,Business Development & Growth,Fixtures & Fittings - Repair/Mtnce,20028,Fixtures and Fittings,5010,CCTV Survey full day,01/03/2017,119066,675.00,Revenue,Drain Alert Ltd,16961
Chorley Borough Council,http://statistics.data.gov.uk/id/local-authority/30UE,Economic Development,1096,Business Development & Growth,Fixtures & Fittings - Repair/Mtnce,20028,Fixtures and Fittings,5010,"CCTV Survey Report, Video, plan - hand mark up of paper copy.",01/03/2017,119066,49.00,Revenue,Drain Alert Ltd,16961
Chorley Borough Council,http://statistics.data.gov.uk/id/local-authority/30UE,Capital,Capital,Business Development & Growth,Other Legal Fees,3020,Capital Expenditure,Capital,"For additional legal services regarding contracting procurement for Digital Office Park, June 2016",17/03/2017,119746,852.00,Capital,DWF Law,75359
Chorley Borough Council,http://statistics.data.gov.uk/id/local-authority/30UE,Community Development,1097,Policy & Governance,Core Funding Grants,40133,Grants and Subscriptions,5031,small comm funding,01/03/2017,119047,300.00,Revenue,Eaves Green Senior Circle,62519
Chorley Borough Council,http://statistics.data.gov.uk/id/local-authority/30UE,Recognised Cap Grants & Conts,,Business Development & Growth,Contributions Parish Councils,40144,Grants and Subscriptions,5031,cil,31/03/2017,120121,"4,985.30",Revenue,Eccleston Parish Council,17027
Chorley Borough Council,http://statistics.data.gov.uk/id/local-authority/30UE,Capital,Capital,Customer & Digital,Surveyors Fees,3021,Capital Expenditure,Capital,Westway Playing Fields Ecological Surveys: GCN presence / Absence Survey and report 1715 Preliminary bat roost assessment,31/03/2017,120066,"1,792.45",Capital,Ecology Services,58852
Chorley Borough Council,http://statistics.data.gov.uk/id/local-authority/30UE,Capital,Capital,Customer & Digital,Surveyors Fees,3021,Capital Expenditure,Capital,Westway Playing Fields Ecological Surveys: GCN presence / Absence Survey and report 1715 Preliminary bat roost assessment,31/03/2017,120078,"2,449.50",Capital,Ecology Services,58852
Chorley Borough Council,http://statistics.data.gov.uk/id/local-authority/30UE,Democratic Represent and  Mgnt,1007,Policy & Governance,Conservation Of Exhibits,40059,Services,5027,Restoration of a large 1860s Viennese porcelain vase. Completed over a year.,24/03/2017,119763,"7,440.00",Revenue,Edge Conservation Services,76543
Chorley Borough Council,http://statistics.data.gov.uk/id/local-authority/30UE,Central Support Services,1009,Customer & Digital,Mobile Voice and Data,40086,Communication and Computing,5028,Mar-17,10/03/2017,119521,495.61,Revenue,EE - Orange,16486
Chorley Borough Council,http://statistics.data.gov.uk/id/local-authority/30UE,Central Support Services,1009,Customer & Digital,Mobile Voice and Data,40086,Communication and Computing,5028,Feb-17,10/03/2017,119428,"2,018.20",Revenue,EE LIMITED,63366
Chorley Borough Council,http://statistics.data.gov.uk/id/local-authority/30UE,Unapportionable Central OHeads,1009,Business Development & Growth,General Repairs - Reactive,20004,Repairs Maintenance & Alts,5005,Blanket order for Reactive works from October 2016.,15/03/2017,119308,301.60,Revenue,Ellesmere Engineering Co Ltd,17520
Chorley Borough Council,http://statistics.data.gov.uk/id/local-authority/30UE,Unapportionable Central OHeads,1009,Business Development & Growth,General Repairs - Reactive,20004,Repairs Maintenance & Alts,5005,Blanket order for Reactive works from October 2016.,15/03/2017,119312,279.60,Revenue,Ellesmere Engineering Co Ltd,17520
Chorley Borough Council,http://statistics.data.gov.uk/id/local-authority/30UE,Unapportionable Central OHeads,1009,Business Development & Growth,General Repairs - Reactive,20004,Repairs Maintenance & Alts,5005,Blanket order for Reactive works from October 2016.,15/03/2017,119480,329.00,Revenue,Ellesmere Engineering Co Ltd,17520
Chorley Borough Council,http://statistics.data.gov.uk/id/local-authority/30UE,Unapportionable Central OHeads,1009,Business Development & Growth,General Repairs - Reactive,20004,Repairs Maintenance & Alts,5005,To replace existing pumps with new Grundfos Magna 1 invertor driven pump set and install a Mikrofill system at Cotswold House,31/03/2017,119718,"3,960.00",Revenue,Ellesmere Engineering Co Ltd,17520
Chorley Borough Council,http://statistics.data.gov.uk/id/local-authority/30UE,Unapportionable Central OHeads,1009,Business Development & Growth,General Repairs - Reactive,20004,Repairs Maintenance & Alts,5005,Blanket Reactive Repairs to end of March 2017,24/03/2017,119721,890.00,Revenue,Ellesmere Engineering Co Ltd,17520
Chorley Borough Council,http://statistics.data.gov.uk/id/local-authority/30UE,Unapportionable Central OHeads,1009,Business Development & Growth,General Repairs - Reactive,20004,Repairs Maintenance & Alts,5005,Blanket Reactive Repairs to end of March 2017,29/03/2017,119968,736.00,Revenue,Ellesmere Engineering Co Ltd,17520
Chorley Borough Council,http://statistics.data.gov.uk/id/local-authority/30UE,Capital,Capital,Customer & Digital,Main Contractor,3007,Capital Expenditure,Capital,Delivery of the pre-construction service agreement in relation to the Market Walk Extension,31/03/2017,120062,"196,497.69",Capital,Eric Wright Construction Ltd,76464
Chorley Borough Council,http://statistics.data.gov.uk/id/local-authority/30UE,Democratic Represent and  Mgnt,1007,Early Intervention,Rent/Hire Of Premises,20017,Premises Rents,5007,"Duxbury Coach House				 Rent - 10,625 per qtr				  invoiced quarterly				 Q1: 24/03/17 - 23/06/17 Q2: 23/06/17 - 22/09/17				 Q3: 22/09/17",29/03/2017,119554,"10,625.00",Revenue,European Settled Estates Plc,16495
Chorley Borough Council,http://statistics.data.gov.uk/id/local-authority/30UE,Democratic Represent and  Mgnt,1007,Early Intervention,Rent/Hire Of Premises,20017,Premises Rents,5007,"Service Charge - 1,125 per qtr				 invoiced quarterly				 Q1: 24/03/17 - 23/06/17       Q2: 23/06/17 - 22/09/17				 Q3: 22/09/17 - 22/12/17 ",29/03/2017,119554,"1,125.00",Revenue,European Settled Estates Plc,16495
Chorley Borough Council,http://statistics.data.gov.uk/id/local-authority/30UE,Unapportionable Central OHeads,1009,Business Development & Growth,Planned Maintenance,20006,Repairs Maintenance & Alts,5005,Annual Test of the Fall Arrest System at Union Street,31/03/2017,119828,312.00,Revenue,Eurosafe Solutions Limited,66302
Chorley Borough Council,http://statistics.data.gov.uk/id/local-authority/30UE,Democratic Represent and  Mgnt,1007,Business Development & Growth,Maintenance/Nature Reserves,20045,Grounds Maintenance Costs,5013,"6nr 10-12 Sorbus aucuparia, 6nr 10-12 Prunus padus, 30nr 5L native Holly, 50nr 60-90 Hawthorn whips.",29/03/2017,120013,579.90,Revenue,Everglades Nurseries Ltd,20202
Chorley Borough Council,http://statistics.data.gov.uk/id/local-authority/30UE,Service Management & Support,1009,Customer & Digital,Hire Of Vehicles and Plant,30028,Contrct Hire & Operating Lease,5018,Hire of tractor and side arm flail at price quoted via the chest through until 31/03/2017  use this order number as from 01/04/2016,01/03/2017,118959,"1,490.76",Revenue,F R Sharrock Ltd,18091
Chorley Borough Council,http://statistics.data.gov.uk/id/local-authority/30UE,Service Management & Support,1009,Customer & Digital,Vehicle Maintenance,30045,Direct Transport Costs,5016,Call out to Kubota tractor PO14BFX recover to workshop supply and fit new clutch as required on Pro-Forma invoice number ,03/03/2017,119361,"1,932.31",Revenue,F R Sharrock Ltd,18091
Chorley Borough Council,http://statistics.data.gov.uk/id/local-authority/30UE,Service Management & Support,1009,Customer & Digital,Vehicle Maintenance,30045,Direct Transport Costs,5016,Carryout full winter service on PO14BFX as requested Pro-Forma invoice number 198516,15/03/2017,119365,770.13,Revenue,F R Sharrock Ltd,18091
Chorley Borough Council,http://statistics.data.gov.uk/id/local-authority/30UE,Service Management & Support,1009,Customer & Digital,Vehicle Maintenance,30045,Direct Transport Costs,5016,Callout to steering fault on PO14BFX. carryout works as on Pro-Forma invoice number,15/03/2017,119366,"1,732.51",Revenue,F R Sharrock Ltd,18091
Chorley Borough Council,http://statistics.data.gov.uk/id/local-authority/30UE,Service Management & Support,1009,Customer & Digital,Tools & Equipment - Purchase,40003,"Equipment, Furniture & Materia",5023,Supply set of 3 cutting unitss complete for Ransomes Highway mower with 8`` 4 bladed cutting cylinders supplied with machines,15/03/2017,119498,"5,550.00",Revenue,F R Sharrock Ltd,18091
Chorley Borough Council,http://statistics.data.gov.uk/id/local-authority/30UE,Service Management & Support,1009,Customer & Digital,Hire Of Vehicles and Plant,30028,Contrct Hire & Operating Lease,5018,Hire of tractor side arm flail at price quoted via the chest through until 31/03/2017 Please use this order number from 01/04/2016,31/03/2017,119672,"1,714.37",Revenue,F R Sharrock Ltd,18091
Chorley Borough Council,http://statistics.data.gov.uk/id/local-authority/30UE,Service Management & Support,1009,Customer & Digital,Tools & Equipment - Maintenance,40005,"Equipment, Furniture & Materia",5023,Supply items as on Pro-Forma invoice number 119234 already supplied,31/03/2017,120067,"1,163.94",Revenue,F R Sharrock Ltd,18091
Chorley Borough Council,http://statistics.data.gov.uk/id/local-authority/30UE,Service Management & Support,1009,Customer & Digital,Tools & Equipment - Maintenance,40005,"Equipment, Furniture & Materia",5023,Supply items as on Pro-Forma invoice number 119538 already supplied,31/03/2017,120083,"1,174.38",Revenue,F R Sharrock Ltd,18091
Chorley Borough Council,http://statistics.data.gov.uk/id/local-authority/30UE,Private Sector HSG Renewal,1073,Early Intervention,Miscellaneous Expenses,40200,Miscellaneous Expenses,5034,boiler,24/03/2017,119988,691.00,Revenue,Firefly Energi Ltd,69925
Chorley Borough Council,http://statistics.data.gov.uk/id/local-authority/30UE,Private Sector HSG Renewal,1073,Early Intervention,Miscellaneous Expenses,40200,Miscellaneous Expenses,5034,grant,31/03/2017,120125,"1,995.00",Revenue,Firefly Energi Ltd,69925
Chorley Borough Council,http://statistics.data.gov.uk/id/local-authority/30UE,Private Sector HSG Renewal,1073,Early Intervention,Miscellaneous Expenses,40200,Miscellaneous Expenses,5034,grant,31/03/2017,120126,"2,095.00",Revenue,Firefly Energi Ltd,69925
Chorley Borough Council,http://statistics.data.gov.uk/id/local-authority/30UE,Service Management & Support,1009,Customer & Digital,Vehicle Maintenance,30045,Direct Transport Costs,5016,Carryout electrical works as on invoice number 88696,01/03/2017,119155,325.00,Revenue,G & S Auto Electrical Services,16323
Chorley Borough Council,http://statistics.data.gov.uk/id/local-authority/30UE,Democratic Represent and  Mgnt,1007,Policy & Governance,Burglar Alarms & Security Systems,20075,Fixtures and Fittings,5010,key holding service,15/03/2017,119668,787.65,Revenue,G4S Secure Solutions (UK) Ltd,59898
Chorley Borough Council,http://statistics.data.gov.uk/id/local-authority/30UE,Corporate Management,1008,Customer & Digital,Other Contributions,40145,Grants and Subscriptions,5031,ADDRESS REDACTED,22/03/2017,119890,"4,706.00",Revenue,NAME REDACTED,73909
Chorley Borough Council,http://statistics.data.gov.uk/id/local-authority/30UE,Business Support,1095,Business Development & Growth,Gas,20014,Energy Costs,5006,ADDRESS REDACTED,01/03/2017,119071,474.39,Revenue,Gazprom Energy,56502
Chorley Borough Council,http://statistics.data.gov.uk/id/local-authority/30UE,Business Support,1095,Business Development & Growth,Gas,20014,Energy Costs,5006,ADDRESS REDACTED,22/03/2017,119846,379.50,Revenue,Gazprom Energy,56502
Chorley Borough Council,http://statistics.data.gov.uk/id/local-authority/30UE,Democratic Represent and  Mgnt,1007,Policy & Governance,Consultants` Fees,40077,Services,5027,Buildings conservation work at Astley Hall relating to talking to service men at Astley Hall.,01/03/2017,119293,"1,500.00",Revenue,Geoff W Maybank,64389
Chorley Borough Council,http://statistics.data.gov.uk/id/local-authority/30UE,Unapportionable Central OHeads,1009,Business Development & Growth,General Repairs - Reactive,20004,Repairs Maintenance & Alts,5005,Supply and install 1No pair of new auto swing units and upgrade the on-door safety to conform to the new EN16005 standards,06/03/2017,119001,"2,495.00",Revenue,Geze UK Ltd,18836
Chorley Borough Council,http://statistics.data.gov.uk/id/local-authority/30UE,Central Support Services,1009,Early Intervention,Impounded Dogs Costs,40207,Miscellaneous Expenses,5034,Kennelling fees for 2016/17,31/03/2017,119833,415.00,Revenue,Glencoe Boarding Kennels,16734
Chorley Borough Council,http://statistics.data.gov.uk/id/local-authority/30UE,Central Support Services,1009,Early Intervention,Miscellaneous Expenses,40200,Miscellaneous Expenses,5034,Graffiti removal from February 2017,22/03/2017,119467,400.00,Revenue,Graffiti Away,76316
Chorley Borough Council,http://statistics.data.gov.uk/id/local-authority/30UE,Corporate Management,1008,Policy & Governance,External Audit,40064,Services,5027,2016/17 External Audit - Main Audit fee,15/03/2017,119575,"11,314.00",Revenue,Grant Thornton UK LLP,57322
Chorley Borough Council,http://statistics.data.gov.uk/id/local-authority/30UE,Unapportionable Central OHeads,1009,Policy & Governance,Consultants` Fees,40077,Services,5027,Income Generation - Independent review for Chorley and South Ribble council`s,22/03/2017,119749,"4,991.00",Revenue,Grant Thornton UK LLP,57322
Chorley Borough Council,http://statistics.data.gov.uk/id/local-authority/30UE,Central Support Services,1009,Customer & Digital,Miscellaneous Expenses,40200,Miscellaneous Expenses,5034,"quote for Property Portfolio Consolidator (PPC) for Chorley Council: LR Reference 170221-002388 665 titles @ 4.25 = 2,826.25",06/03/2017,119247,"2,876.25",Revenue,H M Land Registry,17567
Chorley Borough Council,http://statistics.data.gov.uk/id/local-authority/30UE,Central Support Services,1009,Policy & Governance,HM Land Registry Fees,40174,Miscellaneous Expenses,5034,env and neighbourhoods,21/03/2017,119297,21.00,Revenue,H M Land Registry,17567
Chorley Borough Council,http://statistics.data.gov.uk/id/local-authority/30UE,Unapportionable Central OHeads,1009,Policy & Governance,HM Land Registry Fees,40174,Miscellaneous Expenses,5034,legal,21/03/2017,119297,24.00,Revenue,H M Land Registry,17567
Chorley Borough Council,http://statistics.data.gov.uk/id/local-authority/30UE,Unapportionable Central OHeads,1009,Policy & Governance,HM Land Registry Fees,40174,Miscellaneous Expenses,5034,liberata,21/03/2017,119297,111.00,Revenue,H M Land Registry,17567
Chorley Borough Council,http://statistics.data.gov.uk/id/local-authority/30UE,Unapportionable Central OHeads,1009,Policy & Governance,HM Land Registry Fees,40174,Miscellaneous Expenses,5034,local tax,21/03/2017,119297,18.00,Revenue,H M Land Registry,17567
Chorley Borough Council,http://statistics.data.gov.uk/id/local-authority/30UE,Development Control,1091,Policy & Governance,HM Land Registry Fees,40174,Miscellaneous Expenses,5034,planning,21/03/2017,119297,76.00,Revenue,H M Land Registry,17567
Chorley Borough Council,http://statistics.data.gov.uk/id/local-authority/30UE,Unapportionable Central OHeads,1009,Policy & Governance,HM Land Registry Fees,40174,Miscellaneous Expenses,5034,revs and bens,21/03/2017,119297,24.00,Revenue,H M Land Registry,17567
Chorley Borough Council,http://statistics.data.gov.uk/id/local-authority/30UE,Central Support Services,1009,Customer & Digital,Miscellaneous Expenses,40200,Miscellaneous Expenses,5034,648 pdf plans @ 3.50 = 2268.00 Extraction Fee - 50.00,22/03/2017,119867,"2,318.00",Revenue,H M Land Registry,17567
Chorley Borough Council,http://statistics.data.gov.uk/id/local-authority/30UE,Central Support Services,1009,Policy & Governance,HM Land Registry Fees,40174,Miscellaneous Expenses,5034,environments,30/03/2017,119991,76.00,Revenue,H M Land Registry,17567
Chorley Borough Council,http://statistics.data.gov.uk/id/local-authority/30UE,Unapportionable Central OHeads,1009,Policy & Governance,HM Land Registry Fees,40174,Miscellaneous Expenses,5034,legal,30/03/2017,119991,75.00,Revenue,H M Land Registry,17567
Chorley Borough Council,http://statistics.data.gov.uk/id/local-authority/30UE,Unapportionable Central OHeads,1009,Policy & Governance,HM Land Registry Fees,40174,Miscellaneous Expenses,5034,liberata,30/03/2017,119991,164.00,Revenue,H M Land Registry,17567
Chorley Borough Council,http://statistics.data.gov.uk/id/local-authority/30UE,Unapportionable Central OHeads,1009,Policy & Governance,HM Land Registry Fees,40174,Miscellaneous Expenses,5034,local tax,30/03/2017,119991,15.00,Revenue,H M Land Registry,17567
Chorley Borough Council,http://statistics.data.gov.uk/id/local-authority/30UE,Development Control,1091,Policy & Governance,HM Land Registry Fees,40174,Miscellaneous Expenses,5034,planning,30/03/2017,119991,49.00,Revenue,H M Land Registry,17567
Chorley Borough Council,http://statistics.data.gov.uk/id/local-authority/30UE,Unapportionable Central OHeads,1009,Policy & Governance,HM Land Registry Fees,40174,Miscellaneous Expenses,5034,revs and bens,30/03/2017,119991,24.00,Revenue,H M Land Registry,17567
Chorley Borough Council,http://statistics.data.gov.uk/id/local-authority/30UE,Elections,1012,Policy & Governance,Computer Software-Maintenance,40107,Communication and Computing,5028,Annual support and maintenance for EROS scanning - 5 users annual support and maintenance for Avantguard auto,31/03/2017,120050,"7,990.37",Revenue,Halarose Limited,18133
Chorley Borough Council,http://statistics.data.gov.uk/id/local-authority/30UE,Service Management & Support,1009,Customer & Digital,Tools & Equipment - Maintenance,40005,"Equipment, Furniture & Materia",5023,Carryout service and supply new gun on pressure wash at Bengal St depot as requested on delivery note number 19225 already,31/03/2017,120092,350.63,Revenue,Hanson Cleaning Equipment Ltd,17297
Chorley Borough Council,http://statistics.data.gov.uk/id/local-authority/30UE,Service Management & Support,1009,Customer & Digital,Supplies-Grounds Maintenance,40025,"Equipment, Furniture & Materia",5023,Supply PPRS2513 � White Printed Sack  500 x 855 x 975mm x 200g Performance Perforated on the roll  25 Bags Per Roll ,01/03/2017,118989,"5,304.64",Revenue,Harrisons Packaging Ltd,17555
Chorley Borough Council,http://statistics.data.gov.uk/id/local-authority/30UE,Business Support,1095,Business Development & Growth,Miscellaneous Expenses,40200,Miscellaneous Expenses,5034,"For acting on Chorley Council`s behalf in the negotiation and completion of the acquisition of Euxton Lane, Chorley. 4,678.21 ",22/03/2017,119747,"3,885.33",Revenue,Hill Dickinson LLP,62638
Chorley Borough Council,http://statistics.data.gov.uk/id/local-authority/30UE,Business Support,1095,Business Development & Growth,Miscellaneous Expenses,40200,Miscellaneous Expenses,5034,Misc Expense,22/03/2017,119747,792.88,Revenue,Hill Dickinson LLP,62638
Chorley Borough Council,http://statistics.data.gov.uk/id/local-authority/30UE,Capital,Capital,Business Development & Growth,Other Legal Fees,3020,Capital Expenditure,Capital,Supply appropriate contracts for the appointment of: Architectural and Principal Designer Services Project management/Employer,22/03/2017,119748,"1,300.00",Capital,Hill Dickinson LLP,62638
Chorley Borough Council,http://statistics.data.gov.uk/id/local-authority/30UE,Capital,Capital,Customer & Digital,Other Legal Fees,3020,Capital Expenditure,Capital,Market Walks AFL Legal Fees,31/03/2017,120007,"10,000.00",Capital,Hill Dickinson LLP,62638
Chorley Borough Council,http://statistics.data.gov.uk/id/local-authority/30UE,Other Short Term Debtors,,Policy & Governance,General Balances,100,Balance Sheet,Balance,vat owed,03/03/2017,119360,"62,205.14",Revenue,HM Customs And Excise,17569
Chorley Borough Council,http://statistics.data.gov.uk/id/local-authority/30UE,Capital,Capital,Policy & Governance,Stamp Duty,3026,Capital Expenditure,Capital,stamp duty land tax,31/03/2017,120090,"165,000.00",Capital,HM Revenue & Customs,56499
Chorley Borough Council,http://statistics.data.gov.uk/id/local-authority/30UE,Control Accounts,Control,Customer & Digital,Manual Control Account,1,Balance Sheet,Balance,refund,29/03/2017,120057,294.84,Revenue,Home Group Limited,76641
Chorley Borough Council,http://statistics.data.gov.uk/id/local-authority/30UE,Capital,Capital,Policy & Governance,Purchase Money,3027,Capital Expenditure,Capital,Shady Lane,31/03/2017,119811,"2,200,000.00",Capital,Homes and Communities Agency,76497
Chorley Borough Council,http://statistics.data.gov.uk/id/local-authority/30UE,Capital,Capital,Policy & Governance,Purchase Money,3027,Capital Expenditure,Capital,Alker Lane,31/03/2017,119811,"590,000.00",Capital,Homes and Communities Agency,76497
Chorley Borough Council,http://statistics.data.gov.uk/id/local-authority/30UE,Capital,Capital,Policy & Governance,Purchase Money,3027,Capital Expenditure,Capital,Leyland Way,31/03/2017,119811,"135,000.00",Capital,Homes and Communities Agency,76497
Chorley Borough Council,http://statistics.data.gov.uk/id/local-authority/30UE,Democratic Represent and  Mgnt,1007,Policy & Governance,Grants To Other Organisations,40127,Grants and Subscriptions,5031,grant,15/03/2017,119518,250.00,Revenue,Home-Start Central Lancashire Ltd,20585
Chorley Borough Council,http://statistics.data.gov.uk/id/local-authority/30UE,Democratic Represent and  Mgnt,1007,Policy & Governance,Grants To Other Organisations,40127,Grants and Subscriptions,5031,grant,15/03/2017,119519,250.00,Revenue,Home-Start Central Lancashire Ltd,20585
Chorley Borough Council,http://statistics.data.gov.uk/id/local-authority/30UE,Democratic Represent and  Mgnt,1007,Policy & Governance,Grants To Other Organisations,40127,Grants and Subscriptions,5031,grant,15/03/2017,119520,250.00,Revenue,Home-Start Central Lancashire Ltd,20585
Chorley Borough Council,http://statistics.data.gov.uk/id/local-authority/30UE,Capital,Capital,Business Development & Growth,Architects Fees,3022,Capital Expenditure,Capital,"provision of Architectural and Principal Designer Services for the Digital Office Park, Chorley in accordance tender dated 23.9.2016.",03/03/2017,119303,"9,405.00",Capital,Howarth Litchfield Partnership,76440
Chorley Borough Council,http://statistics.data.gov.uk/id/local-authority/30UE,Capital,Capital,Business Development & Growth,Consultants Fees,3025,Capital Expenditure,Capital,For provision of project management/employers agent services in accordance with tender dated 30.9.2016.,15/03/2017,119462,"2,075.00",Capital,Identity Consult Ltd,76426
Chorley Borough Council,http://statistics.data.gov.uk/id/local-authority/30UE,Capital,Capital,Business Development & Growth,Consultants Fees,3025,Capital Expenditure,Capital,For provision of project management/employers agent services in accordance with tender dated 30.9.2016.,24/03/2017,119943,"2,075.00",Capital,Identity Consult Ltd,76426
Chorley Borough Council,http://statistics.data.gov.uk/id/local-authority/30UE,Capital,Capital,Business Development & Growth,Consultants Fees,3025,Capital Expenditure,Capital,For provision of project management/employers agent services in accordance with tender dated 30.9.2016.,24/03/2017,119969,"2,075.00",Capital,Identity Consult Ltd,76426
Chorley Borough Council,http://statistics.data.gov.uk/id/local-authority/30UE,Central Support Services,1009,Customer & Digital,Computer Software-Maintenance,40107,Communication and Computing,5028,Uniform software and annual fee  5 year term,31/03/2017,119091,"22,500.00",Revenue,IDOX Software Limited,17542
Chorley Borough Council,http://statistics.data.gov.uk/id/local-authority/30UE,Central Support Services,1009,Customer & Digital,Computer Software-Purchase,40100,Communication and Computing,5028,"Uniform onsite apps - bundle of 6 apps October 2016 Offer: Bundle price for 6 Apps inclusive of licences, implementation services",31/03/2017,119601,"15,000.00",Revenue,IDOX Software Limited,17542
Chorley Borough Council,http://statistics.data.gov.uk/id/local-authority/30UE,Central Support Services,1009,Customer & Digital,Consultants` Fees,40077,Services,5027,EM module data load (EPIMS),31/03/2017,119601,"1,750.00",Revenue,IDOX Software Limited,17542
Chorley Borough Council,http://statistics.data.gov.uk/id/local-authority/30UE,Central Support Services,1009,Customer & Digital,Training Course Fees,17010,Indirect Employee Expenses,5002,"Training Package: Uniform System Supervisor, Document Templates, Enterprise Admin, TLC Admin (each 2 days onsite)",31/03/2017,119601,"3,000.00",Revenue,IDOX Software Limited,17542
Chorley Borough Council,http://statistics.data.gov.uk/id/local-authority/30UE,Central Support Services,1009,Customer & Digital,Computer Software-Purchase,40100,Communication and Computing,5028,Exacom software purchase,31/03/2017,119601,"7,875.00",Revenue,IDOX Software Limited,17542
Chorley Borough Council,http://statistics.data.gov.uk/id/local-authority/30UE,Central Support Services,1009,Customer & Digital,Computer Software-Purchase,40100,Communication and Computing,5028,Creative Cloud for teams - All Apps 65270771BC01A12,01/03/2017,118960,"1,383.30",Revenue,Insight Direct (UK) LTD,21768
Chorley Borough Council,http://statistics.data.gov.uk/id/local-authority/30UE,Unapportionable Central OHeads,1009,Customer & Digital,Computer Equipment-Maintenance,40105,Communication and Computing,5028,part number: 65270771BC01A12 Creative Cloud for teams - All Apps Subs until March 2018,24/03/2017,120009,592.85,Revenue,Insight Direct (UK) LTD,21768
Chorley Borough Council,http://statistics.data.gov.uk/id/local-authority/30UE,Unapportionable Central OHeads,1009,Customer & Digital,Computer Equipment-Maintenance,40105,Communication and Computing,5028,Part number: AAA-035 19Office Mac Per Device Software License,24/03/2017,120009,166.65,Revenue,Insight Direct (UK) LTD,21768
Chorley Borough Council,http://statistics.data.gov.uk/id/local-authority/30UE,Central Support Services,1009,Customer & Digital,Computer Software-Purchase,40100,Communication and Computing,5028,adobe creative cloud for teams,24/03/2017,120061,811.07,Revenue,Insight Direct (UK) LTD,21768
Chorley Borough Council,http://statistics.data.gov.uk/id/local-authority/30UE,Central Support Services,1009,Customer & Digital,Computer Equipment-Purchase,40098,Communication and Computing,5028,Installation of 5 x dual network outlets in the 1st floor IT Office at Union Street. Outlets will be mounted into existing dado trunking,01/03/2017,119242,630.00,Revenue,Interconnect Network Systems,21292
Chorley Borough Council,http://statistics.data.gov.uk/id/local-authority/30UE,Business Support,1095,Business Development & Growth,Cleaning/Attendants' Services,20041,Cleaning and Domestic Supplies,5012,To provide daily cleaning services to Market Walk Shopping Centre April 206 - March 2017 @ 4310.21 per month,03/03/2017,119281,"4,310.21",Revenue,Interserve,70619
Chorley Borough Council,http://statistics.data.gov.uk/id/local-authority/30UE,Business Support,1095,Business Development & Growth,Cleaning/Attendants' Services,20041,Cleaning and Domestic Supplies,5012,cleaning march 17,31/03/2017,120105,"4,310.21",Revenue,Interserve,70619
Chorley Borough Council,http://statistics.data.gov.uk/id/local-authority/30UE,Community Development,1097,Business Development & Growth,Rent/Hire Of Premises,20017,Premises Rents,5007,"Rent for ADDRESS REDACTED, Chorley for 2016/2017.",31/03/2017,119728,"7,218.75",Revenue,J R Keys,17124
Chorley Borough Council,http://statistics.data.gov.uk/id/local-authority/30UE,Business Support,1095,Business Development & Growth,Refuse Collection,20037,Cleaning and Domestic Supplies,5012,To supply Waste Compactor services to MWSC HD260TR Serial No:  02601707021135  April 2016 - March 2017,01/03/2017,119243,270.00,Revenue,J&H Rentals Limited,70699
Chorley Borough Council,http://statistics.data.gov.uk/id/local-authority/30UE,Development Control,1091,Customer & Digital,Miscellaneous Expenses,40200,Miscellaneous Expenses,5034,Traffic Survey Data Botany Bay,01/03/2017,119185,"7,750.00",Revenue,James Rathmell,76523
Chorley Borough Council,http://statistics.data.gov.uk/id/local-authority/30UE,Service Management & Support,1009,Customer & Digital,Supplies-Grounds Maintenance,40025,"Equipment, Furniture & Materia",5023,"Petrol Can, 5 litre, metal, colour - red.  Product Code = SpCo004",31/03/2017,118924,84.10,Revenue,Jewsons Limited,17844
Chorley Borough Council,http://statistics.data.gov.uk/id/local-authority/30UE,Service Management & Support,1009,Customer & Digital,Supplies-Grounds Maintenance,40025,"Equipment, Furniture & Materia",5023,Litter Picker 895mm.  Product Code = Sp1030007979,31/03/2017,118924,123.50,Revenue,Jewsons Limited,17844
Chorley Borough Council,http://statistics.data.gov.uk/id/local-authority/30UE,Service Management & Support,1009,Customer & Digital,Supplies-Grounds Maintenance,40025,"Equipment, Furniture & Materia",5023,"Petrol Can, 5 litre, metal, colour - green.  Product Code = SpCo004",31/03/2017,118924,84.10,Revenue,Jewsons Limited,17844
Chorley Borough Council,http://statistics.data.gov.uk/id/local-authority/30UE,Development Control,1091,Customer & Digital,Statutory Notices,40160,Miscellaneous Expenses,5034,Planning Public Notices to appear in the Chorley Guardian April 2016 to March 2017,29/03/2017,119306,340.86,Revenue,Johnston Publishing Ltd,20072
Chorley Borough Council,http://statistics.data.gov.uk/id/local-authority/30UE,Business Support,1095,Business Development & Growth,Publicity - Advertising,40157,Miscellaneous Expenses,5034,Please publish advert Ref No: NMC2503639,03/03/2017,119307,262.20,Revenue,Johnston Publishing Ltd,20072
Chorley Borough Council,http://statistics.data.gov.uk/id/local-authority/30UE,Development Control,1091,Customer & Digital,Statutory Notices,40160,Miscellaneous Expenses,5034,Planning Public Notices to appear in the Chorley Guardian April 2016 to March 2017,29/03/2017,119970,367.08,Revenue,Johnston Publishing Ltd,20072
Chorley Borough Council,http://statistics.data.gov.uk/id/local-authority/30UE,Elections,1012,Policy & Governance,Statutory Notices,40160,Miscellaneous Expenses,5034,Notice of Election to be published in Lancashire Evening Post on Monday 27 March 2017 and Chorley Guardian 28 March 2017.,31/03/2017,120111,"1,493.28",Revenue,Johnston Publishing Ltd,20072
Chorley Borough Council,http://statistics.data.gov.uk/id/local-authority/30UE,Service Management & Support,1009,Customer & Digital,Vehicle Maintenance,30045,Direct Transport Costs,5016,Carryout service on Donkey engine on Johnston VT651 Reg RV14DVB as requested,03/03/2017,119274,554.00,Revenue,Johnston Sweepers Limited,20778
Chorley Borough Council,http://statistics.data.gov.uk/id/local-authority/30UE,Corporate Management,1008,Customer & Digital,Other Contributions,40145,Grants and Subscriptions,5031,ADDRESS REDACTED,03/03/2017,119284,"5,000.00",Revenue,NAME REDACTED,73957
Chorley Borough Council,http://statistics.data.gov.uk/id/local-authority/30UE,Capital,Capital,Early Intervention,Grants,3002,Capital Expenditure,Capital,ADDRESS REDACTED,15/03/2017,119621,"2,800.00",Capital,K Berry Ltd,16421
Chorley Borough Council,http://statistics.data.gov.uk/id/local-authority/30UE,Capital,Capital,Early Intervention,Grants,3002,Capital Expenditure,Capital,ADDRESS REDACTED,15/03/2017,119622,"1,795.00",Capital,K Berry Ltd,16421
Chorley Borough Council,http://statistics.data.gov.uk/id/local-authority/30UE,Capital,Capital,Early Intervention,Grants,3002,Capital Expenditure,Capital,ADDRESS REDACTED,15/03/2017,119623,"3,630.00",Capital,K Berry Ltd,16421
Chorley Borough Council,http://statistics.data.gov.uk/id/local-authority/30UE,Corporate Management,1008,Customer & Digital,Other Contributions,40145,Grants and Subscriptions,5031,ADDRESS REDACTED,22/03/2017,119775,"2,900.00",Revenue,NAME REDACTED,73974
Chorley Borough Council,http://statistics.data.gov.uk/id/local-authority/30UE,Business Support,1095,Customer & Digital,Professional Fees,40063,Services,5027,Fees for joint negotiation of less for Reel cinemas at unit 6 Market walk extension,31/03/2017,120008,"16,236.00",Revenue,Keenan & Co Retail Ltd  T/A K2 Retail,76423
Chorley Borough Council,http://statistics.data.gov.uk/id/local-authority/30UE,Control Accounts,Control,Policy & Governance,General Balances,100,Balance Sheet,Balance,sal ded,22/03/2017,119781,"1,151.98",Revenue,Labour Councillors Association,17577
Chorley Borough Council,http://statistics.data.gov.uk/id/local-authority/30UE,Development Control,1091,Customer & Digital,Tools & Equipment - Purchase,40003,"Equipment, Furniture & Materia",5023,Service Level Agreement for Archaeology,24/03/2017,119971,562.50,Revenue,Lancashire Archaeological Advisory Services,75761
Chorley Borough Council,http://statistics.data.gov.uk/id/local-authority/30UE,Development Control,1091,Customer & Digital,Tools & Equipment - Purchase,40003,"Equipment, Furniture & Materia",5023,Service Level Agreement for Archaeology,24/03/2017,119972,562.50,Revenue,Lancashire Archaeological Advisory Services,75761
Chorley Borough Council,http://statistics.data.gov.uk/id/local-authority/30UE,Development Control,1091,Customer & Digital,Tools & Equipment - Purchase,40003,"Equipment, Furniture & Materia",5023,Service Level Agreement for Archaeology,24/03/2017,119973,562.50,Revenue,Lancashire Archaeological Advisory Services,75761
Chorley Borough Council,http://statistics.data.gov.uk/id/local-authority/30UE,Central Support Services,1009,Customer & Digital,Computer Equipment-Purchase,40098,Communication and Computing,5028,products,29/03/2017,112824,"1,139.99",Revenue,Lancashire County Council,17758
Chorley Borough Council,http://statistics.data.gov.uk/id/local-authority/30UE,Central Support Services,1009,Customer & Digital,Consultants` Fees,40077,Services,5027,services,29/03/2017,112824,"2,523.50",Revenue,Lancashire County Council,17758
Chorley Borough Council,http://statistics.data.gov.uk/id/local-authority/30UE,Central Support Services,1009,Customer & Digital,Computer Equipment-Maintenance,40105,Communication and Computing,5028,annual charges,29/03/2017,112824,"4,263.50",Revenue,Lancashire County Council,17758
Chorley Borough Council,http://statistics.data.gov.uk/id/local-authority/30UE,Development Control,1091,Customer & Digital,Professional Fees,40063,Services,5027,Agricultural Planning Consultations,29/03/2017,115564,400.00,Revenue,Lancashire County Council,17758
Chorley Borough Council,http://statistics.data.gov.uk/id/local-authority/30UE,Development Control,1091,Customer & Digital,Professional Fees,40063,Services,5027,Agricultural Planning Consultation,29/03/2017,115566,400.00,Revenue,Lancashire County Council,17758
Chorley Borough Council,http://statistics.data.gov.uk/id/local-authority/30UE,Capital,Capital,Customer & Digital,Main Contractor,3007,Capital Expenditure,Capital,"Chorley BC highway schemes at Bolton Road, Duke Street, Brindle Street, Harrison Road, Pilling Lane",08/03/2017,118535,"97,477.00",Capital,Lancashire County Council,20027
Chorley Borough Council,http://statistics.data.gov.uk/id/local-authority/30UE,Central Support Services,1009,Customer & Digital,Internet Charges,40104,Communication and Computing,5028,Purchase of domains as per quote RFP21489: visitchorley.com  checkoutchorley.com  chorleyflowershow.com ,29/03/2017,118675,537.85,Revenue,Lancashire County Council,17758
Chorley Borough Council,http://statistics.data.gov.uk/id/local-authority/30UE,Central Support Services,1009,Customer & Digital,Computer Equipment-Purchase,40098,Communication and Computing,5028,Products relating to RFP22260 to cover memory upgrades to Cisco ASA firewalls,29/03/2017,119140,451.23,Revenue,Lancashire County Council,17758
Chorley Borough Council,http://statistics.data.gov.uk/id/local-authority/30UE,Capital,Capital,Early Intervention,Grants,3002,Capital Expenditure,Capital,ADDRESS REDACTED,01/03/2017,119203,"6,216.00",Capital,Lancashire County Council,17758
Chorley Borough Council,http://statistics.data.gov.uk/id/local-authority/30UE,Capital,Capital,Early Intervention,Grants,3002,Capital Expenditure,Capital,ADDRESS REDACTED,01/03/2017,119204,"3,100.00",Capital,Lancashire County Council,17758
Chorley Borough Council,http://statistics.data.gov.uk/id/local-authority/30UE,Unapportionable Central OHeads,1009,Policy & Governance,Miscellaneous Expenses,40200,Miscellaneous Expenses,5034,Four roundabout signs to promote Checkout Chorley,01/03/2017,119226,615.57,Revenue,Lancashire County Council,20027
Chorley Borough Council,http://statistics.data.gov.uk/id/local-authority/30UE,Capital,Capital,Customer & Digital,Surveyors Fees,3021,Capital Expenditure,Capital,Safety audit for proposed traffic/parking scheme at Bolton Road,29/03/2017,119235,300.00,Capital,Lancashire County Council,20027
Chorley Borough Council,http://statistics.data.gov.uk/id/local-authority/30UE,Unapportionable Central OHeads,1009,Policy & Governance,Network Line Rental,40248,Communication and Computing,5028,100MB Link between Chorley and South Ribble 01-04-16 to 31-03-17,22/03/2017,119476,"4,463.00",Revenue,Lancashire County Council,17758
Chorley Borough Council,http://statistics.data.gov.uk/id/local-authority/30UE,Precepts and Collection Fund,Precepts,Policy & Governance,LCC Precept,2009,Precepts & Collection Fund,Precept,ctax,21/03/2017,119620,"4,181,662.00",Revenue,Lancashire County Council,18386
Chorley Borough Council,http://statistics.data.gov.uk/id/local-authority/30UE,Collection Fund Revenue Accoun,,Policy & Governance,NNDR County Share,2036,Precepts & Collection Fund,Precept,bus rates,21/03/2017,119620,"262,993.00",Revenue,Lancashire County Council,18386
Chorley Borough Council,http://statistics.data.gov.uk/id/local-authority/30UE,Service Management & Support,1009,Customer & Digital,Training Course Fees,17010,Indirect Employee Expenses,5002,Supply driver CPC training for Chorley Council staff a per you quote,22/03/2017,119710,600.00,Revenue,Lancashire County Council,17758
Chorley Borough Council,http://statistics.data.gov.uk/id/local-authority/30UE,Unapportionable Central OHeads,1009,Policy & Governance,Pensions Deficit Recovery Contributions,12003,Direct Employee Expenses,5001,pension,21/03/2017,119849,"17,517.58",Revenue,Lancashire County Council,18386
Chorley Borough Council,http://statistics.data.gov.uk/id/local-authority/30UE,Capital,Capital,Early Intervention,Grants,3002,Capital Expenditure,Capital,ADDRESS REDACTED,24/03/2017,119985,"3,863.00",Capital,Lancashire County Council,17758
Chorley Borough Council,http://statistics.data.gov.uk/id/local-authority/30UE,Service Management & Support,1009,Business Development & Growth,External Contractor,40198,Miscellaneous Expenses,5034,Repairs to lamp columns by Astley Park Gates 11.11.16,31/03/2017,120100,173.30,Revenue,Lancashire County Council,20027
Chorley Borough Council,http://statistics.data.gov.uk/id/local-authority/30UE,Parking Services,1066,Business Development & Growth,Fixtures & Fittings - Repair/Mtnce,20028,Fixtures and Fittings,5010,Repairs to lamp columns on Queens Road Car Park 11.11.16,31/03/2017,120100,248.24,Revenue,Lancashire County Council,20027
Chorley Borough Council,http://statistics.data.gov.uk/id/local-authority/30UE,Parking Services,1066,Business Development & Growth,Fixtures & Fittings - Repair/Mtnce,20028,Fixtures and Fittings,5010,Repairs to lamp columns on Hallgate Car park 15.11.16,31/03/2017,120100,60.00,Revenue,Lancashire County Council,20027
Chorley Borough Council,http://statistics.data.gov.uk/id/local-authority/30UE,Parking Services,1066,Business Development & Growth,Fixtures & Fittings - Repair/Mtnce,20028,Fixtures and Fittings,5010,Repairs to lamp columns on Friday St Car Park 22.11.16,31/03/2017,120100,123.80,Revenue,Lancashire County Council,20027
Chorley Borough Council,http://statistics.data.gov.uk/id/local-authority/30UE,Parking Services,1066,Business Development & Growth,Fixtures & Fittings - Repair/Mtnce,20028,Fixtures and Fittings,5010,Repairs to lamp columns on West Street car park 08.12.16,31/03/2017,120100,67.98,Revenue,Lancashire County Council,20027
Chorley Borough Council,http://statistics.data.gov.uk/id/local-authority/30UE,Service Management & Support,1009,Business Development & Growth,External Contractor,40198,Miscellaneous Expenses,5034,Repairs to lamp columns on Bengal St Depot 08.12.16,31/03/2017,120100,60.00,Revenue,Lancashire County Council,20027
Chorley Borough Council,http://statistics.data.gov.uk/id/local-authority/30UE,Service Management & Support,1009,Business Development & Growth,External Contractor,40198,Miscellaneous Expenses,5034,Call out to feeder pillar adj Bus Stop on Central Avenue 14.12.16,31/03/2017,120100,60.00,Revenue,Lancashire County Council,20027
Chorley Borough Council,http://statistics.data.gov.uk/id/local-authority/30UE,Parking Services,1066,Business Development & Growth,Fixtures & Fittings - Repair/Mtnce,20028,Fixtures and Fittings,5010,Call out to re-set timeclocks on Hallgate Car Park,31/03/2017,120100,75.00,Revenue,Lancashire County Council,20027
Chorley Borough Council,http://statistics.data.gov.uk/id/local-authority/30UE,Parking Services,1066,Business Development & Growth,Fixtures & Fittings - Repair/Mtnce,20028,Fixtures and Fittings,5010,Repairs to lamp columns on Portland St car park 18.01.17,31/03/2017,120100,211.77,Revenue,Lancashire County Council,20027
Chorley Borough Council,http://statistics.data.gov.uk/id/local-authority/30UE,Unapportionable Central OHeads,1009,Policy & Governance,Pensions Deficit Recovery Contributions,12003,Direct Employee Expenses,5001,pension charges,30/03/2017,120127,"17,781.91",Revenue,Lancashire County Council,18386
Chorley Borough Council,http://statistics.data.gov.uk/id/local-authority/30UE,Corporate Management,1008,Policy & Governance,Other Fees,40212,Miscellaneous Expenses,5034,Meals on Wheels Service - Four Weekly payment,01/03/2017,119231,923.61,Revenue,Lancashire Fayre,62967
Chorley Borough Council,http://statistics.data.gov.uk/id/local-authority/30UE,Corporate Management,1008,Policy & Governance,Other Fees,40212,Miscellaneous Expenses,5034,To cover 4 weekly payment for meals,24/03/2017,119948,911.57,Revenue,Lancashire Fayre,62967
Chorley Borough Council,http://statistics.data.gov.uk/id/local-authority/30UE,Other Short Term Creditors,,Policy & Governance,General Balances,100,Balance Sheet,Balance,ees,21/03/2017,119101,"42,232.19",Revenue,Lancashire Pensions Services,16696
Chorley Borough Council,http://statistics.data.gov.uk/id/local-authority/30UE,Other Short Term Creditors,,Policy & Governance,General Balances,100,Balance Sheet,Balance,ers,21/03/2017,119101,"72,378.62",Revenue,Lancashire Pensions Services,16696
Chorley Borough Council,http://statistics.data.gov.uk/id/local-authority/30UE,Unapportionable Central OHeads,1009,Policy & Governance,Pensions Deficit Recovery Contributions,12003,Direct Employee Expenses,5001,deificit,21/03/2017,119101,"79,633.33",Revenue,Lancashire Pensions Services,16696
Chorley Borough Council,http://statistics.data.gov.uk/id/local-authority/30UE,Other Short Term Creditors,,Policy & Governance,General Balances,100,Balance Sheet,Balance,employee adde,21/03/2017,119101,537.34,Revenue,Lancashire Pensions Services,16696
Chorley Borough Council,http://statistics.data.gov.uk/id/local-authority/30UE,Other Short Term Creditors,,Policy & Governance,General Balances,100,Balance Sheet,Balance,arc,21/03/2017,119101,175.55,Revenue,Lancashire Pensions Services,16696
Chorley Borough Council,http://statistics.data.gov.uk/id/local-authority/30UE,Corporate Management,1008,Customer & Digital,Clinical Waste Collection,50007,Private Contractors,5042,"Disposal of clinical waste from Chorley household. April 2016 to March 2017. Yellow bag collections, approx. 550 per month.",29/03/2017,119797,802.56,Revenue,Lancashire Teaching Hospitals NHS FT,19003
Chorley Borough Council,http://statistics.data.gov.uk/id/local-authority/30UE,Corporate Management,1008,Customer & Digital,Clinical Waste Collection,50007,Private Contractors,5042,"Disposal of clinical waste from Chorley household. April 2016 to March 2017. Yellow bag collections, approx. 550 per month.",24/03/2017,119820,746.13,Revenue,Lancashire Teaching Hospitals NHS FT,19003
Chorley Borough Council,http://statistics.data.gov.uk/id/local-authority/30UE,Community Development,1097,Policy & Governance,Core Funding Grants,40133,Grants and Subscriptions,5031,2nd payment for commission for VCFS 2016/17,01/03/2017,119063,"7,500.00",Revenue,Lancashire West Citizens Advice Bureaux,17035
Chorley Borough Council,http://statistics.data.gov.uk/id/local-authority/30UE,Corporate Management,1008,Early Intervention,Professional Fees,14011,Direct Employee Expenses,5001,Annual Subscription to Environmental Health Lancashire for 2016/17.,22/03/2017,119278,250.00,Revenue,Lancaster City Council,19989
Chorley Borough Council,http://statistics.data.gov.uk/id/local-authority/30UE,Precepts and Collection Fund,Precepts,Policy & Governance,LCFA Precept,2011,Precepts & Collection Fund,Precept,ctax,21/03/2017,119619,"233,211.00",Revenue,Lancs Combined Fire Authority,17768
Chorley Borough Council,http://statistics.data.gov.uk/id/local-authority/30UE,Collection Fund Revenue Accoun,,Policy & Governance,NNDR Fire Share,2037,Precepts & Collection Fund,Precept,bus rates,21/03/2017,119619,"29,222.00",Revenue,Lancs Combined Fire Authority,17768
Chorley Borough Council,http://statistics.data.gov.uk/id/local-authority/30UE,Central Support Services,1009,Early Intervention,Miscellaneous Expenses,40200,Miscellaneous Expenses,5034,"Abbey Village War memorial  REMOVE EXISTING CONCRETE SURFACING POWER WASH CLEAN MEMORIAL STRUCTURE, SURROUNDING WALLS AND COPINGS SUPPLY",22/03/2017,116842,"3,350.00",Revenue,Landscape Engineering Ltd,54727
Chorley Borough Council,http://statistics.data.gov.uk/id/local-authority/30UE,Corporate Management,1008,Customer & Digital,General Subscriptions,40146,Grants and Subscriptions,5031,LARAC Membership subscription 2017-18,22/03/2017,119765,425.00,Revenue,Larac,16550
Chorley Borough Council,http://statistics.data.gov.uk/id/local-authority/30UE,Central Support Services,1009,Policy & Governance,Car Leasing Payment,14100,Direct Employee Expenses,5001,NAME REDACTED,22/03/2017,119848,"2,759.73",Revenue,LeasePlan UK Ltd T/A Automotive Leasing,65197
Chorley Borough Council,http://statistics.data.gov.uk/id/local-authority/30UE,Central Support Services,1009,Policy & Governance,Car Leasing Payment,14100,Direct Employee Expenses,5001,Employee expenses,22/03/2017,119848,239.97,Revenue,LeasePlan UK Ltd T/A Automotive Leasing,65197
Chorley Borough Council,http://statistics.data.gov.uk/id/local-authority/30UE,Unapportionable Central OHeads,1009,Policy & Governance,General Subscriptions,40146,Grants and Subscriptions,5031,"Financial Intelligence Toolkit 2017/18 for Chorley Council to include Funding Briefings, Medium-Term Revenue Resource Forecast",29/03/2017,119995,"4,470.00",Revenue,LG Futures,22551
Chorley Borough Council,http://statistics.data.gov.uk/id/local-authority/30UE,Unapportionable Central OHeads,1009,Policy & Governance,General Subscriptions,40146,Grants and Subscriptions,5031,"Financial Intelligence Toolkit 2017/18 for South Ribble Borough Council to include Funding Briefings, Medium-Term Revenue Res",29/03/2017,120006,"4,470.00",Revenue,LG Futures,22551
Chorley Borough Council,http://statistics.data.gov.uk/id/local-authority/30UE,Unapportionable Central OHeads,1009,Policy & Governance,Miscellaneous Expenses,40200,Miscellaneous Expenses,5034,Two month advertorial and advertising campaign for Check Out Chorley in Northern Life magazine,31/03/2017,120095,250.00,Revenue,Loop Publishing Ltd,18770
Chorley Borough Council,http://statistics.data.gov.uk/id/local-authority/30UE,Unapportionable Central OHeads,1009,Policy & Governance,Stationery,40050,"Printing, Stationery & General",5026,Lyreco Bullet Tip Black Whiteboard Markers - Box Of 10,31/03/2017,119992,9.00,Revenue,Lyreco UK Ltd,17623
Chorley Borough Council,http://statistics.data.gov.uk/id/local-authority/30UE,Unapportionable Central OHeads,1009,Policy & Governance,Stationery,40050,"Printing, Stationery & General",5026,Lyreco Premium Gel,31/03/2017,119992,20.40,Revenue,Lyreco UK Ltd,17623
Chorley Borough Council,http://statistics.data.gov.uk/id/local-authority/30UE,Unapportionable Central OHeads,1009,Policy & Governance,Stationery,40050,"Printing, Stationery & General",5026,Lyreco Premium Gel Rollerball,31/03/2017,119992,20.40,Revenue,Lyreco UK Ltd,17623
Chorley Borough Council,http://statistics.data.gov.uk/id/local-authority/30UE,Unapportionable Central OHeads,1009,Policy & Governance,Stationery,40050,"Printing, Stationery & General",5026,LYRECO A3 GLOSS LAMINATING POUCH,31/03/2017,119992,39.44,Revenue,Lyreco UK Ltd,17623
Chorley Borough Council,http://statistics.data.gov.uk/id/local-authority/30UE,Unapportionable Central OHeads,1009,Policy & Governance,Stationery,40050,"Printing, Stationery & General",5026,LYRECO A4 MULTI-PUNCHED GLASS CLEAR PLASTIC POCKETS 80 MICRONS - BOX OF 100,31/03/2017,119992,73.10,Revenue,Lyreco UK Ltd,17623
Chorley Borough Council,http://statistics.data.gov.uk/id/local-authority/30UE,Unapportionable Central OHeads,1009,Policy & Governance,Stationery,40050,"Printing, Stationery & General",5026,LYRECO BUDGET WHITE 8 X 5INCH SHORTHAND NOTEBOOKS (RULED) - PACK OF 20(X80 SHTS),31/03/2017,119992,20.20,Revenue,Lyreco UK Ltd,17623
Chorley Borough Council,http://statistics.data.gov.uk/id/local-authority/30UE,Unapportionable Central OHeads,1009,Policy & Governance,Stationery,40050,"Printing, Stationery & General",5026,Lyreco Budget Notebook A4 60 gsm ruled spiral - Pack of 10,31/03/2017,119992,29.00,Revenue,Lyreco UK Ltd,17623
Chorley Borough Council,http://statistics.data.gov.uk/id/local-authority/30UE,Central Support Services,1009,Policy & Governance,Stationery,40050,"Printing, Stationery & General",5026,HP Officejet Toner No 950 - Black,31/03/2017,119992,69.32,Revenue,Lyreco UK Ltd,17623
Chorley Borough Council,http://statistics.data.gov.uk/id/local-authority/30UE,Unapportionable Central OHeads,1009,Policy & Governance,Stationery,40050,"Printing, Stationery & General",5026,Lyreco Crepe Masking Tape - 25Mm X 50M Roll,31/03/2017,119992,8.82,Revenue,Lyreco UK Ltd,17623
Chorley Borough Council,http://statistics.data.gov.uk/id/local-authority/30UE,Central Support Services,1009,Policy & Governance,Stationery,40050,"Printing, Stationery & General",5026,Edding E400 Permanent Marker,31/03/2017,119992,17.90,Revenue,Lyreco UK Ltd,17623
Chorley Borough Council,http://statistics.data.gov.uk/id/local-authority/30UE,Unapportionable Central OHeads,1009,Policy & Governance,Stationery,40050,"Printing, Stationery & General",5026,Polyproplylene Foldover Clipboard Black,31/03/2017,119992,17.34,Revenue,Lyreco UK Ltd,17623
Chorley Borough Council,http://statistics.data.gov.uk/id/local-authority/30UE,Unapportionable Central OHeads,1009,Policy & Governance,Stationery,40050,"Printing, Stationery & General",5026,LYRECO Phone Cleaning Wipes Sachets - Pack Of 50,31/03/2017,119992,6.18,Revenue,Lyreco UK Ltd,17623
Chorley Borough Council,http://statistics.data.gov.uk/id/local-authority/30UE,Unapportionable Central OHeads,1009,Policy & Governance,Stationery,40050,"Printing, Stationery & General",5026,Impega Wet/Dry Multi-Purpose Wipes Tub - 50 Pairs,31/03/2017,119992,2.84,Revenue,Lyreco UK Ltd,17623
Chorley Borough Council,http://statistics.data.gov.uk/id/local-authority/30UE,Homelessness,1075,Early Intervention,Stationery,40050,"Printing, Stationery & General",5026,LYRECO compatible ink cartridge for HP Officejet 6100 - Black,31/03/2017,119993,11.65,Revenue,Lyreco UK Ltd,17623
Chorley Borough Council,http://statistics.data.gov.uk/id/local-authority/30UE,Homelessness,1075,Early Intervention,Stationery,40050,"Printing, Stationery & General",5026,LYRECO compatible ink cartridge for HP Officejet 6100 - Cyan,31/03/2017,119993,10.92,Revenue,Lyreco UK Ltd,17623
Chorley Borough Council,http://statistics.data.gov.uk/id/local-authority/30UE,Homelessness,1075,Early Intervention,Stationery,40050,"Printing, Stationery & General",5026,LYRECO compatible ink cartridge for HP Officejet 6100 - Magenta,31/03/2017,119993,10.92,Revenue,Lyreco UK Ltd,17623
Chorley Borough Council,http://statistics.data.gov.uk/id/local-authority/30UE,Homelessness,1075,Early Intervention,Stationery,40050,"Printing, Stationery & General",5026,LYRECO compatible ink cartridge for HP Officejet 6100 - Yellow,31/03/2017,119993,10.92,Revenue,Lyreco UK Ltd,17623
Chorley Borough Council,http://statistics.data.gov.uk/id/local-authority/30UE,Homelessness,1075,Early Intervention,Stationery,40050,"Printing, Stationery & General",5026,MICRON ballpoint black stick pens 0.7mm,31/03/2017,119993,11.00,Revenue,Lyreco UK Ltd,17623
Chorley Borough Council,http://statistics.data.gov.uk/id/local-authority/30UE,Homelessness,1075,Early Intervention,Stationery,40050,"Printing, Stationery & General",5026,Plastic Key Hangers - Assorted,31/03/2017,119993,5.38,Revenue,Lyreco UK Ltd,17623
Chorley Borough Council,http://statistics.data.gov.uk/id/local-authority/30UE,Homelessness,1075,Early Intervention,Stationery,40050,"Printing, Stationery & General",5026,Lyreco sticky adhesive tack,31/03/2017,119993,7.02,Revenue,Lyreco UK Ltd,17623
Chorley Borough Council,http://statistics.data.gov.uk/id/local-authority/30UE,Homelessness,1075,Early Intervention,Stationery,40050,"Printing, Stationery & General",5026,lYRECO STICKY NOTES,31/03/2017,119993,6.48,Revenue,Lyreco UK Ltd,17623
Chorley Borough Council,http://statistics.data.gov.uk/id/local-authority/30UE,Homelessness,1075,Early Intervention,Stationery,40050,"Printing, Stationery & General",5026,LYRECO STICKY NOTES,31/03/2017,119993,9.36,Revenue,Lyreco UK Ltd,17623
Chorley Borough Council,http://statistics.data.gov.uk/id/local-authority/30UE,Homelessness,1075,Early Intervention,Stationery,40050,"Printing, Stationery & General",5026,LYRECO correction tape rollers 4.2mm,31/03/2017,119993,22.20,Revenue,Lyreco UK Ltd,17623
Chorley Borough Council,http://statistics.data.gov.uk/id/local-authority/30UE,Homelessness,1075,Early Intervention,Stationery,40050,"Printing, Stationery & General",5026,Black 203 x 127mm Card Index Box,31/03/2017,119993,6.90,Revenue,Lyreco UK Ltd,17623
Chorley Borough Council,http://statistics.data.gov.uk/id/local-authority/30UE,Homelessness,1075,Early Intervention,Stationery,40050,"Printing, Stationery & General",5026,Silvine Record cards,31/03/2017,119993,3.42,Revenue,Lyreco UK Ltd,17623
Chorley Borough Council,http://statistics.data.gov.uk/id/local-authority/30UE,Homelessness,1075,Early Intervention,Stationery,40050,"Printing, Stationery & General",5026,Telephone message pads - pack of 10,31/03/2017,119993,24.40,Revenue,Lyreco UK Ltd,17623
Chorley Borough Council,http://statistics.data.gov.uk/id/local-authority/30UE,Homelessness,1075,Early Intervention,Stationery,40050,"Printing, Stationery & General",5026,A4 twinwire manuscript books,31/03/2017,119993,14.85,Revenue,Lyreco UK Ltd,17623
Chorley Borough Council,http://statistics.data.gov.uk/id/local-authority/30UE,Homelessness,1075,Early Intervention,Stationery,40050,"Printing, Stationery & General",5026,Phone Cleaning Sachets (Pack 50),31/03/2017,119993,6.18,Revenue,Lyreco UK Ltd,17623
Chorley Borough Council,http://statistics.data.gov.uk/id/local-authority/30UE,Homelessness,1075,Early Intervention,Stationery,40050,"Printing, Stationery & General",5026,SHATTERPROOF RULER 30CM / 12 INCHES CLEAR,31/03/2017,119993,1.75,Revenue,Lyreco UK Ltd,17623
Chorley Borough Council,http://statistics.data.gov.uk/id/local-authority/30UE,Homelessness,1075,Early Intervention,Stationery,40050,"Printing, Stationery & General",5026,C4 plain white envelopes(self seal),31/03/2017,119993,18.33,Revenue,Lyreco UK Ltd,17623
Chorley Borough Council,http://statistics.data.gov.uk/id/local-authority/30UE,Homelessness,1075,Early Intervention,Stationery,40050,"Printing, Stationery & General",5026,Energizer Batteries (AA),31/03/2017,119993,15.73,Revenue,Lyreco UK Ltd,17623
Chorley Borough Council,http://statistics.data.gov.uk/id/local-authority/30UE,Homelessness,1075,Early Intervention,Stationery,40050,"Printing, Stationery & General",5026,Energizer batteries (AAA),31/03/2017,119993,16.17,Revenue,Lyreco UK Ltd,17623
Chorley Borough Council,http://statistics.data.gov.uk/id/local-authority/30UE,Homelessness,1075,Early Intervention,Stationery,40050,"Printing, Stationery & General",5026,LYRECO Whiteboard Markers Assorted Colour - pack of 4,31/03/2017,119993,8.36,Revenue,Lyreco UK Ltd,17623
Chorley Borough Council,http://statistics.data.gov.uk/id/local-authority/30UE,Homelessness,1075,Early Intervention,Stationery,40050,"Printing, Stationery & General",5026,LYRECO assorted colour budget highlighters - pack of 6,31/03/2017,119993,3.08,Revenue,Lyreco UK Ltd,17623
Chorley Borough Council,http://statistics.data.gov.uk/id/local-authority/30UE,Homelessness,1075,Early Intervention,Stationery,40050,"Printing, Stationery & General",5026,LYRECO HEAVY DUTY STICKY TAPE DISPENSER FOR 19MM X 33/66M TAPES (NOT INCLUDED),31/03/2017,119993,8.16,Revenue,Lyreco UK Ltd,17623
Chorley Borough Council,http://statistics.data.gov.uk/id/local-authority/30UE,Homelessness,1075,Early Intervention,Stationery,40050,"Printing, Stationery & General",5026,Budget Box File,31/03/2017,119993,23.90,Revenue,Lyreco UK Ltd,17623
Chorley Borough Council,http://statistics.data.gov.uk/id/local-authority/30UE,Homelessness,1075,Early Intervention,Stationery,40050,"Printing, Stationery & General",5026,Dymo Label Manager 210D,31/03/2017,119993,56.10,Revenue,Lyreco UK Ltd,17623
Chorley Borough Council,http://statistics.data.gov.uk/id/local-authority/30UE,Homelessness,1075,Early Intervention,Stationery,40050,"Printing, Stationery & General",5026,wirebound notebooks (ruled and perforated),31/03/2017,119993,29.04,Revenue,Lyreco UK Ltd,17623
Chorley Borough Council,http://statistics.data.gov.uk/id/local-authority/30UE,Homelessness,1075,Early Intervention,Stationery,40050,"Printing, Stationery & General",5026,3L Self-adhesive business card pockets,31/03/2017,119993,10.98,Revenue,Lyreco UK Ltd,17623
Chorley Borough Council,http://statistics.data.gov.uk/id/local-authority/30UE,Homelessness,1075,Early Intervention,Stationery,40050,"Printing, Stationery & General",5026,LYRECO A4 Laminating Pouches 250 microns - pack of 100,31/03/2017,119993,41.40,Revenue,Lyreco UK Ltd,17623
Chorley Borough Council,http://statistics.data.gov.uk/id/local-authority/30UE,Corporate Management,1008,Chief Executive,Stationery,40050,"Printing, Stationery & General",5026, 1 x box black permanent black markers,31/03/2017,119994,5.40,Revenue,Lyreco UK Ltd,17623
Chorley Borough Council,http://statistics.data.gov.uk/id/local-authority/30UE,Corporate Management,1008,Chief Executive,Stationery,40050,"Printing, Stationery & General",5026,MICRON ballpoint black stick pens 0.7mm,31/03/2017,119994,5.50,Revenue,Lyreco UK Ltd,17623
Chorley Borough Council,http://statistics.data.gov.uk/id/local-authority/30UE,Democratic Represent and  Mgnt,1007,Chief Executive,Stationery,40050,"Printing, Stationery & General",5026,A4 twinwire manuscript books,31/03/2017,119994,14.85,Revenue,Lyreco UK Ltd,17623
Chorley Borough Council,http://statistics.data.gov.uk/id/local-authority/30UE,Democratic Represent and  Mgnt,1007,Chief Executive,Stationery,40050,"Printing, Stationery & General",5026,Mouse Mat,31/03/2017,119994,2.84,Revenue,Lyreco UK Ltd,17623
Chorley Borough Council,http://statistics.data.gov.uk/id/local-authority/30UE,Unapportionable Central OHeads,1009,Chief Executive,Stationery,40050,"Printing, Stationery & General",5026,Calculators,31/03/2017,119994,10.54,Revenue,Lyreco UK Ltd,17623
Chorley Borough Council,http://statistics.data.gov.uk/id/local-authority/30UE,Unapportionable Central OHeads,1009,Chief Executive,Stationery,40050,"Printing, Stationery & General",5026,Mouse Mat,31/03/2017,119994,2.84,Revenue,Lyreco UK Ltd,17623
Chorley Borough Council,http://statistics.data.gov.uk/id/local-authority/30UE,Unapportionable Central OHeads,1009,Chief Executive,Stationery,40050,"Printing, Stationery & General",5026,Lyreco Black No.26/6 Plastic Half Strip Stapler - 20 Sheet Capacity,31/03/2017,119994,8.26,Revenue,Lyreco UK Ltd,17623
Chorley Borough Council,http://statistics.data.gov.uk/id/local-authority/30UE,Unapportionable Central OHeads,1009,Chief Executive,Stationery,40050,"Printing, Stationery & General",5026,ADHESIVE LABELS 50MM DIA - COMPANY SEAL - RED - PACK OF 8,31/03/2017,119994,22.70,Revenue,Lyreco UK Ltd,17623
Chorley Borough Council,http://statistics.data.gov.uk/id/local-authority/30UE,Unapportionable Central OHeads,1009,Chief Executive,Stationery,40050,"Printing, Stationery & General",5026,Elba Spring Pocket Files - Green,31/03/2017,119994,107.46,Revenue,Lyreco UK Ltd,17623
Chorley Borough Council,http://statistics.data.gov.uk/id/local-authority/30UE,Unapportionable Central OHeads,1009,Chief Executive,Stationery,40050,"Printing, Stationery & General",5026,BX 5000 Lyreco Staples 26/6,31/03/2017,119994,2.42,Revenue,Lyreco UK Ltd,17623
Chorley Borough Council,http://statistics.data.gov.uk/id/local-authority/30UE,Unapportionable Central OHeads,1009,Chief Executive,Stationery,40050,"Printing, Stationery & General",5026,"A4 Clearview Binders, Black ( box 100)",31/03/2017,119994,60.61,Revenue,Lyreco UK Ltd,17623
Chorley Borough Council,http://statistics.data.gov.uk/id/local-authority/30UE,Unapportionable Central OHeads,1009,Chief Executive,Stationery,40050,"Printing, Stationery & General",5026,Lyreco White C4 Self Seal Window Envelopes 100Gsm - Box Of 250,31/03/2017,119994,23.40,Revenue,Lyreco UK Ltd,17623
Chorley Borough Council,http://statistics.data.gov.uk/id/local-authority/30UE,Unapportionable Central OHeads,1009,Chief Executive,Stationery,40050,"Printing, Stationery & General",5026,Lyreco Black A4 2 O-Ring Binder 25Mm Spine - Box Of 10,31/03/2017,119994,17.60,Revenue,Lyreco UK Ltd,17623
Chorley Borough Council,http://statistics.data.gov.uk/id/local-authority/30UE,Unapportionable Central OHeads,1009,Chief Executive,Stationery,40050,"Printing, Stationery & General",5026,Pvc Transparent Report Binding Covers 200 Microns A4 - Box Of 100,31/03/2017,119994,14.03,Revenue,Lyreco UK Ltd,17623
Chorley Borough Council,http://statistics.data.gov.uk/id/local-authority/30UE,Democratic Represent and  Mgnt,1007,Chief Executive,Stationery,40050,"Printing, Stationery & General",5026,Impega Assorted Colour Extra Wide A4 10-Part Index Subject Dividers,31/03/2017,119994,2.70,Revenue,Lyreco UK Ltd,17623
Chorley Borough Council,http://statistics.data.gov.uk/id/local-authority/30UE,Democratic Represent and  Mgnt,1007,Chief Executive,Stationery,40050,"Printing, Stationery & General",5026,"3.110.545 LYRECO HARD BACK TWIN WIRE NOTEBK A4 	 - PACK OF 5",31/03/2017,119994,14.85,Revenue,Lyreco UK Ltd,17623
Chorley Borough Council,http://statistics.data.gov.uk/id/local-authority/30UE,Democratic Represent and  Mgnt,1007,Chief Executive,Stationery,40050,"Printing, Stationery & General",5026,Sellotape,31/03/2017,119994,3.96,Revenue,Lyreco UK Ltd,17623
Chorley Borough Council,http://statistics.data.gov.uk/id/local-authority/30UE,Democratic Represent and  Mgnt,1007,Chief Executive,Stationery,40050,"Printing, Stationery & General",5026, A4 Multi-Punched Plastic Pockets 80 Microns - Pack Of 100,31/03/2017,119994,8.51,Revenue,Lyreco UK Ltd,17623
Chorley Borough Council,http://statistics.data.gov.uk/id/local-authority/30UE,Democratic Represent and  Mgnt,1007,Chief Executive,Stationery,40050,"Printing, Stationery & General",5026,Lyreco Plain Yellow Sticky Notes 75 X 75Mm - Pack Of 12 Pads,31/03/2017,119994,3.24,Revenue,Lyreco UK Ltd,17623
Chorley Borough Council,http://statistics.data.gov.uk/id/local-authority/30UE,Unapportionable Central OHeads,1009,Chief Executive,Stationery,40050,"Printing, Stationery & General",5026,Lyreco Budget A4 Multi-Punched Plastic Pockets 55 Microns - Pack Of 100,31/03/2017,119994,7.28,Revenue,Lyreco UK Ltd,17623
Chorley Borough Council,http://statistics.data.gov.uk/id/local-authority/30UE,Unapportionable Central OHeads,1009,Chief Executive,Stationery,40050,"Printing, Stationery & General",5026,Assrtd Subject dividers - 12 part,31/03/2017,119994,7.40,Revenue,Lyreco UK Ltd,17623
Chorley Borough Council,http://statistics.data.gov.uk/id/local-authority/30UE,Service Management & Support,1009,Customer & Digital,Grounds Maintenance Contractor,20043,Grounds Maintenance Costs,5013,Various Tree works carried out,01/03/2017,119238,"3,965.00",Revenue,M J Walker,62044
Chorley Borough Council,http://statistics.data.gov.uk/id/local-authority/30UE,Development Control,1091,Customer & Digital,Miscellaneous Expenses,40200,Miscellaneous Expenses,5034,Various tree works,10/03/2017,119495,300.00,Revenue,M J Walker,62044
Chorley Borough Council,http://statistics.data.gov.uk/id/local-authority/30UE,Capital,Capital,Early Intervention,Grants,3002,Capital Expenditure,Capital,ADDRESS REDACTED,03/03/2017,119348,"3,830.00",Capital,M.J Park Building Contractors,20367
Chorley Borough Council,http://statistics.data.gov.uk/id/local-authority/30UE,Capital,Capital,Early Intervention,Grants,3002,Capital Expenditure,Capital,ADDRESS REDACTED,03/03/2017,119349,"4,010.00",Capital,M.J Park Building Contractors,20367
Chorley Borough Council,http://statistics.data.gov.uk/id/local-authority/30UE,Corporate Management,1008,Customer & Digital,Other Contributions,40145,Grants and Subscriptions,5031,ADDRESS REDACTED,15/03/2017,119562,"4,354.80",Revenue,NAME REDACTED,73960
Chorley Borough Council,http://statistics.data.gov.uk/id/local-authority/30UE,Business Support,1095,Business Development & Growth,Grants To Other Organisations,40127,Grants and Subscriptions,5031,shop grant,10/03/2017,119329,"2,206.25",Revenue,NAME REDACTED,76579
Chorley Borough Council,http://statistics.data.gov.uk/id/local-authority/30UE,Corporate Management,1008,Customer & Digital,Other Contributions,40145,Grants and Subscriptions,5031,ADDRESS REDACTED,22/03/2017,119845,"1,701.60",Revenue,NAME REDACTED,76625
Chorley Borough Council,http://statistics.data.gov.uk/id/local-authority/30UE,Unapportionable Central OHeads,1009,Policy & Governance,Miscellaneous Expenses,40200,Miscellaneous Expenses,5034,Annual Marketing Lancashire subvention plus additional contribution and listings for the council`s visitor assets,01/03/2017,119234,"4,925.00",Revenue,Marketing Lancashire,65208
Chorley Borough Council,http://statistics.data.gov.uk/id/local-authority/30UE,Tourism,1039,Policy & Governance,Professional Fees,40063,Services,5027,Professional Fees,31/03/2017,115012,250.00,Revenue,Marsh Road Nursery,71513
Chorley Borough Council,http://statistics.data.gov.uk/id/local-authority/30UE,Unapportionable Central OHeads,1009,Policy & Governance,Agency Staff,13000,Direct Employee Expenses,5001,AGENCY FEES,03/03/2017,119359,771.04,Revenue,Matrix SCM Ltd,22128
Chorley Borough Council,http://statistics.data.gov.uk/id/local-authority/30UE,Unapportionable Central OHeads,1009,Policy & Governance,Agency Staff,13000,Direct Employee Expenses,5001,AGENCY FEES,03/03/2017,119359,469.08,Revenue,Matrix SCM Ltd,22128
Chorley Borough Council,http://statistics.data.gov.uk/id/local-authority/30UE,Economic Development,1096,Policy & Governance,Agency Staff,13000,Direct Employee Expenses,5001,AGENCY FEES,15/03/2017,119545,648.41,Revenue,Matrix SCM Ltd,22128
Chorley Borough Council,http://statistics.data.gov.uk/id/local-authority/30UE,Unapportionable Central OHeads,1009,Policy & Governance,Agency Staff,13000,Direct Employee Expenses,5001,AGENCY FEES,15/03/2017,119545,313.80,Revenue,Matrix SCM Ltd,22128
Chorley Borough Council,http://statistics.data.gov.uk/id/local-authority/30UE,Unapportionable Central OHeads,1009,Policy & Governance,Agency Staff,13000,Direct Employee Expenses,5001,AGENCY FEES,22/03/2017,119774,469.08,Revenue,Matrix SCM Ltd,22128
Chorley Borough Council,http://statistics.data.gov.uk/id/local-authority/30UE,Unapportionable Central OHeads,1009,Policy & Governance,Agency Staff,13000,Direct Employee Expenses,5001,AGENCY FEES,24/03/2017,119990,469.08,Revenue,Matrix SCM Ltd,22128
Chorley Borough Council,http://statistics.data.gov.uk/id/local-authority/30UE,Housing Strategy,1069,Policy & Governance,Agency Staff,13000,Direct Employee Expenses,5001,AGENCY FEES,24/03/2017,119990,669.09,Revenue,Matrix SCM Ltd,22128
Chorley Borough Council,http://statistics.data.gov.uk/id/local-authority/30UE,Unapportionable Central OHeads,1009,Policy & Governance,Agency Staff,13000,Direct Employee Expenses,5001,AGENCY FEES,24/03/2017,119990,168.30,Revenue,Matrix SCM Ltd,22128
Chorley Borough Council,http://statistics.data.gov.uk/id/local-authority/30UE,Unapportionable Central OHeads,1009,Policy & Governance,Agency Staff,13000,Direct Employee Expenses,5001,AGENCY FEES,31/03/2017,120132,187.63,Revenue,Matrix SCM Ltd,22128
Chorley Borough Council,http://statistics.data.gov.uk/id/local-authority/30UE,Housing Strategy,1069,Policy & Governance,Agency Staff,13000,Direct Employee Expenses,5001,AGENCY FEES,31/03/2017,120132,740.60,Revenue,Matrix SCM Ltd,22128
Chorley Borough Council,http://statistics.data.gov.uk/id/local-authority/30UE,Unapportionable Central OHeads,1009,Policy & Governance,Agency Staff,13000,Direct Employee Expenses,5001,AGENCY FEES,31/03/2017,120132,67.32,Revenue,Matrix SCM Ltd,22128
Chorley Borough Council,http://statistics.data.gov.uk/id/local-authority/30UE,Recognised Cap Grants & Conts,,Business Development & Growth,Contributions Parish Councils,40144,Grants and Subscriptions,5031,cil,31/03/2017,120122,"2,817.81",Revenue,Mawdesley Parish Council,17570
Chorley Borough Council,http://statistics.data.gov.uk/id/local-authority/30UE,Unapportionable Central OHeads,1009,Business Development & Growth,General Repairs - Reactive,20004,Repairs Maintenance & Alts,5005,Blanket order for reactive works for 2016.,17/03/2017,117758,"1,045.00",Revenue,Maxigiene Environmental Services Ltd,67160
Chorley Borough Council,http://statistics.data.gov.uk/id/local-authority/30UE,Unapportionable Central OHeads,1009,Business Development & Growth,Planned Maintenance,20006,Repairs Maintenance & Alts,5005,Blanket order for PPM works from September 2016.,15/03/2017,119290,"1,803.75",Revenue,Maxigiene Environmental Services Ltd,67160
Chorley Borough Council,http://statistics.data.gov.uk/id/local-authority/30UE,Unapportionable Central OHeads,1009,Business Development & Growth,General Repairs - Reactive,20004,Repairs Maintenance & Alts,5005,Blanket Order Reactive Repairs to end of March 2017,22/03/2017,119676,375.00,Revenue,Maxigiene Environmental Services Ltd,67160
Chorley Borough Council,http://statistics.data.gov.uk/id/local-authority/30UE,Democratic Represent and  Mgnt,1007,Customer & Digital,Playground Equipment,40008,"Equipment, Furniture & Materia",5023,20 ton of play sand,22/03/2017,119751,419.00,Revenue,Mc & Ma Stewart (Haulage Ltd),16627
Chorley Borough Council,http://statistics.data.gov.uk/id/local-authority/30UE,Service Management & Support,1009,Customer & Digital,Supplies-Grounds Maintenance,40025,"Equipment, Furniture & Materia",5023,Supply 20 tonne of mushroom compost to be delivered to Coronation Rec Ground Ashfield Rd entrance Chorley on 14/02/2017 ,29/03/2017,119766,408.40,Revenue,Mc & Ma Stewart (Haulage Ltd),16627
Chorley Borough Council,http://statistics.data.gov.uk/id/local-authority/30UE,Democratic Represent and  Mgnt,1007,Business Development & Growth,Maintenance/Nature Reserves,20045,Grounds Maintenance Costs,5013,"Supply of Ultitrec to Yarrow Valley Country Park and Withenll Local Nature Reserve. Ref cbc 40838, 40837, 40834",24/03/2017,119917,409.03,Revenue,Mc & Ma Stewart (Haulage Ltd),16627
Chorley Borough Council,http://statistics.data.gov.uk/id/local-authority/30UE,Democratic Represent and  Mgnt,1007,Business Development & Growth,Maintenance/Nature Reserves,20045,Grounds Maintenance Costs,5013,"Supply of Ultitrec to Yarrow Valley Country Park and Withenll Local Nature Reserve. Ref cbc 40838, 40837, 40834",24/03/2017,119918,406.96,Revenue,Mc & Ma Stewart (Haulage Ltd),16627
Chorley Borough Council,http://statistics.data.gov.uk/id/local-authority/30UE,Democratic Represent and  Mgnt,1007,Business Development & Growth,Maintenance/Nature Reserves,20045,Grounds Maintenance Costs,5013,"Supply of Ultitrec to Yarrow Valley Country Park and Withenll Local Nature Reserve. Ref cbc 40838, 40837, 40834",24/03/2017,119919,817.86,Revenue,Mc & Ma Stewart (Haulage Ltd),16627
Chorley Borough Council,http://statistics.data.gov.uk/id/local-authority/30UE,Capital,Capital,Customer & Digital,Equipment,3014,Capital Expenditure,Capital,"240 litre wheeled bin, Colour : Green :  including Chorley logo",29/03/2017,118952,"9,296.00",Capital,MGB Plastics Ltd,18624
Chorley Borough Council,http://statistics.data.gov.uk/id/local-authority/30UE,Capital,Capital,Customer & Digital,Equipment,3014,Capital Expenditure,Capital,"240 litre wheeled bin Colour : Brown, including Chorley logo",29/03/2017,118953,"9,184.00",Capital,MGB Plastics Ltd,18624
Chorley Borough Council,http://statistics.data.gov.uk/id/local-authority/30UE,Capital,Capital,Customer & Digital,Equipment,3014,Capital Expenditure,Capital,"240 litre wheeled bin including RFID micro-chip.   Colour : anthracite grey RAL 7016,  Chorley Council logo. ",29/03/2017,119810,"11,603.20",Capital,MGB Plastics Ltd,18624
Chorley Borough Council,http://statistics.data.gov.uk/id/local-authority/30UE,Capital,Capital,Customer & Digital,Equipment,3014,Capital Expenditure,Capital,"240 litre wheeled bin including RFID micro-chip.   Colour : anthracite grey RAL 7016,  Chorley Council logo. ",29/03/2017,119812,"11,603.20",Capital,MGB Plastics Ltd,18624
Chorley Borough Council,http://statistics.data.gov.uk/id/local-authority/30UE,Capital,Capital,Customer & Digital,Equipment,3014,Capital Expenditure,Capital,"240 litre wheeled bin including RFID micro-chip.   Colour : anthracite grey RAL 7016,  Chorley Council logo.",29/03/2017,119813,"11,603.20",Capital,MGB Plastics Ltd,18624
Chorley Borough Council,http://statistics.data.gov.uk/id/local-authority/30UE,Capital,Capital,Customer & Digital,Equipment,3014,Capital Expenditure,Capital,"240 litre wheeled bin including RFID micro-chip.   Colour : anthracite grey RAL 7016,  Chorley Council logo. ",29/03/2017,119814,"11,603.20",Capital,MGB Plastics Ltd,18624
Chorley Borough Council,http://statistics.data.gov.uk/id/local-authority/30UE,Capital,Capital,Customer & Digital,Equipment,3014,Capital Expenditure,Capital,"240 litre wheeled bin including RFID micro-chip.   Colour : anthracite grey RAL 7016,  Chorley Council logo. ",29/03/2017,119815,"11,603.20",Capital,MGB Plastics Ltd,18624
Chorley Borough Council,http://statistics.data.gov.uk/id/local-authority/30UE,Capital,Capital,Customer & Digital,Equipment,3014,Capital Expenditure,Capital,"240 litre wheeled bin including RFID micro-chip.   Colour : anthracite grey RAL 7016,  Chorley Council logo. ",29/03/2017,119816,"11,603.20",Capital,MGB Plastics Ltd,18624
Chorley Borough Council,http://statistics.data.gov.uk/id/local-authority/30UE,Capital,Capital,Customer & Digital,Equipment,3014,Capital Expenditure,Capital,"240 litre wheeled bin including RFID micro-chip.   Colour : anthracite grey RAL 7016,  Chorley Council logo. ",29/03/2017,119817,"11,603.20",Capital,MGB Plastics Ltd,18624
Chorley Borough Council,http://statistics.data.gov.uk/id/local-authority/30UE,Capital,Capital,Customer & Digital,Equipment,3014,Capital Expenditure,Capital,"240 litre wheeled bin including RFID micro-chip.   Colour : anthracite grey RAL 7016,  Chorley Council logo. ",29/03/2017,119818,"11,603.20",Capital,MGB Plastics Ltd,18624
Chorley Borough Council,http://statistics.data.gov.uk/id/local-authority/30UE,Capital,Capital,Customer & Digital,Equipment,3014,Capital Expenditure,Capital,"240 litre wheeled bin including RFID micro-chip.   Colour : anthracite grey RAL 7016,  Chorley Council logo. ",29/03/2017,119819,"11,603.20",Capital,MGB Plastics Ltd,18624
Chorley Borough Council,http://statistics.data.gov.uk/id/local-authority/30UE,Capital,Capital,Customer & Digital,Equipment,3014,Capital Expenditure,Capital,"240 litre wheeled bin including RFID micro-chip.   Colour : anthracite grey RAL 7016,  Chorley Council logo. ",29/03/2017,119821,"11,603.20",Capital,MGB Plastics Ltd,18624
Chorley Borough Council,http://statistics.data.gov.uk/id/local-authority/30UE,Capital,Capital,Customer & Digital,Equipment,3014,Capital Expenditure,Capital,"240 litre wheeled bin including RFID micro-chip.   Colour : anthracite grey RAL 7016,  Chorley Council logo. ",29/03/2017,119907,"11,603.20",Capital,MGB Plastics Ltd,18624
Chorley Borough Council,http://statistics.data.gov.uk/id/local-authority/30UE,Capital,Capital,Customer & Digital,Equipment,3014,Capital Expenditure,Capital,"240 litre wheeled bin including RFID micro-chip.   Colour : anthracite grey RAL 7016,  Chorley Council logo. ",29/03/2017,119920,"11,603.20",Capital,MGB Plastics Ltd,18624
Chorley Borough Council,http://statistics.data.gov.uk/id/local-authority/30UE,Capital,Capital,Customer & Digital,Equipment,3014,Capital Expenditure,Capital,"240 litre wheeled bin including RFID micro-chip.   Colour : anthracite grey RAL 7016,  Chorley Council logo. ",29/03/2017,119921,"11,603.20",Capital,MGB Plastics Ltd,18624
Chorley Borough Council,http://statistics.data.gov.uk/id/local-authority/30UE,Capital,Capital,Customer & Digital,Equipment,3014,Capital Expenditure,Capital,"240 litre wheeled bin including RFID micro-chip.   Colour : anthracite grey RAL 7016,  Chorley Council logo. ",29/03/2017,119922,"11,603.20",Capital,MGB Plastics Ltd,18624
Chorley Borough Council,http://statistics.data.gov.uk/id/local-authority/30UE,Capital,Capital,Customer & Digital,Equipment,3014,Capital Expenditure,Capital,"240 litre wheeled bin including RFID micro-chip.   Colour : anthracite grey RAL 7016,  Chorley Council logo. ",29/03/2017,119923,"11,603.20",Capital,MGB Plastics Ltd,18624
Chorley Borough Council,http://statistics.data.gov.uk/id/local-authority/30UE,Capital,Capital,Customer & Digital,Equipment,3014,Capital Expenditure,Capital,"Supply of 140 litre wheeled bins including RFID micro-chip. Colour : anthracite grey RAL 7016,  Chorley Council logo.",29/03/2017,119935,"5,800.00",Capital,MGB Plastics Ltd,18624
Chorley Borough Council,http://statistics.data.gov.uk/id/local-authority/30UE,Capital,Capital,Customer & Digital,Equipment,3014,Capital Expenditure,Capital,"240 litre wheeled bin including RFID micro-chip.   Colour : anthracite grey RAL 7016,  Chorley Council logo. ",29/03/2017,119936,"5,801.60",Capital,MGB Plastics Ltd,18624
Chorley Borough Council,http://statistics.data.gov.uk/id/local-authority/30UE,Capital,Capital,Customer & Digital,Equipment,3014,Capital Expenditure,Capital,"240 litre wheeled bin including RFID micro-chip.   Colour : anthracite grey RAL 7016,  Chorley Council logo. ",31/03/2017,120093,"11,603.20",Capital,MGB Plastics Ltd,18624
Chorley Borough Council,http://statistics.data.gov.uk/id/local-authority/30UE,Capital,Capital,Customer & Digital,Equipment,3014,Capital Expenditure,Capital,"240 litre wheeled bin including RFID micro-chip.   Colour : anthracite grey RAL 7016,  Chorley Council logo. ",31/03/2017,120106,"11,603.20",Capital,MGB Plastics Ltd,18624
Chorley Borough Council,http://statistics.data.gov.uk/id/local-authority/30UE,Capital,Capital,Customer & Digital,Equipment,3014,Capital Expenditure,Capital,"240 litre wheeled bin including RFID micro-chip.   Colour : anthracite grey RAL 7016,  Chorley Council logo. ",31/03/2017,120107,"11,603.20",Capital,MGB Plastics Ltd,18624
Chorley Borough Council,http://statistics.data.gov.uk/id/local-authority/30UE,Capital,Capital,Customer & Digital,Equipment,3014,Capital Expenditure,Capital,"240 litre wheeled bin including RFID micro-chip.   Colour : anthracite grey RAL 7016,  Chorley Council logo. ",31/03/2017,120108,"11,603.20",Capital,MGB Plastics Ltd,18624
Chorley Borough Council,http://statistics.data.gov.uk/id/local-authority/30UE,Capital,Capital,Customer & Digital,Equipment,3014,Capital Expenditure,Capital,"240 litre wheeled bin including RFID micro-chip.   Colour : anthracite grey RAL 7016,  Chorley Council logo. ",31/03/2017,120109,"11,603.20",Capital,MGB Plastics Ltd,18624
Chorley Borough Council,http://statistics.data.gov.uk/id/local-authority/30UE,Capital,Capital,Customer & Digital,Equipment,3014,Capital Expenditure,Capital,"240 litre wheeled bin including RFID micro-chip.   Colour : anthracite grey RAL 7016,  Chorley Council logo. ",31/03/2017,120110,"11,603.20",Capital,MGB Plastics Ltd,18624
Chorley Borough Council,http://statistics.data.gov.uk/id/local-authority/30UE,Democratic Represent and  Mgnt,1007,Policy & Governance,Consultants` Fees,40077,Services,5027,Consultation on improvements to the interpretation and visitor experience at Astley Hall.,17/03/2017,119767,"2,095.00",Revenue,Michael Oakenfull - Querceus Design,76520
Chorley Borough Council,http://statistics.data.gov.uk/id/local-authority/30UE,Private Sector HSG Renewal,1073,Early Intervention,External Contractor,40198,Miscellaneous Expenses,5034,ADDRESS REDACTED,15/03/2017,119631,860.00,Revenue,Mobility Care Services,70841
Chorley Borough Council,http://statistics.data.gov.uk/id/local-authority/30UE,Private Sector HSG Renewal,1073,Early Intervention,External Contractor,40198,Miscellaneous Expenses,5034,ADDRESS REDACTED,15/03/2017,119633,370.00,Revenue,Mobility Care Services,70841
Chorley Borough Council,http://statistics.data.gov.uk/id/local-authority/30UE,Private Sector HSG Renewal,1073,Early Intervention,External Contractor,40198,Miscellaneous Expenses,5034,ADDRESS REDACTED,15/03/2017,119634,375.00,Revenue,Mobility Care Services,70841
Chorley Borough Council,http://statistics.data.gov.uk/id/local-authority/30UE,Private Sector HSG Renewal,1073,Early Intervention,External Contractor,40198,Miscellaneous Expenses,5034,ADDRESS REDACTED,15/03/2017,119635,250.00,Revenue,Mobility Care Services,70841
Chorley Borough Council,http://statistics.data.gov.uk/id/local-authority/30UE,Private Sector HSG Renewal,1073,Early Intervention,External Contractor,40198,Miscellaneous Expenses,5034,ADDRESS REDACTED,15/03/2017,119636,360.00,Revenue,Mobility Care Services,70841
Chorley Borough Council,http://statistics.data.gov.uk/id/local-authority/30UE,Private Sector HSG Renewal,1073,Early Intervention,External Contractor,40198,Miscellaneous Expenses,5034,ADDRESS REDACTED,15/03/2017,119641,280.00,Revenue,Mobility Care Services,70841
Chorley Borough Council,http://statistics.data.gov.uk/id/local-authority/30UE,Capital,Capital,Early Intervention,Grants,3002,Capital Expenditure,Capital,ADDRESS REDACTED,22/03/2017,119841,930.00,Capital,Mobility Care Services,70841
Chorley Borough Council,http://statistics.data.gov.uk/id/local-authority/30UE,Business Support,1095,Business Development & Growth,Grants To Other Organisations,40127,Grants and Subscriptions,5031,grant,17/03/2017,119515,"2,400.00",Revenue,NAME REDACTED,76598
Chorley Borough Council,http://statistics.data.gov.uk/id/local-authority/30UE,Business Support,1095,Business Development & Growth,Grants To Other Organisations,40127,Grants and Subscriptions,5031,sib grant,24/03/2017,119843,250.00,Revenue,NAME REDACTED,76581
Chorley Borough Council,http://statistics.data.gov.uk/id/local-authority/30UE,Corporate Management,1008,Customer & Digital,Other Contributions,40145,Grants and Subscriptions,5031,ADDRESS REDACTED,22/03/2017,119776,"4,706.00",Revenue,NAME REDACTED,73985
Chorley Borough Council,http://statistics.data.gov.uk/id/local-authority/30UE,Central Support Services,1009,Early Intervention,Licence Fees,60084,Customer & Client Receipts,5064,refund,31/03/2017,120056,440.50,Revenue,NAME REDACTED,76638
Chorley Borough Council,http://statistics.data.gov.uk/id/local-authority/30UE,Business Support,1095,Business Development & Growth,Grants To Other Organisations,40127,Grants and Subscriptions,5031,shop grant,17/03/2017,119683,"1,878.37",Revenue,NAME REDACTED,76597
Chorley Borough Council,http://statistics.data.gov.uk/id/local-authority/30UE,Corporate Management,1008,Customer & Digital,Other Contributions,40145,Grants and Subscriptions,5031,ADDRESS REDACTED,22/03/2017,119891,"4,706.00",Revenue,NAME REDACTED,73762
Chorley Borough Council,http://statistics.data.gov.uk/id/local-authority/30UE,Private Sector HSG Renewal,1073,Early Intervention,External Contractor,40198,Miscellaneous Expenses,5034,Provision of Energy Switching Support Service in February 2017,03/03/2017,119267,921.00,Revenue,Mrs Heather Shaw,65606
Chorley Borough Council,http://statistics.data.gov.uk/id/local-authority/30UE,Private Sector HSG Renewal,1073,Early Intervention,External Contractor,40198,Miscellaneous Expenses,5034,Provision of Energy Switching Support Service during March 2017,29/03/2017,120086,981.00,Revenue,Mrs Heather Shaw,65606
Chorley Borough Council,http://statistics.data.gov.uk/id/local-authority/30UE,Private Sector HSG Renewal,1073,Early Intervention,Miscellaneous Expenses,40200,Miscellaneous Expenses,5034,contrib to boiler,01/03/2017,119201,999.00,Revenue,NAME REDACTED,76522
Chorley Borough Council,http://statistics.data.gov.uk/id/local-authority/30UE,Business Support,1095,Business Development & Growth,Grants To Other Organisations,40127,Grants and Subscriptions,5031,Grants and Subscriptions,29/03/2017,118830,525.00,Revenue,NAME REDACTED,76549
Chorley Borough Council,http://statistics.data.gov.uk/id/local-authority/30UE,Corporate Management,1008,Customer & Digital,Other Contributions,40145,Grants and Subscriptions,5031,ADDRESS REDACTED,22/03/2017,119892,"1,236.00",Revenue,NAME REDACTED,73966
Chorley Borough Council,http://statistics.data.gov.uk/id/local-authority/30UE,Development Control,1091,Customer & Digital,Miscellaneous Expenses,40200,Miscellaneous Expenses,5034,Developers Planning Viability Assessments for Taylor Wimpey project as per invoice,31/03/2017,120021,"6,000.00",Revenue,Murray Lloyd Associates Ltd,76626
Chorley Borough Council,http://statistics.data.gov.uk/id/local-authority/30UE,Development Control,1091,Customer & Digital,Miscellaneous Expenses,40200,Miscellaneous Expenses,5034,Developers Planning Viability Assessment for Brindle Homes project as per invoice,31/03/2017,120021,"2,750.00",Revenue,Murray Lloyd Associates Ltd,76626
Chorley Borough Council,http://statistics.data.gov.uk/id/local-authority/30UE,Economic Development,1096,Business Development & Growth,Miscellaneous Expenses,40200,Miscellaneous Expenses,5034,250 copies of inward investment magazine,03/03/2017,119292,310.00,Revenue,N B Colour Print Ltd,17917
Chorley Borough Council,http://statistics.data.gov.uk/id/local-authority/30UE,Unapportionable Central OHeads,1009,Policy & Governance,Exhibitions & Special Events,40158,Miscellaneous Expenses,5034,"2000 x A6 programme for What`s Your Story, Chorley? 2017",31/03/2017,120084,431.00,Revenue,N B Colour Print Ltd,17917
Chorley Borough Council,http://statistics.data.gov.uk/id/local-authority/30UE,Unapportionable Central OHeads,1009,Policy & Governance,Miscellaneous Expenses,40200,Miscellaneous Expenses,5034,"Printing of 12,000 What`s Happening magazine March - June 2017",31/03/2017,120085,"2,331.00",Revenue,N B Colour Print Ltd,17917
Chorley Borough Council,http://statistics.data.gov.uk/id/local-authority/30UE,Business Support,1095,Business Development & Growth,Grants To Other Organisations,40127,Grants and Subscriptions,5031,big grant,10/03/2017,119294,"3,000.00",Revenue,Nature Trail Nursery Ltd,75666
Chorley Borough Council,http://statistics.data.gov.uk/id/local-authority/30UE,Unapportionable Central OHeads,1009,Customer & Digital,Refuse Collection,20037,Cleaning and Domestic Supplies,5012,civic offices,03/03/2017,119353,252.20,Revenue,Neales Waste Management,17583
Chorley Borough Council,http://statistics.data.gov.uk/id/local-authority/30UE,Unapportionable Central OHeads,1009,Customer & Digital,Refuse Collection,20037,Cleaning and Domestic Supplies,5012,town hall,03/03/2017,119358,252.20,Revenue,Neales Waste Management,17583
Chorley Borough Council,http://statistics.data.gov.uk/id/local-authority/30UE,Service Management & Support,1009,Customer & Digital,Refuse Collection,20037,Cleaning and Domestic Supplies,5012,Exchange of 35 yrd green waste skip as per your quote from Bengal St depot. Please use this order from 01/04/2016,15/03/2017,119436,280.00,Revenue,Neales Waste Management,17583
Chorley Borough Council,http://statistics.data.gov.uk/id/local-authority/30UE,Service Management & Support,1009,Customer & Digital,Refuse Collection,20037,Cleaning and Domestic Supplies,5012,Charges for green waste removal from Bengal St depot as per your quote. Please use this order No from 01/04/2016 ,15/03/2017,119436,539.34,Revenue,Neales Waste Management,17583
Chorley Borough Council,http://statistics.data.gov.uk/id/local-authority/30UE,Service Management & Support,1009,Customer & Digital,Refuse Collection,20037,Cleaning and Domestic Supplies,5012,Cleaning and Domestic Supplies,15/03/2017,119436,"1,893.57",Revenue,Neales Waste Management,17583
Chorley Borough Council,http://statistics.data.gov.uk/id/local-authority/30UE,Business Support,1095,Business Development & Growth,Refuse Collection,20037,Cleaning and Domestic Supplies,5012,Market Walk YARD 1 - General Waste compacted - 35 Cubic Yard Roll On / Roll Off Skip from Compactor,15/03/2017,119437,241.92,Revenue,Neales Waste Management,17583
Chorley Borough Council,http://statistics.data.gov.uk/id/local-authority/30UE,Business Support,1095,Business Development & Growth,Refuse Collection,20037,Cleaning and Domestic Supplies,5012,Market Walk YARD 1 - General Waste Compacted Disposal Costs per tonne (variable depended on weight collected),15/03/2017,119437,"1,814.75",Revenue,Neales Waste Management,17583
Chorley Borough Council,http://statistics.data.gov.uk/id/local-authority/30UE,Business Support,1095,Business Development & Growth,Refuse Collection,20037,Cleaning and Domestic Supplies,5012,Market Walk YARD 1 - Cardboard and plastic film 35 Cubic yard Ro Ro skip,15/03/2017,119437,134.00,Revenue,Neales Waste Management,17583
Chorley Borough Council,http://statistics.data.gov.uk/id/local-authority/30UE,Business Support,1095,Business Development & Growth,Refuse Collection,20037,Cleaning and Domestic Supplies,5012,Market Walk YARD 2 - cardboard and plastic film - 35 cubic yard Ro Ro skip,15/03/2017,119438,50.00,Revenue,Neales Waste Management,17583
Chorley Borough Council,http://statistics.data.gov.uk/id/local-authority/30UE,Business Support,1095,Business Development & Growth,Refuse Collection,20037,Cleaning and Domestic Supplies,5012,Market Walk YARD 2 - General Waste - 8 cubic yard FEL skip,15/03/2017,119438,220.00,Revenue,Neales Waste Management,17583
Chorley Borough Council,http://statistics.data.gov.uk/id/local-authority/30UE,Business Support,1095,Business Development & Growth,Refuse Collection,20037,Cleaning and Domestic Supplies,5012,Market Walk YARD 3 - general waste - x2  8 cubic yard FEL skip Lift Costs,15/03/2017,119439,690.00,Revenue,Neales Waste Management,17583
Chorley Borough Council,http://statistics.data.gov.uk/id/local-authority/30UE,Economic Development,1096,Business Development & Growth,Miscellaneous Expenses,40200,Miscellaneous Expenses,5034,Steeley Lane - Art Panels. Final Layouts ordering and installation (installation completed by others) Including licence negotiations,31/03/2017,120098,"2,581.00",Revenue,Newground CIC,22064
Chorley Borough Council,http://statistics.data.gov.uk/id/local-authority/30UE,Unapportionable Central OHeads,1009,Customer & Digital,Publications,40054,"Printing, Stationery & General",5026,Council Tax Publication 2017/18 (Quote Ref AC3544692),22/03/2017,119798,627.20,Revenue,Newsquest (Lancashire) Limited,18117
Chorley Borough Council,http://statistics.data.gov.uk/id/local-authority/30UE,Economic Development,1096,Business Development & Growth,Promotional Expenses,40159,Miscellaneous Expenses,5034,For exhibition promotional goods 442.76 inclusive of VAT,22/03/2017,119835,368.97,Revenue,Nick Hart,72086
Chorley Borough Council,http://statistics.data.gov.uk/id/local-authority/30UE,Unapportionable Central OHeads,1009,Chief Executive,Stationery,40050,"Printing, Stationery & General",5026,Newspapers supplied to Union Street April 2016 to March 2017,03/03/2017,119246,369.60,Revenue,Nooze `n` Booze,19382
Chorley Borough Council,http://statistics.data.gov.uk/id/local-authority/30UE,Unapportionable Central OHeads,1009,Policy & Governance,Laundry,40042,"Clothing, Uniforms and Laundry",5025,Invoice number 379 Tablecloths  and towels Laundered and pressed up to the 6th Jan 2017,31/03/2017,120114,693.50,Revenue,North West Ironing & Laundry Centre,20450
Chorley Borough Council,http://statistics.data.gov.uk/id/local-authority/30UE,Capital,Capital,Policy & Governance,Purchase Money,3027,Capital Expenditure,Capital,purchase money,31/03/2017,120136,"2,050,000.00",Capital,Northern Trust Company Ltd,19090
Chorley Borough Council,http://statistics.data.gov.uk/id/local-authority/30UE,Capital,Capital,Policy & Governance,Purchase Money,3027,Capital Expenditure,Capital,victory park,31/03/2017,120136,"200,000.00",Capital,Northern Trust Company Ltd,19090
Chorley Borough Council,http://statistics.data.gov.uk/id/local-authority/30UE,Business Support,1095,Policy & Governance,Rent/Hire Of Premises,20017,Premises Rents,5007,rent,31/03/2017,120136,"13,750.00",Revenue,Northern Trust Company Ltd,19090
Chorley Borough Council,http://statistics.data.gov.uk/id/local-authority/30UE,Business Support,1095,Policy & Governance,Rent/Hire Of Premises,20017,Premises Rents,5007,rent,31/03/2017,120136,"1,057.69",Revenue,Northern Trust Company Ltd,19090
Chorley Borough Council,http://statistics.data.gov.uk/id/local-authority/30UE,Central Support Services,1009,Customer & Digital,Computer Software-Maintenance,40107,Communication and Computing,5028,Migration of Public Access to a new Windows 2012 environment Additional Information: 1. Expenses are not included in the above,01/03/2017,118178,"1,500.00",Revenue,Northgate Public Services (UK) Limited,18285
Chorley Borough Council,http://statistics.data.gov.uk/id/local-authority/30UE,Central Support Services,1009,Customer & Digital,Computer Software-Maintenance,40107,Communication and Computing,5028,Migration of Public Access to a new Windows 2012 environment Additional Information: 1. Expenses are not included in the above,10/03/2017,118586,"1,500.00",Revenue,Northgate Public Services (UK) Limited,18285
Chorley Borough Council,http://statistics.data.gov.uk/id/local-authority/30UE,Central Support Services,1009,Customer & Digital,Computer Software-Purchase,40100,Communication and Computing,5028,Adlib Full Licence,22/03/2017,119266,"3,500.00",Revenue,Northgate Public Services (UK) Limited,18285
Chorley Borough Council,http://statistics.data.gov.uk/id/local-authority/30UE,Central Support Services,1009,Customer & Digital,Computer Software-Purchase,40100,Communication and Computing,5028,Adlib Full Licence annual support & maintenance Period of 1 year commencing on date of order (�Start Date�),22/03/2017,119679,774.00,Revenue,Northgate Public Services (UK) Limited,18285
Chorley Borough Council,http://statistics.data.gov.uk/id/local-authority/30UE,Parking Services,1066,Business Development & Growth,Electricity,20013,Energy Costs,5006,car park,15/03/2017,119669,0.95,Revenue,Npower Commercial Gas,16814
Chorley Borough Council,http://statistics.data.gov.uk/id/local-authority/30UE,Parking Services,1066,Business Development & Growth,Electricity,20013,Energy Costs,5006,pay and display,15/03/2017,119669,93.59,Revenue,Npower Commercial Gas,16814
Chorley Borough Council,http://statistics.data.gov.uk/id/local-authority/30UE,Central Support Services,1009,Business Development & Growth,Electricity,20013,Energy Costs,5006,cctv,15/03/2017,119669,231.52,Revenue,Npower Commercial Gas,16814
Chorley Borough Council,http://statistics.data.gov.uk/id/local-authority/30UE,Democratic Represent and  Mgnt,1007,Business Development & Growth,Electricity,20013,Energy Costs,5006,tatton rec,24/03/2017,119941,36.53,Revenue,Npower Commercial Gas,16814
Chorley Borough Council,http://statistics.data.gov.uk/id/local-authority/30UE,Democratic Represent and  Mgnt,1007,Business Development & Growth,Electricity,20013,Energy Costs,5006,astley hall,24/03/2017,119941,141.39,Revenue,Npower Commercial Gas,16814
Chorley Borough Council,http://statistics.data.gov.uk/id/local-authority/30UE,Service Management & Support,1009,Business Development & Growth,Electricity,20013,Energy Costs,5006,yarrow valley,24/03/2017,119941,245.61,Revenue,Npower Commercial Gas,16814
Chorley Borough Council,http://statistics.data.gov.uk/id/local-authority/30UE,Service Management & Support,1009,Business Development & Growth,Electricity,20013,Energy Costs,5006,yarrow valley,24/03/2017,119941,-244.69,Revenue,Npower Commercial Gas,16814
Chorley Borough Council,http://statistics.data.gov.uk/id/local-authority/30UE,Community Development,1097,Business Development & Growth,Electricity,20013,Energy Costs,5006,market street,24/03/2017,119941,109.31,Revenue,Npower Commercial Gas,16814
Chorley Borough Council,http://statistics.data.gov.uk/id/local-authority/30UE,Democratic Represent and  Mgnt,1007,Business Development & Growth,Electricity,20013,Energy Costs,5006,astley coach house,24/03/2017,119941,"2,715.82",Revenue,Npower Commercial Gas,16814
Chorley Borough Council,http://statistics.data.gov.uk/id/local-authority/30UE,Democratic Represent and  Mgnt,1007,Business Development & Growth,Electricity,20013,Energy Costs,5006,asltey park,24/03/2017,119941,"1,281.84",Revenue,Npower Commercial Gas,16814
Chorley Borough Council,http://statistics.data.gov.uk/id/local-authority/30UE,Economic Development,1096,Business Development & Growth,Electricity,20013,Energy Costs,5006,market compactor,24/03/2017,119941,746.71,Revenue,Npower Commercial Gas,16814
Chorley Borough Council,http://statistics.data.gov.uk/id/local-authority/30UE,Democratic Represent and  Mgnt,1007,Business Development & Growth,Electricity,20013,Energy Costs,5006,king geroge,24/03/2017,119941,23.67,Revenue,Npower Commercial Gas,16814
Chorley Borough Council,http://statistics.data.gov.uk/id/local-authority/30UE,Democratic Represent and  Mgnt,1007,Business Development & Growth,Electricity,20013,Energy Costs,5006,king geroge,24/03/2017,119941,-23.81,Revenue,Npower Commercial Gas,16814
Chorley Borough Council,http://statistics.data.gov.uk/id/local-authority/30UE,Unapportionable Central OHeads,1009,Business Development & Growth,Electricity,20013,Energy Costs,5006,union street,24/03/2017,119941,"3,519.53",Revenue,Npower Commercial Gas,16814
Chorley Borough Council,http://statistics.data.gov.uk/id/local-authority/30UE,Unapportionable Central OHeads,1009,Business Development & Growth,Electricity,20013,Energy Costs,5006,bengal street,24/03/2017,119941,873.14,Revenue,Npower Commercial Gas,16814
Chorley Borough Council,http://statistics.data.gov.uk/id/local-authority/30UE,Unapportionable Central OHeads,1009,Business Development & Growth,Electricity,20013,Energy Costs,5006,town hall,24/03/2017,119941,"2,250.95",Revenue,Npower Commercial Gas,16814
Chorley Borough Council,http://statistics.data.gov.uk/id/local-authority/30UE,Homelessness,1075,Business Development & Growth,Electricity,20013,Energy Costs,5006,cotswold house,24/03/2017,119941,770.28,Revenue,Npower Commercial Gas,16814
Chorley Borough Council,http://statistics.data.gov.uk/id/local-authority/30UE,Parking Services,1066,Business Development & Growth,External Contractors,50008,Private Contractors,5042,"Provision of off street car park enforcement, cash collection, cash counting facilities and third party bulk cash collections ",03/03/2017,119304,"3,703.73",Revenue,NSL Limited,67253
Chorley Borough Council,http://statistics.data.gov.uk/id/local-authority/30UE,Service Management & Support,1009,Customer & Digital,Supplies - Workshop,40246,"Equipment, Furniture & Materia",5023,Supply items as on invoice number 206984 already supplied,22/03/2017,119725,388.98,Revenue,Nuts Engineering Supplies Ltd,16632
Chorley Borough Council,http://statistics.data.gov.uk/id/local-authority/30UE,Service Management & Support,1009,Customer & Digital,Supplies - Workshop,40246,"Equipment, Furniture & Materia",5023,Supply items as on invoice number 200514 for Chorley Council,24/03/2017,119864,300.00,Revenue,Nuts Engineering Supplies Ltd,16632
Chorley Borough Council,http://statistics.data.gov.uk/id/local-authority/30UE,Service Management & Support,1009,Customer & Digital,Supplies - Workshop,40246,"Equipment, Furniture & Materia",5023,Supply items as on invoice number 208800 for workshop use,29/03/2017,119908,262.95,Revenue,Nuts Engineering Supplies Ltd,16632
Chorley Borough Council,http://statistics.data.gov.uk/id/local-authority/30UE,Homelessness,1075,Early Intervention,Furniture - Purchase,40012,"Equipment, Furniture & Materia",5023,Swift Chrome Frame Conference Chairs (pack of 4) - Grey,22/03/2017,119717,276.00,Revenue,Office Furniture Online,60744
Chorley Borough Council,http://statistics.data.gov.uk/id/local-authority/30UE,Homelessness,1075,Early Intervention,Furniture - Purchase,40012,"Equipment, Furniture & Materia",5023,Solar Rectangular Folding Table 1800w x 800d x 715h - Light Oak,31/03/2017,119807,609.00,Revenue,Office Furniture Online,60744
Chorley Borough Council,http://statistics.data.gov.uk/id/local-authority/30UE,Community Development,1097,Policy & Governance,Core Funding Grants,40133,Grants and Subscriptions,5031,2nd Instalment for Young Peoples Commission,31/03/2017,119299,"5,000.00",Revenue,OnSide Youth Zones,72661
Chorley Borough Council,http://statistics.data.gov.uk/id/local-authority/30UE,Housing Benefit Administration,1077,Customer & Digital,Computer Software-Additional,40102,Communication and Computing,5028,Web Benefit calculator annual subscription for Chorley for period 21.2.17 to 20.1.18.670.00,31/03/2017,120096,670.00,Revenue,Otech Limited,17667
Chorley Borough Council,http://statistics.data.gov.uk/id/local-authority/30UE,Capital,Capital,Early Intervention,Main Contractor,3007,Capital Expenditure,Capital,Phase 6 Works at Cotswold,15/03/2017,119277,"100,257.25",Capital,P J Services (Bolton) Ltd,62962
Chorley Borough Council,http://statistics.data.gov.uk/id/local-authority/30UE,Elections,1012,Policy & Governance,Tools & Equipment - Purchase,40003,"Equipment, Furniture & Materia",5023,100 x 12 Candidate Tactile Voting Devices (@4.90 each) plus carriage,03/03/2017,119372,503.00,Revenue,Pakflatt Group,21177
Chorley Borough Council,http://statistics.data.gov.uk/id/local-authority/30UE,Parking Services,1066,Business Development & Growth,Tools & Equipment - Maintenance,40005,"Equipment, Furniture & Materia",5023,revised To carry out the new 1 coin upgrade to 9 machines as per specification forms to include the following works: 4 ,29/03/2017,119604,"1,782.00",Revenue,Parkeon Ltd,16279
Chorley Borough Council,http://statistics.data.gov.uk/id/local-authority/30UE,Parking Services,1066,Business Development & Growth,Tools & Equipment - Purchase,40003,"Equipment, Furniture & Materia",5023,changes to machine 6 on existing short stay car park which is being changed into Short Stay and Long Stay car park.,24/03/2017,119823,452.00,Revenue,Parkeon Ltd,16279
Chorley Borough Council,http://statistics.data.gov.uk/id/local-authority/30UE,Democratic Represent and  Mgnt,1007,Policy & Governance,Mayoral Hospitality,40123,Expenses,5030,Sound and lighting at Mayor`s Chorley`s Got Soul on 25th Feb 2017.,31/03/2017,120024,250.00,Revenue,Paul K Sound & Vision,16607
Chorley Borough Council,http://statistics.data.gov.uk/id/local-authority/30UE,Unapportionable Central OHeads,1009,Policy & Governance,HR Approved Occ Health Fees,15201,Indirect Employee Expenses,5002,Occupational Health fee for January 2017,24/03/2017,119949,250.00,Revenue,People Asset Management Limited,76487
Chorley Borough Council,http://statistics.data.gov.uk/id/local-authority/30UE,Unapportionable Central OHeads,1009,Policy & Governance,HR Approved Occ Health Fees,15201,Indirect Employee Expenses,5002,Occupational Health fees for February 2017,24/03/2017,119950,437.00,Revenue,People Asset Management Limited,76487
Chorley Borough Council,http://statistics.data.gov.uk/id/local-authority/30UE,Capital,Capital,Business Development & Growth,Other Capital Related Fees,3024,Capital Expenditure,Capital,Primrose Gardens January 2017,31/03/2017,119440,"9,104.64",Capital,Perfect Circle JV Ltd,76438
Chorley Borough Council,http://statistics.data.gov.uk/id/local-authority/30UE,Capital,Capital,Business Development & Growth,Other Capital Related Fees,3024,Capital Expenditure,Capital,Primrose Gardens March 2017,31/03/2017,119441,"6,242.76",Capital,Perfect Circle JV Ltd,76438
Chorley Borough Council,http://statistics.data.gov.uk/id/local-authority/30UE,Business Support,1095,Business Development & Growth,Performing Rights Society Fees,40148,Grants and Subscriptions,5031,"PRS Licence for Market Walk Shopping Centre, Chorley for period of 1st April 2017 - 31st March 2018 as per quote reference ",17/03/2017,119758,615.90,Revenue,Performing Right Society Ltd,19909
Chorley Borough Council,http://statistics.data.gov.uk/id/local-authority/30UE,Economic Development,1096,Business Development & Growth,Performing Rights Society Fees,40148,Grants and Subscriptions,5031,PRS Licence for Chorley Covered Market. Account no: 572455 for period 1st April 2017 - 31st March 2018 as per quote reference,17/03/2017,119768,842.10,Revenue,Performing Right Society Ltd,19909
Chorley Borough Council,http://statistics.data.gov.uk/id/local-authority/30UE,Central Support Services,1009,Early Intervention,External Contractor,40198,Miscellaneous Expenses,5034,Pest control duties for 2016/17,03/03/2017,119328,340.00,Revenue,Peter L Johnson,16727
Chorley Borough Council,http://statistics.data.gov.uk/id/local-authority/30UE,Central Support Services,1009,Early Intervention,External Contractor,40198,Miscellaneous Expenses,5034,Pest control duties for 2016/17,22/03/2017,119605,340.00,Revenue,Peter L Johnson,16727
Chorley Borough Council,http://statistics.data.gov.uk/id/local-authority/30UE,Central Support Services,1009,Early Intervention,External Contractor,40198,Miscellaneous Expenses,5034,Pest control duties for 2016/17,22/03/2017,119727,340.00,Revenue,Peter L Johnson,16727
Chorley Borough Council,http://statistics.data.gov.uk/id/local-authority/30UE,Central Support Services,1009,Early Intervention,External Contractor,40198,Miscellaneous Expenses,5034,Pest control duties for 2016/17,31/03/2017,119930,340.00,Revenue,Peter L Johnson,16727
Chorley Borough Council,http://statistics.data.gov.uk/id/local-authority/30UE,Central Support Services,1009,Early Intervention,External Contractor,40198,Miscellaneous Expenses,5034,Pest control duties for 2016/17,31/03/2017,120115,340.00,Revenue,Peter L Johnson,16727
Chorley Borough Council,http://statistics.data.gov.uk/id/local-authority/30UE,Capital,Capital,Business Development & Growth,Surveyors Fees,3021,Capital Expenditure,Capital,Astley Park lighting consultants fee as per quotation dated 21 October 2016,15/03/2017,118949,775.00,Capital,Petit Singleton Ltd,76384
Chorley Borough Council,http://statistics.data.gov.uk/id/local-authority/30UE,Capital,Capital,Customer & Digital,Consultants Fees,3025,Capital Expenditure,Capital,"Quantity surveying services for market walk - 43,056 over an 18 month period",03/03/2017,119315,"5,408.00",Capital,Pick Everard,76515
Chorley Borough Council,http://statistics.data.gov.uk/id/local-authority/30UE,Capital,Capital,Customer & Digital,Consultants Fees,3025,Capital Expenditure,Capital,"Project management services for market walk - 111,384 over an 18 month period",10/03/2017,119316,"10,816.00",Capital,Pick Everard,76515
Chorley Borough Council,http://statistics.data.gov.uk/id/local-authority/30UE,Central Support Services,1009,Early Intervention,Miscellaneous Expenses,40200,Miscellaneous Expenses,5034,Quote: DM/IE/PR700 3 x PR6 BWV Complete body worn video  3 x CH Chest Harness,31/03/2017,119492,"1,635.00",Revenue,Pinnacle Response Ltd,69639
Chorley Borough Council,http://statistics.data.gov.uk/id/local-authority/30UE,Capital,Capital,Business Development & Growth,Main Contractor,3007,Capital Expenditure,Capital,"5 visualisations - 4,912",15/03/2017,119670,675.00,Capital,Planit IE Limited,62532
Chorley Borough Council,http://statistics.data.gov.uk/id/local-authority/30UE,Business Support,1095,Chief Executive,Miscellaneous Expenses,40200,Miscellaneous Expenses,5034,masterplan,22/03/2017,119744,"9,998.50",Revenue,Planit IE Limited,62532
Chorley Borough Council,http://statistics.data.gov.uk/id/local-authority/30UE,Business Support,1095,Chief Executive,Miscellaneous Expenses,40200,Miscellaneous Expenses,5034,masterplan,22/03/2017,119745,"7,598.45",Revenue,Planit IE Limited,62532
Chorley Borough Council,http://statistics.data.gov.uk/id/local-authority/30UE,Central Support Services,1009,Early Intervention,Other Contributions,40145,Grants and Subscriptions,5031,Contribution to PCSO Provision in Chorley - Neighbourhood Policing and Early Action - Payable in 4 equal quarterly payments,03/03/2017,119279,"74,250.00",Revenue,Police & Crime Commissioner,17548
Chorley Borough Council,http://statistics.data.gov.uk/id/local-authority/30UE,Precepts and Collection Fund,Precepts,Policy & Governance,LPA Precept,2010,Precepts & Collection Fund,Precept,pcc ctax precept,21/03/2017,119615,"577,515.00",Revenue,Police & Crime Commissioner,17438
Chorley Borough Council,http://statistics.data.gov.uk/id/local-authority/30UE,Democratic Represent and  Mgnt,1007,Early Intervention,Fixtures & Fittings - Purchase,20027,Fixtures and Fittings,5010,"Front Elevation Mounted on the Gable.  From artwork supplied; manufacture, supply and install: Folded aluminium composite tray",31/03/2017,119608,437.57,Revenue,Poppy Signs Ltd,21898
Chorley Borough Council,http://statistics.data.gov.uk/id/local-authority/30UE,Recreation & Sport,1037,Early Intervention,Fixtures & Fittings - Purchase,20027,Fixtures and Fittings,5010,"Buttermere Community Centre - Two signs From artwork supplied; manufacture, supply and install",31/03/2017,119610,551.11,Revenue,Poppy Signs Ltd,21898
Chorley Borough Council,http://statistics.data.gov.uk/id/local-authority/30UE,Unapportionable Central OHeads,1009,Policy & Governance,Promotional Expenses,40159,Miscellaneous Expenses,5034,"10 x small `feather` banners and 10 x bases for the banners to promote What`s Your Story, Chorley? 2017",15/03/2017,119681,805.80,Revenue,Poppy Signs Ltd,21898
Chorley Borough Council,http://statistics.data.gov.uk/id/local-authority/30UE,Democratic Represent and  Mgnt,1007,Business Development & Growth,External Contractor,40198,Miscellaneous Expenses,5034,Signs for allotments in Chorley as per quotation REF8374/1,17/03/2017,119734,665.13,Revenue,Poppy Signs Ltd,21898
Chorley Borough Council,http://statistics.data.gov.uk/id/local-authority/30UE,Business Support,1095,Business Development & Growth,Signs:Provision & Maintenance,20065,Grounds Maintenance Costs,5013,"Hire, delivery/collection and insurance for the cherry picker (charged at cost price)",24/03/2017,119903,468.75,Revenue,Poppy Signs Ltd,21898
Chorley Borough Council,http://statistics.data.gov.uk/id/local-authority/30UE,Business Support,1095,Business Development & Growth,Signs:Provision & Maintenance,20065,Grounds Maintenance Costs,5013,Labour and parts for the repair. All RAMS paperwork provided,24/03/2017,119903,357.39,Revenue,Poppy Signs Ltd,21898
Chorley Borough Council,http://statistics.data.gov.uk/id/local-authority/30UE,Unapportionable Central OHeads,1009,Policy & Governance,Miscellaneous Expenses,40200,Miscellaneous Expenses,5034,Correx boards and stickers for technical signage for the Chorley Grand Prix 2017,24/03/2017,119944,256.62,Revenue,Poppy Signs Ltd,21898
Chorley Borough Council,http://statistics.data.gov.uk/id/local-authority/30UE,Unapportionable Central OHeads,1009,Policy & Governance,HR Approved Training Expenses,17001,Indirect Employee Expenses,5002,Performance Appraisal Training March 2017,10/03/2017,119434,990.00,Revenue,Potential Unearthed,22243
Chorley Borough Council,http://statistics.data.gov.uk/id/local-authority/30UE,Unapportionable Central OHeads,1009,Policy & Governance,Stationery,40050,"Printing, Stationery & General",5026,EVE4280 - Evolution Everyday A3 80gsm box 2500,17/03/2017,119581,477.08,Revenue,Premier Paper Group,54451
Chorley Borough Council,http://statistics.data.gov.uk/id/local-authority/30UE,Unapportionable Central OHeads,1009,Policy & Governance,Refreshments,40036,Catering,5024,Sanitisation of water cooler machines and supply of cups and bottled water for the Month of January 2017,22/03/2017,119799,306.00,Revenue,Pressure Coolers Ltd T/A Maestro International Ltd,19767
Chorley Borough Council,http://statistics.data.gov.uk/id/local-authority/30UE,Private Sector HSG Renewal,1073,Early Intervention,Miscellaneous Expenses,40200,Miscellaneous Expenses,5034,Affordable Warmth Fund activities (funded by LCC),10/03/2017,119473,897.34,Revenue,Preston Care and Repair,50018
Chorley Borough Council,http://statistics.data.gov.uk/id/local-authority/30UE,Private Sector HSG Renewal,1073,Early Intervention,Miscellaneous Expenses,40200,Miscellaneous Expenses,5034,Heating system maintenance works funded via LCC Affordable Warmth Grant,31/03/2017,120094,630.00,Revenue,Preston Care and Repair,50018
Chorley Borough Council,http://statistics.data.gov.uk/id/local-authority/30UE,Elections,1012,Policy & Governance,Postages,40082,Communication and Computing,5028,Postage for rural poll cards for areas confirmed in email request,24/03/2017,119898,"2,270.41",Revenue,Print Image Facilities LLP,57870
Chorley Borough Council,http://statistics.data.gov.uk/id/local-authority/30UE,Elections,1012,Policy & Governance,Printing,40043,"Printing, Stationery & General",5026,PI Refresh 2nd run,22/03/2017,119803,458.90,Revenue,Print Image Network,21171
Chorley Borough Council,http://statistics.data.gov.uk/id/local-authority/30UE,Other Short Term Creditors,,Policy & Governance,General Balances,100,Balance Sheet,Balance,sal ded,22/03/2017,119784,"2,751.83",Revenue,PRUDENTIAL,18178
Chorley Borough Council,http://statistics.data.gov.uk/id/local-authority/30UE,Interest Payable on Debt,1020,Policy & Governance,Interest Payable,9009,Interest Payments,5067,Interest,21/03/2017,119824,"10,119.63",Revenue,Public Works Loans Board,21480
Chorley Borough Council,http://statistics.data.gov.uk/id/local-authority/30UE,Business Support,1095,Business Development & Growth,Miscellaneous Expenses,40200,Miscellaneous Expenses,5034,Design/layout and artwork for Digital Office Park Site Particulars A4 document,17/03/2017,119735,336.00,Revenue,R D O`Donnell,76439
Chorley Borough Council,http://statistics.data.gov.uk/id/local-authority/30UE,Democratic Represent and  Mgnt,1007,Policy & Governance,Miscellaneous Expenses,40200,Miscellaneous Expenses,5034,"Gorget 69.99 Surgical Set 69.99 17th century buff coat 164.99  Lobster pot helmet 109.99 Medieval dining ",24/03/2017,119975,564.92,Revenue,Re-enactment Supplies,76592
Chorley Borough Council,http://statistics.data.gov.uk/id/local-authority/30UE,Democratic Represent and  Mgnt,1007,Policy & Governance,Miscellaneous Expenses,40200,Miscellaneous Expenses,5034,"Amputation set 165 Forceps 50 Musket ball extractor 130 Parrot   130 Clyster 90 Bone snips to cut off fingers or toes 130",24/03/2017,119896,"1,070.00",Revenue,Replicawarehouse,64349
Chorley Borough Council,http://statistics.data.gov.uk/id/local-authority/30UE,Control Accounts,Control,Policy & Governance,General Balances,100,Balance Sheet,Balance,childcare vouchers,21/03/2017,119534,"5,422.64",Revenue,Reward Gateway (UK) Ltd,66814
Chorley Borough Council,http://statistics.data.gov.uk/id/local-authority/30UE,Non Domestic Rates Redistribut,,Policy & Governance,Tariff to Business Rates Pool,49002,Expenditure not in NCOS,,bus rates pool,21/03/2017,118747,"628,533.00",Revenue,Ribble Valley Borough Council,21100
Chorley Borough Council,http://statistics.data.gov.uk/id/local-authority/30UE,Non Domestic Rates Redistribut,,Policy & Governance,Tariff to Business Rates Pool,49002,Expenditure not in NCOS,,bus rates pool,30/03/2017,119616,"628,533.00",Revenue,Ribble Valley Borough Council,21100
Chorley Borough Council,http://statistics.data.gov.uk/id/local-authority/30UE,Economic Development,1096,Business Development & Growth,Miscellaneous Expenses,40200,Miscellaneous Expenses,5034,"For speaker services NAME REDACTED,  at Boost your Business CRM business workshop",01/03/2017,119270,250.00,Revenue,NAME REDACTED,76578
Chorley Borough Council,http://statistics.data.gov.uk/id/local-authority/30UE,Capital,Capital,Business Development & Growth,Surveyors Fees,3021,Capital Expenditure,Capital,Provision of Quantity Surveying Services in accordance with tender dated 30.9.2016.,10/03/2017,119425,"1,250.00",Capital,Rider Levett Bucknall,67527
Chorley Borough Council,http://statistics.data.gov.uk/id/local-authority/30UE,Service Management & Support,1009,Customer & Digital,Tools & Equipment - Purchase,40003,"Equipment, Furniture & Materia",5023,Supply 4 x Evolution 16 knapsack sprayers as per quote from NAME REDACTED delivered to Bengal St depot PR7 1SA,29/03/2017,119912,320.00,Revenue,Rigby Taylor Ltd,16299
Chorley Borough Council,http://statistics.data.gov.uk/id/local-authority/30UE,Service Management & Support,1009,Customer & Digital,Tools & Equipment - Maintenance,40005,"Equipment, Furniture & Materia",5023,supply 4 X 1bar flow Regulator packs as per quote to NAME REDACTED to be delivered to Bengal St depot PR7 1SA,29/03/2017,119912,100.00,Revenue,Rigby Taylor Ltd,16299
Chorley Borough Council,http://statistics.data.gov.uk/id/local-authority/30UE,Community Development,1097,Policy & Governance,Core Funding Grants,40133,Grants and Subscriptions,5031,small comm funding,01/03/2017,119048,290.00,Revenue,Rivington & Adlington Brass Band,20845
Chorley Borough Council,http://statistics.data.gov.uk/id/local-authority/30UE,Capital,Capital,Business Development & Growth,Other Capital Related Fees,3024,Capital Expenditure,Capital,Building Services Engineering (M&E) for Digital Office Park  in accordance with your tender dated 24th November 2016.,10/03/2017,119259,"6,772.00",Capital,RPS Consulting Services Ltd,20128
Chorley Borough Council,http://statistics.data.gov.uk/id/local-authority/30UE,Development Control,1091,Chief Executive,Training Course Fees,17010,Indirect Employee Expenses,5002,10 North West Places Multi-buy code: NW/3311/ZY6CSQSXHL Expiry date: 23/11/2017,31/03/2017,119444,800.00,Revenue,RTPI North West,16769
Chorley Borough Council,http://statistics.data.gov.uk/id/local-authority/30UE,Corporate Management,1008,Policy & Governance,Publicity - Advertising,40157,Miscellaneous Expenses,5034,Garden waste collection changes animation,31/03/2017,119337,"1,000.00",Revenue,Ryan Hammond,76548
Chorley Borough Council,http://statistics.data.gov.uk/id/local-authority/30UE,Business Support,1095,Business Development & Growth,Grants To Other Organisations,40127,Grants and Subscriptions,5031,grant,24/03/2017,119983,"3,600.00",Revenue,S & S Northern Ltd,63233
Chorley Borough Council,http://statistics.data.gov.uk/id/local-authority/30UE,Business Support,1095,Business Development & Growth,Grants To Other Organisations,40127,Grants and Subscriptions,5031,shop grant,31/03/2017,120059,"3,540.00",Revenue,S&I Investments Ltd,76609
Chorley Borough Council,http://statistics.data.gov.uk/id/local-authority/30UE,Service Management & Support,1009,Customer & Digital,Vehicle Maintenance,30045,Direct Transport Costs,5016,Remove roof and mud wing to carryout repairs to damage caused by side arm flail attachment as requested,15/03/2017,119334,720.00,Revenue,Sam Bird Motorbodies,20116
Chorley Borough Council,http://statistics.data.gov.uk/id/local-authority/30UE,Homelessness,1075,Early Intervention,External Contractor,40198,Miscellaneous Expenses,5034,"For Concierge Service at Cotswold Supported Housing, Cotswold Road, Chorley, Lancashire, PR7 3HW.April 2016 to March 2017",15/03/2017,119488,"2,249.01",Revenue,Sector Security Services,19269
Chorley Borough Council,http://statistics.data.gov.uk/id/local-authority/30UE,Homelessness,1075,Early Intervention,External Contractor,40198,Miscellaneous Expenses,5034,"For Concierge Service at Cotswold Supported Housing, Cotswold Road, Chorley, Lancashire, PR7 3HW April 2016 to March 2017",15/03/2017,119556,"2,225.60",Revenue,Sector Security Services,19269
Chorley Borough Council,http://statistics.data.gov.uk/id/local-authority/30UE,Homelessness,1075,Early Intervention,External Contractor,40198,Miscellaneous Expenses,5034,"For Concierge Service at Cotswold Supported Housing, Cotswold Road, Chorley, Lancashire, PR7 3HW.April 2016 to March 2017",22/03/2017,119825,"2,225.60",Revenue,Sector Security Services,19269
Chorley Borough Council,http://statistics.data.gov.uk/id/local-authority/30UE,Homelessness,1075,Early Intervention,External Contractor,40198,Miscellaneous Expenses,5034,"For Concierge Service at Cotswold Supported Housing, Cotswold Road, Chorley, Lancashire, PR7 3HW April 2016 to March 2017",29/03/2017,120025,"2,301.00",Revenue,Sector Security Services,19269
Chorley Borough Council,http://statistics.data.gov.uk/id/local-authority/30UE,Business Support,1095,Business Development & Growth,Security Service,40062,Services,5027,To provide Security Services to Market Walk Shopping Centre April 2016 to March 2017,01/03/2017,119090,"5,728.69",Revenue,Securitas Security Services (UK) Ltd,70693
Chorley Borough Council,http://statistics.data.gov.uk/id/local-authority/30UE,Business Support,1095,Business Development & Growth,Security Service,40062,Services,5027,To provide Security Services to Market Walk Shopping Centre April 2016 to March 2017,29/03/2017,119827,"5,728.69",Revenue,Securitas Security Services (UK) Ltd,70693
Chorley Borough Council,http://statistics.data.gov.uk/id/local-authority/30UE,Unapportionable Central OHeads,1009,Policy & Governance,Agency Staff,13000,Direct Employee Expenses,5001,Locum Solicitor - NAME REDACTED,03/03/2017,119163,"1,224.38",Revenue,Sellick Partnership Limited,76554
Chorley Borough Council,http://statistics.data.gov.uk/id/local-authority/30UE,Unapportionable Central OHeads,1009,Policy & Governance,Agency Staff,13000,Direct Employee Expenses,5001,Locum Solicitor - NAME REDACTED,03/03/2017,119164,979.50,Revenue,Sellick Partnership Limited,76554
Chorley Borough Council,http://statistics.data.gov.uk/id/local-authority/30UE,Unapportionable Central OHeads,1009,Policy & Governance,Agency Staff,13000,Direct Employee Expenses,5001,Locum Solicitor - NAME REDACTED,03/03/2017,119250,"1,224.38",Revenue,Sellick Partnership Limited,76554
Chorley Borough Council,http://statistics.data.gov.uk/id/local-authority/30UE,Unapportionable Central OHeads,1009,Policy & Governance,Agency Staff,13000,Direct Employee Expenses,5001,Locum Solicitor - NAME REDACTED,15/03/2017,119461,"1,208.05",Revenue,Sellick Partnership Limited,76554
Chorley Borough Council,http://statistics.data.gov.uk/id/local-authority/30UE,Unapportionable Central OHeads,1009,Policy & Governance,Agency Staff,13000,Direct Employee Expenses,5001,Locum Solicitor - NAME REDACTED,22/03/2017,119736,"1,224.38",Revenue,Sellick Partnership Limited,76554
